{"text_format":"1","workbook":"xlsx","n_sheets":7,"sheets":["Info","Trial","Instructions","StockCodes","Movements","StockCount","Dashboard"],"not_rendered":{"charts":6,"images":2,"macros":1,"external_links":0,"defined_names":27,"comments":0,"pivot_tables":0},"unopened":[],"bounds":{"document_bytes":16777216,"sheet_cells":100000,"rows_first":2000,"rows_last":500,"rows_between":2000,"halvings":0,"cell_chars":16384,"cell_head_chars":4096},"cells_cut":0,"cells_raw":0,"read":"whole","date_system":"1900"}

{"sheet":"Info","index":0,"n_rows":0,"n_cols":0,"rows_kept":0,"cut":false,"hidden":false,"merged":[]}

{"sheet":"Trial","index":1,"n_rows":0,"n_cols":0,"rows_kept":0,"cut":false,"hidden":true,"merged":[]}

{"sheet":"Instructions","index":2,"n_rows":206,"n_cols":1,"rows_kept":206,"cut":false,"hidden":true,"merged":[]}
["Excel Skills | Inventory Quantity Control Template"]
["Instructions"]
["www.excel-skills.com"]
[]
["This unique template enables users to control inventory by recording opening stock quantities, capturing all inventory movement transactions, performing stock takes and calculating stock quantities on hand for any user defined date range. The template makes provision for stock purchase, sale, receipt, issue and adjustment transaction types and can be used by any business and for any type of inventory."]
[]
["Note: This template does not include inventory cost & valuation calculations. If you require a template which includes cost and valuation type calculations, refer to our Trade Based and Usage Based inventory control templates."]
[]
["The following sheets are included in this template:"]
["StockCodes - this sheet can be used to create unique stock codes for all inventory items and also includes an inventory movement report for the stock codes created."]
["Movements - all inventory movement transactions should be recorded on this sheet."]
["StockCount - this sheet can be used to perform a physical stock count and to analyse stock take variances. Physical stock count quantities are measured against theoretical stock balances and once the accuracy of the stock take variances has been established, the calculated stock variances can be recorded as stock adjustments on the Movements sheet in order to adjust the theoretical stock quantities to the physical stock count quantities."]
["Dashboard - the inventory dashboard is automatically updated based on the stock code and dates selected in the filter section of the dashboard. You can select an individual stock code or clear the contents of the list box to view calculations for all stock items. The dashboard also includes a unique interactive report where you can select the basis of balances or movements and view all transaction types or any of purchases, receipts, sales, issues or adjustments individually. The dashboard also contains stats of the top products by transaction type. Aside from the filter and report selections, no user input is required on this sheet and all workings are included below the dashboard."]
[]
["Stock Codes"]
[]
["Create & Maintain Stock Codes"]
[]
["A unique stock code needs to be created on the StockCodes sheet for all inventory items that you want to include in the template. The stock codes created on this sheet are included in list boxes in the stock code columns on the other sheets and users are therefore required to create the appropriate stock code before the code will be available for selection on the other sheets."]
[]
["A stock code convention that makes sense in the context of your business should be used and the stock code convention should make it easy to identify stock items based on the stock code assigned to each stock item. Refer to the sample data included on the StockCodes sheet - we have used a stock code convention which starts with two letters followed by two numbers for stock components and four numbers followed by three letters for finished goods."]
[]
["Stock codes should not be duplicated - if a stock code is duplicated on the StockCodes sheet, it may result in inaccurate inventory movement calculations. If a stock code is duplicated on the StockCodes sheet, an error will be reflected in the error code column. All the error codes reflected in this column should be rectified before reviewing the data. Refer to the Error Codes section of the instructions for more information on the different types of error codes that may be encountered when using the template."]
[]
["Our example stock code convention is by no means a template requirement. You can use any stock code convention as long as only unique stock codes are created and you are able to easily identify the stock codes relating to each stock item."]
[]
["The StockCodes sheet contains the following user input columns:"]
["Stock Code - enter a unique stock code in accordance with the stock code convention suitable for your type of business."]
["Description - enter a description of the stock item. This description should enable users to easily distinguish between stock items."]
["UOM - the unit of measure (UOM) refers to the stock measurement which is used when ordering, selling, using and counting stock. Stock sales, usage and counting units of measure carry more weight than stock ordering units of measure. For example, if it is easier to record the sale or usage and stock count of an inventory item in kilogram and the product is purchased from a supplier in bags, the unit of measure should be specified as kilogram. When the product is purchased from the supplier, the quantity that is purchased then simply needs to be converted to kilogram when recording the stock purchase transaction on the Movements sheet."]
["Opening Quantity - enter the opening stock quantity in this column. This is the stock quantity on hand on the date that you start using the template. All subsequent inventory movements should be recorded on the Movements sheet."]
[]
["Note: The contents on the StockCodes sheet have been included in an Excel data table. All the columns on the StockCodes sheet with yellow column headings require user input. The columns with light blue column headings contain formulas which are automatically copied for all new stock codes created on this sheet."]
[]
["Inventory Movement Reports"]
[]
["The calculated columns (columns with light blue column headings) on the StockCodes sheet enable users to view a stock movement report for each individual stock item which is automatically calculated based on the inventory transactions recorded on the Movements sheet."]
[]
["The inventory movement report consists of the opening quantity, purchases quantity, receipts quantity, sales quantity, issues quantity, adjustments quantity and the closing stock quantity (columns F to L). The total of the quantity movements and the opening stock should equal the closing stock (quantity on hand) in column L."]
[]
["The inventory movement calculations are based on the \"From\" and \"To\" dates that are specified in cells L2 and L3 respectively. If both of these cells contain valid dates, the opening quantities include all transactions that are dated before the \"From\" date in cell L2, the inventory movements include all transactions between the \"From\" and \"To\" dates and the closing stock quantities represent the quantities on hand at the end of the \"To\" date in cell L3."]
[]
["If only a \"From\" date is specified (in cell L2) and the \"To\" date cell is left blank, the opening quantities include all transactions before the \"From\" date and the inventory movement calculations include all transactions after the \"From\" date and on or before the end of the current month (which is determined by the current system date). If only a \"To\" date is specified, the opening quantities include only the opening quantities that are calculated based on the user input in column D and the inventory movement calculations include all transactions that are dated on or before the \"To\" date that is specified in cell L3."]
[]
["If both the \"From\" and \"To\" date cells are left blank, the opening quantities are calculated based on the user input in column D and the inventory movement calculations include all the transactions included on the Movements sheet and dated on or before the end of the current month (which is determined by the current system date)."]
[]
["Note: As you can see, the functionality added to the StockCodes sheet enables users to display an inventory movement report for any user defined date range. Users are therefore not only able to calculate current inventory quantities on hand by stock code, but are also able to view the inventory movements for any previous reporting periods."]
[]
["Note: The Error Code column will contain an error code if there is a problem with the data entered in any of the user input columns. If this column therefore contains any error codes, these user input errors need to be resolved before viewing the data on this sheet. Refer to the Error Codes section of the instructions for guidance on the different error codes which may be encountered when using this template."]
[]
["Dashboard Calculations"]
[]
["The calculations in columns M to Q on the StockCodes sheet are used in the inventory dashboard calculations on the Dashboard sheet. These columns are therefore not included in the print range on the StockCodes sheet. The only difference between these calculations and some of the inventory movement calculations is that the dashboard calculations are based on the selected date range on the Dashboard sheet which may be different from the selected date range on the StockCodes sheet."]
[]
["Inventory Purchases"]
[]
["All inventory purchase transactions should be recorded on the Movements sheet. The contents on this sheet have been included in an Excel data table. The columns with yellow column headings require user input and the columns with light blue column headings contain formulas which are automatically copied for all new transactions entered on the sheet."]
[]
["The following columns require user input:"]
["Transaction Date: enter the delivery date relating to the stock purchase transaction in column A. All dates should be entered in accordance with the regional date settings specified in the System Control Panel. We've added data validation to column A to ensure that only valid dates are entered in this column. The date on which the supplier delivers the inventory to your business premises should be recorded in this column because the inventory is added to the theoretical inventory balance on this date. If the inventory has not been delivered yet, the physical stock on hand will not agree to the theoretical stock balance."]
["Transaction Type: select the Purchase transaction type in column B."]
["Supplier Name: enter the name of the appropriate supplier in column C."]
["Document Number: enter the supplier invoice number or other unique reference number in column D. The reference that you enter in this column should enable you to trace the transaction back to its supporting documentation."]
["Stock Code: select the appropriate stock code from the list box in column E. All stock codes need to be created on the StockCodes sheet before being available for selection. Refer to the stock description which is displayed in column H to ensure that the correct stock code has been selected."]
["Transaction Quantity: enter the quantity of stock purchased in column F. The purchase quantity should be recorded in the unit of measure which is displayed in column I."]
[]
["The calculated columns on the Movements sheet consist of the error code, stock description, unit of measure (UOM), previous quantity on hand, new quantity on hand and the stock movement date. The values in all of these calculated columns are calculated automatically based on the values recorded in all the user input columns (columns with yellow column headings)."]
[]
["The stock description is included to enable users to view a description of the stock code selected in column E and the UOM is included to indicate which unit of measure should be used when entering transaction quantities. The previous and new quantity on hand calculations reflect the quantity of stock on hand before and after taking the purchase transaction into account."]
[]
["Note: The quantity on hand calculations reflect the quantity of stock on hand before and after recording a transaction. These calculations can also be used to identify stock transaction recording errors - if either the quantity on hand before or after recording a transaction is negative, it means that an error has been made in the recording of previous stock movement transactions. Should this be the case, an error code will be reflected in column G which indicates that the previous inventory movement transactions for the affected stock code need to be investigated."]
[]
["The movement date in column L is determined based on the transaction date in column A and the relative row position of the transaction which is applied to the transaction date as a time value. This means that where two transactions are entered with the same transaction date, the transaction which is entered first on the Movements sheet will be deemed to have occurred before any subsequent transactions."]
[]
["It is therefore important to record transactions in the correct sequence when the transaction dates are the same. For example, if a stock purchase transaction occurs at the beginning of the day and a usage (issue), sale, receipt or adjustment transaction needs to be recorded on the same day, the inventory purchase transaction should be recorded on the Movements sheet before recording the usage, sale, receipt or adjustment transactions."]
[]
["Inventory Receipts"]
[]
["All inventory receipt transactions which do not relate to stock items being purchased should be recorded by entering the appropriate positive quantities on the Movements sheet. The user input that is required on this sheet includes the transaction date, transaction type, stock code and quantity received. The other user input columns (supplier name and document number) are not required when entering stock receipt transactions and can either be left blank or you can enter a default value in these columns."]
[]
["Note: Inventory purchases should not be recorded as stock receipts because purchases are deemed to be a different transaction type which should be recorded by selecting the Purchase option in column B. The Receipt transaction type should therefore be used for all stock quantities which are received without being purchased from a supplier, for example stock items which are produced in a manufacturing process."]
[]
["All the user input and calculated columns on the Movements sheet have been covered in the Inventory Purchases section of the instructions. We will therefore only point out differences between the recording of stock purchase and stock receipt transactions in this section of the instructions."]
["Transaction Date: the date on which the appropriate stock item has been received should be entered in column A."]
["Transaction Type: select the Receipt transaction type from the list box in column B."]
["Supplier Name, Document Number: these columns can be left blank when entering receipt type transactions or you can enter a default value like \"Manufactured\" or \"N/A\"."]
["Stock Code: select the appropriate stock code from the list box in column E. All stock codes need to be created on the StockCodes sheet before being available for selection."]
["Transaction Quantity: enter the quantity of stock received as a positive value in column F. The receipt quantity should be recorded in the unit of measure which is displayed in column I."]
[]
["Inventory Sales"]
[]
["All inventory sales transactions should be recorded by entering the appropriate negative quantities on the Movements sheet. The user input required on this sheet includes the transaction date, transaction type, customer name, document number, stock code and quantity sold."]
[]
["All the user input and calculated columns on the Movements sheet have been covered in the Inventory Purchases section of the instructions. We will therefore only point out differences between the recording of stock purchase and stock sales transactions in this section of the instructions."]
["Transaction Date: the date on which the appropriate stock item has been sold should be entered in column A."]
["Transaction Type: select the Sale transaction type from the list box in column B."]
["Customer Name, Document Number: enter the name of the customer in column C and the sales invoice number in column D."]
["Stock Code: select the appropriate stock code from the list box in column E. All stock codes need to be created on the StockCodes sheet before being available for selection."]
["Transaction Quantity: enter the quantity of stock sold as a negative value in column F. The sales quantity should be recorded in the unit of measure which is displayed in column I."]
[]
["Note: A stock sales transaction may result in an error if the transaction quantity entered in column F is greater than the previous quantity on hand in column J. If this is the case, the new quantity on hand will be a negative value and an error code will be reflected in column J. The most recent transactions for the affected stock code need to be investigated in order to resolve the error and if no explanation can be found, a positive stock adjustment should be recorded in a row above the issue transaction (and by using the same transaction date) in order to adjust the quantity on hand upwards so that the new quantity on hand (after taking the effect of the issue transaction into account) does not go into a negative stock position."]
[]
["Inventory Usage (Issue Transactions)"]
[]
["All inventory usage transactions should be recorded by entering the appropriate negative quantities on the Movements sheet. The user input required on this sheet includes the transaction date, transaction type, stock code and quantity used. The other user input columns (supplier name and document number) are not required when entering stock usage transactions and can either be left blank or you can enter a default value in these columns."]
[]
["We recommend implementing a system whereby the inventory used on a daily basis is recorded independently and then recorded on this sheet at the end of the day or the beginning of the next day. There are significant benefits to controlling stock on a daily basis and the recording of daily stock usage forms an integral part of this process. If there are factors that result in daily stock usage measurement being impractical, this template can also be used to record and analyse weekly stock usage."]
[]
["Another (less effective) method of controlling inventory usage is to simply perform a physical stock count and to record the difference between the theoretical stock on hand and the stock count quantities as usage on the stock count date. If a system like this is in effect, inventory usage is not recorded independently and the theoretical stock balance will therefore only consist of the stock quantities purchased (presuming that stock sales and receipts do not apply to component stock items). The resulting stock variances therefore represent the inventory used since the previous stock count."]
[]
["The disadvantage of using a stock count system to record usage is that there is no reference point for identifying stock items and areas which result in losses because the transaction cycle is in effect incomplete. It will therefore be extremely difficult to investigate and to explain inventory usage in excess of expectations."]
[]
["The recording of inventory usage on a regular basis (daily or weekly) enables users to calculate accurate theoretical stock balances which can be compared to physical count quantities. This system makes it a lot easier to identify and investigate problem stock items and areas and enables users to limit excess stock usage a lot more effectively."]
[]
["All the user input and calculated columns on the Movements sheet have been covered in the Inventory Purchases section of the instructions. We will therefore only point out differences between the recording of stock purchase and stock usage (issue) transactions in this section of the instructions."]
["Transaction Date: the date on which the appropriate stock item has been used should be entered in column A."]
["Transaction Type: select the Issue transaction type from the list box in column B."]
["Supplier Name, Document Number: these columns can be left blank when entering usage type transactions or you can enter a default value like \"Component Usage\" or \"N/A\"."]
["Stock Code: select the appropriate stock code from the list box in column E. All stock codes need to be created on the StockCodes sheet before being available for selection."]
["Transaction Quantity: enter the quantity of stock used as a negative value in column F. The usage quantity should be recorded in the unit of measure which is displayed in column I."]
[]
["Note: A stock usage transaction may result in an error if the transaction quantity entered in column F is greater than the previous quantity on hand in column J. If this is the case, the new quantity on hand will be a negative value and an error code will be reflected in column J. The most recent transactions for the affected stock code need to be investigated in order to resolve the error and if no explanation can be found, a positive stock adjustment should be recorded in a row above the issue transaction (and by using the same transaction date) in order to adjust the quantity on hand upwards so that the new quantity on hand (after taking the effect of the issue transaction into account) does not go into a negative stock position."]
[]
["Inventory Adjustments"]
[]
["All inventory adjustments also need to be recorded on the Movements sheet. Inventory adjustments consist mainly of stock take variances but could also include manual adjustments which are required to correct the quantity on hand of a particular stock item. Inventory adjustments are recorded in exactly the same way as usage transactions, except for selecting an \"Adjustment\" transaction type in column B on the Movements sheet and being able to record both positive and negative values for inventory adjustments. Note that positive adjustments increase the quantity on hand, while negative adjustments decrease the quantity on hand."]
[]
["Stock Count Variances"]
[]
["All stock count variances should be recorded on the Movements sheet based on the stock variances calculated on the StockCount sheet. Positive quantity variances result in an increase in the appropriate stock item's theoretical quantity on hand, while negative quantity variances result in a decrease in the appropriate stock item's theoretical quantity on hand (thereby effectively writing off the particular stock variance)."]
[]
["Stock adjustments that result from a stock take can be recorded on the Movements sheet by copying the appropriate count date into column A, selecting the \"Adjustment\" transaction type in column B, copying the appropriate stock codes into column E (from the StockCount sheet) and copying the appropriate adjustment quantities into column F (from column G on the StockCount sheet)."]
[]
["Note: The supplier name and document number columns can be left blank when recording stock adjustment type transactions or you can enter a default value such as \"Stock Count\" or \"N/A\" in these columns. Refer to the Inventory Purchases section of the instructions for guidance on the calculations in the calculated columns (the columns with light blue column headings)."]
[]
["Stock Count"]
[]
["The StockCount sheet can be used to record stock count quantities, compare the quantities that have been counted to theoretical stock quantities and to calculate and review stock quantity variances. This stock count feature only requires limited user input - simply enter the appropriate stock count date in cell G1, copy the stock codes that need to be included in the stock count into column A and record the quantities that have been counted in column E. A stock variance report is automatically compiled based on the data that is entered by the user."]
[]
["Note: The contents on the StockCount sheet have been included in an Excel data table. The columns with yellow column headings require user input and the columns with light blue column headings contain formulas which are automatically copied for all the stock codes included on the StockCount sheet."]
[]
["The StockCount sheet can be prepared for a stock count by copying the stock codes that you want to include in the stock count from the StockCodes sheet and pasting the stock codes into column A. All the formulas in the columns with light blue column headings are then automatically copied into all the rows that contain a stock code. The counted quantities in column E then need to be replaced by a nil value."]
[]
["The calculation of all theoretical stock balances is based on the stock count date entered in cell G1. All the transactions recorded on the Movements sheets and dated on or before this date are included in the theoretical stock balances. It is imperative that you specify the correct stock count date in cell G1, otherwise the stock variance report will not be calculated accurately."]
[]
["After preparing the StockCount sheet for the stock count, the stock quantities counted need to be recorded in column E. All the stock quantity variance calculations will be updated automatically and can then be reviewed and recounted until you are satisfied that the physical stock count has been performed and recorded accurately. The stock count variances can then be copied to the Movements sheet and recorded as stock adjustment transactions in order to adjust the theoretical stock quantities to the quantities which have been counted."]
[]
["Note: After copying the stock count variances to the Movements sheet and recoding the appropriate stock adjustment transactions, the theoretical stock quantities on the StockCount sheet are automatically updated and all the stock variances should be nil. If you therefore want to print a stock variance report for recordkeeping purposes, you should do so before recording the stock adjustment entries on the Movements sheet."]
[]
["If stock items are received from a supplier or production process on the day of the stock count, you should consider whether these items will be included in the physical stock count. If the items are not going to be counted, you should not record the purchase or production transaction before the stock count has been completed and these stock items should also not be included in the physical stock count."]
[]
["Proper cut off also needs to be applied to stock sales and usage transactions. Stock sales and usage transactions should be recorded for all the stock items used or sold before the physical stock count commences in order to ensure that all stock variances are calculated accurately."]
[]
["Note: The same stock count procedures can be followed for cycle counts (counts where only selected stock items are physically counted). Only the appropriate stock codes then need to be added to the StockCount sheet, but you still have to ensure that proper cut off is applied for all cycle counts (all the appropriate purchase, receipt, sales and usage transactions must be recorded before the physical stock count commences)."]
[]
["Note: If you change the count date in cell G1, the theoretical stock balances will also change based on the date that is entered in this cell. All the transactions that have been recorded on the Movements sheet and dated on or before the count date will be included in the theoretical stock balance calculation."]
[]
["Dashboard"]
[]
["The inventory dashboard on the Dashboard sheet is calculated automatically from the movements entered on the Movements sheet. All you need to do is select the appropriate stock code and from and to dates in the filter section of the dashboard. All the calculations are then automatically updated."]
[]
["The dashboard calculations and charts can be compiled for an individual stock code by simply selecting the appropriate stock code in the dashboard filter section or you can show the data for all stock codes by simply clearing the stock code section (pressing delete on the keyboard)."]
[]
["If you do not specify a From date in the filter section, all inventory transactions from the first date captured on the Movements sheet will be included in the dashboard calculations. If you do not specify a To date in the dashboard filter section, all stock movements on or before the current system date will be included in the dashboard calculations."]
[]
["Our unique inventory dashboard also includes a comprehensive interactive inventory movement report section which consists of three charts - a 90-day daily chart, a 13-week weekly chart and a 12-month monthly chart displaying inventory movements for the selected stock code and selected date range."]
[]
["The interactive inventory report contains selections for the basis and type. The basis selection contains options for displaying balances or movements. The type selection contains options for all, purchase, receipts, sales, issues or adjustments which refers to the transaction types to display."]
[]
["Note: The default options for the interactive report selections is to display movement amounts for all transactions. This is therefore the settings which are applied when no selections are active."]
[]
["Note: The daily report can be amended to include less than 90 days by simply specifying a new value in cell C72 on the Dashboard sheet. If the chart does not update automatically, just change one of the selections and it should update the new days setting. We do not recommend making changes to the weekly or monthly charts."]
[]
["The inventory dashboard also includes top product sections which displays the top 5 products in terms of quantity for each of the four main transaction types."]
[]
["Only the dashboard itself is included in the print range on the Dashboard sheet. The calculations below the dashboard which are used to compile the automated calculations will therefore not be printed."]
[]
["Roll Forward"]
[]
["This template can be rolled forward for subsequent periods if the calculation speed slows down too much because of adding thousands of transactions to the template. We recommend completing the following steps in order to roll the template forward:"]
["■ Save a copy of the template under a new file name."]
["■ Delete all the inventory purchase, receipt, sale, issue and adjustment transactions from the Movements sheets in the new file that you created in the previous step but make sure that you retain the formulas in the calculated columns on these sheets in at least two rows."]
["■ Clear the \"From\" and \"To\" dates from the StockCodes sheet in the existing template to ensure that all transactions are included in the inventory quantity on hand calculations."]
["■ Copy the quantities on hand from column L on the StockCodes sheet in the existing template and paste these quantities into column D (opening quantities) on the StockCode sheet in the new template."]
["■ Make sure that the inventory quantities in column L in both templates agree."]
["■ All future transactions can now be recorded in the new version of the template and the old version can be retained if you want to refer back to historical inventory transactions."]
[]
["Error Codes"]
[]
["The following error codes may result from inaccurate user input and will be displayed in the Error Code columns of the appropriate sheet. The heading of the affected input column will also be highlighted in orange:"]
[]
["■ E1 - this error code means that a duplicated stock code has been entered in the appropriate row. The error can be corrected by simply deleting one of the duplicated entries."]
["■ E2 - this error code means that the stock code which has been selected is invalid. Stock codes must be created on the StockCodes sheet before being used on any of the other sheets and the error can therefore be corrected by simply creating the appropriate stock code on the StockCodes sheet. If a stock code has been deleted, this error code will be displayed in all the rows on the other sheets which still refer to the stock code. These entries must be deleted or a valid stock code needs to be selected in the appropriate column."]
["■ E3 - this error code means that an invalid transaction type has been selected. The transaction types that can be used in this template are limited to the types provided in the appropriate list box. This error is also displayed if a transaction has been entered without specifying a transaction type."]
["■ E4 - removed."]
["■ E5 - this error code indicates that the quantity on hand before or after recording a transaction is negative. When the quantity on hand for a particular stock code goes into a negative value, it indicates that an error has been made in recording or not recording some of the previous inventory movement transactions. These errors should be investigated and resolved by correcting previous stock movement entries. If after investigating the error, no solution is found the quantity on hand should be adjusted by entering a positive adjustment type entry in the row above the transaction which contains the error (and using the same transaction date) otherwise the closing stock calculation for the affected stock item may not be accurate."]
[]
["Note: Input errors may result in inaccurate template calculations and it is therefore imperative that all errors are resolved before reviewing the inventory movement data."]
[]
["Help & Customization"]
[]
["If you experience any difficulty while using this template and you are not able to find the appropriate guidance in these instructions, please e-mail us at support@excel-skills.com for assistance. This template has been designed with flexibility in mind to ensure that it can be used in most business environments. If however you need an Excel based template that is customized specifically for your business requirements, please e-mail our Support function and provide a brief explanation of your requirements."]
[]
["© Copyright"]
[]
["This template remains the intellectual property of www.excel-skills.com and is protected by international copyright laws. Any publication or distribution of this template outside the scope of the permitted use of the template is expressly prohibited. In terms of the permitted use of this template, only the distribution of the template to persons within the same organisation as the registered user or persons outside the organisation who can reasonably be expected to require access to the template as a direct result of the use of the template by the registered user is allowed. Subsequent distribution of the template by parties outside of the organisation is however expressly prohibited and represents an infringement of international copyright laws."]

{"sheet":"StockCodes","index":3,"n_rows":18,"n_cols":17,"rows_kept":18,"cut":false,"hidden":true,"merged":[]}
["Stock Codes"]
["Set-up and Reporting",null,null,null,null,null,null,null,null,null,"From Date",null,{"$f":"IF(ISBLANK(L2)=TRUE,IF(MIN(MoveDate)=0,DATE(YEAR($M$3),MONTH($M$3),1),DATE(YEAR(MIN(MoveDate)),MONTH(MIN(MoveDate)),1)),L2)","v":"2021-07-01"},{"$f":"Dashboard!$C$55","v":"2021-07-01"}]
["© www.excel-skills.com",null,null,null,null,null,null,null,null,null,"To Date","2021-09-30",{"$f":"IF(ISBLANK(L3)=TRUE,DATE(YEAR(TODAY()),MONTH(TODAY())+1,0),L3)","v":"2021-09-30"},{"$f":"Dashboard!$D$55","v":"2021-09-30"}]
[]
["Stock Code","Stock Description","UOM","Opening Quantity","Error Code","Opening Quantity2","Purchases Quantity","Receipts Quantity","Sales \nQuantity","Issues \nQuantity","Adjustments Quantity","Closing Quantity","Dash Purch Qty","Dash Receipt Qty","Dash Sales \nQty","Dash Issues Qty","Dash Adjust Qty"]
["1212GHG","Garden Shed","Units",1020,{"$f":"IF(AND(ISBLANK(A6)=FALSE,COUNTIF(StockCodeOnly,A6)>1)=TRUE,\"E1\",\"-\")","v":"-"},{"$f":"D6+SUMIFS(MoveQty,MoveCode,$A6,MoveDate,\"<\"&$M$2)","v":1020},{"$f":"SUMIFS(MoveQty,MoveCode,$A6,MoveDate,\">=\"&$M$2,MoveDate,\"<\"&$M$3+1,MoveType,\"Purchase\")","v":0},{"$f":"SUMIFS(MoveQty,MoveCode,$A6,MoveDate,\">=\"&$M$2,MoveDate,\"<\"&$M$3+1,MoveType,\"Receipt\")","v":1010},{"$f":"SUMIFS(MoveQty,MoveCode,$A6,MoveDate,\">=\"&$M$2,MoveDate,\"<\"&$M$3+1,MoveType,\"Sale\")","v":-1350},{"$f":"SUMIFS(MoveQty,MoveCode,$A6,MoveDate,\">=\"&$M$2,MoveDate,\"<\"&$M$3+1,MoveType,\"Issue\")","v":0},{"$f":"SUMIFS(MoveQty,MoveCode,$A6,MoveDate,\">=\"&$M$2,MoveDate,\"<\"&$M$3+1,MoveType,\"Adjustment\")","v":0},{"$f":"SUMIFS(MoveQty,MoveCode,$A6,MoveDate,\"<\"&$M$3+1)+D6","v":680},{"$f":"SUMIFS(MoveQty,MoveCode,$A6,MoveDate,\">=\"&$N$2,MoveDate,\"<\"&$N$3+1,MoveType,\"Purchase\")","v":0},{"$f":"SUMIFS(MoveQty,MoveCode,$A6,MoveDate,\">=\"&$N$2,MoveDate,\"<\"&$N$3+1,MoveType,\"Receipt\")","v":1010},{"$f":"-SUMIFS(MoveQty,MoveCode,$A6,MoveDate,\">=\"&$N$2,MoveDate,\"<\"&$N$3+1,MoveType,\"Sale\")","v":1350},{"$f":"-SUMIFS(MoveQty,MoveCode,$A6,MoveDate,\">=\"&$N$2,MoveDate,\"<\"&$N$3+1,MoveType,\"Issue\")","v":0},{"$f":"SUMIFS(MoveQty,MoveCode,$A6,MoveDate,\">=\"&$N$2,MoveDate,\"<\"&$N$3+1,MoveType,\"Adjustment\")","v":0}]
["1212PHP","Painted Garden Shed","Units",930,"-",930,0,52,-610,0,-2,370,{"$f":"SUMIFS(MoveQty,MoveCode,$A7,MoveDate,\">=\"&$N$2,MoveDate,\"<\"&$N$3+1,MoveType,\"Purchase\")","v":0},{"$f":"SUMIFS(MoveQty,MoveCode,$A7,MoveDate,\">=\"&$N$2,MoveDate,\"<\"&$N$3+1,MoveType,\"Receipt\")","v":52},{"$f":"-SUMIFS(MoveQty,MoveCode,$A7,MoveDate,\">=\"&$N$2,MoveDate,\"<\"&$N$3+1,MoveType,\"Sale\")","v":610},{"$f":"-SUMIFS(MoveQty,MoveCode,$A7,MoveDate,\">=\"&$N$2,MoveDate,\"<\"&$N$3+1,MoveType,\"Issue\")","v":0},{"$f":"SUMIFS(MoveQty,MoveCode,$A7,MoveDate,\">=\"&$N$2,MoveDate,\"<\"&$N$3+1,MoveType,\"Adjustment\")","v":-2}]
["1212THT","Tools Shed","Units",240,"-",240,0,125,-240,0,0,125,{"$f":"SUMIFS(MoveQty,MoveCode,$A8,MoveDate,\">=\"&$N$2,MoveDate,\"<\"&$N$3+1,MoveType,\"Purchase\")","v":0},{"$f":"SUMIFS(MoveQty,MoveCode,$A8,MoveDate,\">=\"&$N$2,MoveDate,\"<\"&$N$3+1,MoveType,\"Receipt\")","v":125},{"$f":"-SUMIFS(MoveQty,MoveCode,$A8,MoveDate,\">=\"&$N$2,MoveDate,\"<\"&$N$3+1,MoveType,\"Sale\")","v":240},{"$f":"-SUMIFS(MoveQty,MoveCode,$A8,MoveDate,\">=\"&$N$2,MoveDate,\"<\"&$N$3+1,MoveType,\"Issue\")","v":0},{"$f":"SUMIFS(MoveQty,MoveCode,$A8,MoveDate,\">=\"&$N$2,MoveDate,\"<\"&$N$3+1,MoveType,\"Adjustment\")","v":0}]
["RM10","Steel Plates","M2",2000,"-",2000,17000,0,0,-13061.111111111109,0,5938.8888888888896,{"$f":"SUMIFS(MoveQty,MoveCode,$A9,MoveDate,\">=\"&$N$2,MoveDate,\"<\"&$N$3+1,MoveType,\"Purchase\")","v":17000},{"$f":"SUMIFS(MoveQty,MoveCode,$A9,MoveDate,\">=\"&$N$2,MoveDate,\"<\"&$N$3+1,MoveType,\"Receipt\")","v":0},{"$f":"-SUMIFS(MoveQty,MoveCode,$A9,MoveDate,\">=\"&$N$2,MoveDate,\"<\"&$N$3+1,MoveType,\"Sale\")","v":0},{"$f":"-SUMIFS(MoveQty,MoveCode,$A9,MoveDate,\">=\"&$N$2,MoveDate,\"<\"&$N$3+1,MoveType,\"Issue\")","v":13061.111111111109},{"$f":"SUMIFS(MoveQty,MoveCode,$A9,MoveDate,\">=\"&$N$2,MoveDate,\"<\"&$N$3+1,MoveType,\"Adjustment\")","v":0}]
["RM25","Door Handle","Units",724,"-",724,740,0,0,-1162,-7,295,{"$f":"SUMIFS(MoveQty,MoveCode,$A10,MoveDate,\">=\"&$N$2,MoveDate,\"<\"&$N$3+1,MoveType,\"Purchase\")","v":740},{"$f":"SUMIFS(MoveQty,MoveCode,$A10,MoveDate,\">=\"&$N$2,MoveDate,\"<\"&$N$3+1,MoveType,\"Receipt\")","v":0},{"$f":"-SUMIFS(MoveQty,MoveCode,$A10,MoveDate,\">=\"&$N$2,MoveDate,\"<\"&$N$3+1,MoveType,\"Sale\")","v":0},{"$f":"-SUMIFS(MoveQty,MoveCode,$A10,MoveDate,\">=\"&$N$2,MoveDate,\"<\"&$N$3+1,MoveType,\"Issue\")","v":1162},{"$f":"SUMIFS(MoveQty,MoveCode,$A10,MoveDate,\">=\"&$N$2,MoveDate,\"<\"&$N$3+1,MoveType,\"Adjustment\")","v":-7}]
["RM30","Wood","M2",2000,"-",2000,22000,0,0,-17151.169590643269,-100,6748.8304093567303,{"$f":"SUMIFS(MoveQty,MoveCode,$A11,MoveDate,\">=\"&$N$2,MoveDate,\"<\"&$N$3+1,MoveType,\"Purchase\")","v":22000},{"$f":"SUMIFS(MoveQty,MoveCode,$A11,MoveDate,\">=\"&$N$2,MoveDate,\"<\"&$N$3+1,MoveType,\"Receipt\")","v":0},{"$f":"-SUMIFS(MoveQty,MoveCode,$A11,MoveDate,\">=\"&$N$2,MoveDate,\"<\"&$N$3+1,MoveType,\"Sale\")","v":0},{"$f":"-SUMIFS(MoveQty,MoveCode,$A11,MoveDate,\">=\"&$N$2,MoveDate,\"<\"&$N$3+1,MoveType,\"Issue\")","v":17151.169590643269},{"$f":"SUMIFS(MoveQty,MoveCode,$A11,MoveDate,\">=\"&$N$2,MoveDate,\"<\"&$N$3+1,MoveType,\"Adjustment\")","v":-100}]
["RM50","1 Inch Screws","Bag",50,"-",50,300,0,0,-138.11111111111109,-18,193.88888888888891,{"$f":"SUMIFS(MoveQty,MoveCode,$A12,MoveDate,\">=\"&$N$2,MoveDate,\"<\"&$N$3+1,MoveType,\"Purchase\")","v":300},{"$f":"SUMIFS(MoveQty,MoveCode,$A12,MoveDate,\">=\"&$N$2,MoveDate,\"<\"&$N$3+1,MoveType,\"Receipt\")","v":0},{"$f":"-SUMIFS(MoveQty,MoveCode,$A12,MoveDate,\">=\"&$N$2,MoveDate,\"<\"&$N$3+1,MoveType,\"Sale\")","v":0},{"$f":"-SUMIFS(MoveQty,MoveCode,$A12,MoveDate,\">=\"&$N$2,MoveDate,\"<\"&$N$3+1,MoveType,\"Issue\")","v":138.11111111111109},{"$f":"SUMIFS(MoveQty,MoveCode,$A12,MoveDate,\">=\"&$N$2,MoveDate,\"<\"&$N$3+1,MoveType,\"Adjustment\")","v":-18}]
["RM55","2 Inch Screws","Bag",1000,"-",1000,3000,0,0,-3979.34640522876,5,25.653594771240023,{"$f":"SUMIFS(MoveQty,MoveCode,$A13,MoveDate,\">=\"&$N$2,MoveDate,\"<\"&$N$3+1,MoveType,\"Purchase\")","v":3000},{"$f":"SUMIFS(MoveQty,MoveCode,$A13,MoveDate,\">=\"&$N$2,MoveDate,\"<\"&$N$3+1,MoveType,\"Receipt\")","v":0},{"$f":"-SUMIFS(MoveQty,MoveCode,$A13,MoveDate,\">=\"&$N$2,MoveDate,\"<\"&$N$3+1,MoveType,\"Sale\")","v":0},{"$f":"-SUMIFS(MoveQty,MoveCode,$A13,MoveDate,\">=\"&$N$2,MoveDate,\"<\"&$N$3+1,MoveType,\"Issue\")","v":3979.34640522876},{"$f":"SUMIFS(MoveQty,MoveCode,$A13,MoveDate,\">=\"&$N$2,MoveDate,\"<\"&$N$3+1,MoveType,\"Adjustment\")","v":5}]
["RM60","Glass","M2",1200,"-",1200,2000,0,0,-2670.7739938080499,20,549.22600619195009,{"$f":"SUMIFS(MoveQty,MoveCode,$A14,MoveDate,\">=\"&$N$2,MoveDate,\"<\"&$N$3+1,MoveType,\"Purchase\")","v":2000},{"$f":"SUMIFS(MoveQty,MoveCode,$A14,MoveDate,\">=\"&$N$2,MoveDate,\"<\"&$N$3+1,MoveType,\"Receipt\")","v":0},{"$f":"-SUMIFS(MoveQty,MoveCode,$A14,MoveDate,\">=\"&$N$2,MoveDate,\"<\"&$N$3+1,MoveType,\"Sale\")","v":0},{"$f":"-SUMIFS(MoveQty,MoveCode,$A14,MoveDate,\">=\"&$N$2,MoveDate,\"<\"&$N$3+1,MoveType,\"Issue\")","v":2670.7739938080499},{"$f":"SUMIFS(MoveQty,MoveCode,$A14,MoveDate,\">=\"&$N$2,MoveDate,\"<\"&$N$3+1,MoveType,\"Adjustment\")","v":20}]
["RM70","Filler","Bag",810,"-",810,1000,0,0,-1210.6432748538009,10,609.35672514619898,{"$f":"SUMIFS(MoveQty,MoveCode,$A15,MoveDate,\">=\"&$N$2,MoveDate,\"<\"&$N$3+1,MoveType,\"Purchase\")","v":1000},{"$f":"SUMIFS(MoveQty,MoveCode,$A15,MoveDate,\">=\"&$N$2,MoveDate,\"<\"&$N$3+1,MoveType,\"Receipt\")","v":0},{"$f":"-SUMIFS(MoveQty,MoveCode,$A15,MoveDate,\">=\"&$N$2,MoveDate,\"<\"&$N$3+1,MoveType,\"Sale\")","v":0},{"$f":"-SUMIFS(MoveQty,MoveCode,$A15,MoveDate,\">=\"&$N$2,MoveDate,\"<\"&$N$3+1,MoveType,\"Issue\")","v":1210.6432748538009},{"$f":"SUMIFS(MoveQty,MoveCode,$A15,MoveDate,\">=\"&$N$2,MoveDate,\"<\"&$N$3+1,MoveType,\"Adjustment\")","v":10}]
["RM75","Swivel","Units",963,"-",963,1520,0,0,-2380,-13,90,{"$f":"SUMIFS(MoveQty,MoveCode,$A16,MoveDate,\">=\"&$N$2,MoveDate,\"<\"&$N$3+1,MoveType,\"Purchase\")","v":1520},{"$f":"SUMIFS(MoveQty,MoveCode,$A16,MoveDate,\">=\"&$N$2,MoveDate,\"<\"&$N$3+1,MoveType,\"Receipt\")","v":0},{"$f":"-SUMIFS(MoveQty,MoveCode,$A16,MoveDate,\">=\"&$N$2,MoveDate,\"<\"&$N$3+1,MoveType,\"Sale\")","v":0},{"$f":"-SUMIFS(MoveQty,MoveCode,$A16,MoveDate,\">=\"&$N$2,MoveDate,\"<\"&$N$3+1,MoveType,\"Issue\")","v":2380},{"$f":"SUMIFS(MoveQty,MoveCode,$A16,MoveDate,\">=\"&$N$2,MoveDate,\"<\"&$N$3+1,MoveType,\"Adjustment\")","v":-13}]
["RM80","Paint - White","Drum",240,"-",240,0,0,0,-110,-5,125,{"$f":"SUMIFS(MoveQty,MoveCode,$A17,MoveDate,\">=\"&$N$2,MoveDate,\"<\"&$N$3+1,MoveType,\"Purchase\")","v":0},{"$f":"SUMIFS(MoveQty,MoveCode,$A17,MoveDate,\">=\"&$N$2,MoveDate,\"<\"&$N$3+1,MoveType,\"Receipt\")","v":0},{"$f":"-SUMIFS(MoveQty,MoveCode,$A17,MoveDate,\">=\"&$N$2,MoveDate,\"<\"&$N$3+1,MoveType,\"Sale\")","v":0},{"$f":"-SUMIFS(MoveQty,MoveCode,$A17,MoveDate,\">=\"&$N$2,MoveDate,\"<\"&$N$3+1,MoveType,\"Issue\")","v":110},{"$f":"SUMIFS(MoveQty,MoveCode,$A17,MoveDate,\">=\"&$N$2,MoveDate,\"<\"&$N$3+1,MoveType,\"Adjustment\")","v":-5}]
["RM85","Paint - Green","Drum",80,"-",80,0,0,0,-60,0,20,{"$f":"SUMIFS(MoveQty,MoveCode,$A18,MoveDate,\">=\"&$N$2,MoveDate,\"<\"&$N$3+1,MoveType,\"Purchase\")","v":0},{"$f":"SUMIFS(MoveQty,MoveCode,$A18,MoveDate,\">=\"&$N$2,MoveDate,\"<\"&$N$3+1,MoveType,\"Receipt\")","v":0},{"$f":"-SUMIFS(MoveQty,MoveCode,$A18,MoveDate,\">=\"&$N$2,MoveDate,\"<\"&$N$3+1,MoveType,\"Sale\")","v":0},{"$f":"-SUMIFS(MoveQty,MoveCode,$A18,MoveDate,\">=\"&$N$2,MoveDate,\"<\"&$N$3+1,MoveType,\"Issue\")","v":60},{"$f":"SUMIFS(MoveQty,MoveCode,$A18,MoveDate,\">=\"&$N$2,MoveDate,\"<\"&$N$3+1,MoveType,\"Adjustment\")","v":0}]

{"sheet":"Movements","index":4,"n_rows":91,"n_cols":12,"rows_kept":91,"cut":false,"hidden":true,"merged":[]}
["Stock Movements"]
["Record Inventory Movement Transactions"]
["© www.excel-skills.com"]
["Transaction Date","Transaction Type","Customer / Supplier Name","Document Number","Stock Code","Transaction Quantity","Error Code","Stock Description","UOM","Quantity on Hand: Prev","Quantity on Hand: New","Movement Date"]
["2021-07-03","Receipt","Manufactured","None","1212GHG",105,{"$f":"IF(AND(ISBLANK(E5)=FALSE,ISNA(VLOOKUP(E5,StockCodeOnly,1,0))=TRUE),\"E2\",IF(AND(ISBLANK(B5)=FALSE,B5<>\"Purchase\",B5<>\"Issue\",B5<>\"Adjustment\",B5<>\"Receipt\",B5<>\"Sale\"),\"E3\",IF(OR(J5<0,K5<0),\"E5\",\"-\")))","v":"-"},{"$f":"IF(ISNA(VLOOKUP($E5,StockCode[],COLUMN(StockCodes!$B$3),0))=TRUE,\"Invalid Stock Code\",VLOOKUP($E5,StockCode[],COLUMN(StockCodes!$B$3),0))","v":"Garden Shed"},{"$f":"IF(ISNA(VLOOKUP($E5,StockCode[],COLUMN(StockCodes!$C$3),0))=TRUE,\"-\",VLOOKUP($E5,StockCode[],COLUMN(StockCodes!$C$3),0))","v":"Units"},{"$f":"SUMIFS(StockOpenQty,StockCodeOnly,$E5)+SUMIFS(MoveQty,MoveDate,\"<\"&$L5,MoveCode,$E5)","v":1020},{"$f":"J5+F5","v":1125},{"$f":"IF(ISBLANK($A5)=TRUE,TODAY()+((ROW($A5)-(86400*ROUNDDOWN(ROW($A5)/86400,0)))/86400),$A5+((ROW($A5)-(86400*ROUNDDOWN(ROW($A5)/86400,0)))/86400))","v":"2021-07-03T00:00:05"}]
["2021-07-03","Issue","Component Usage","None","RM30",-1500,"-",{"$f":"IF(ISNA(VLOOKUP($E6,StockCode[],COLUMN(StockCodes!$B$3),0))=TRUE,\"Invalid Stock Code\",VLOOKUP($E6,StockCode[],COLUMN(StockCodes!$B$3),0))","v":"Wood"},{"$f":"IF(ISNA(VLOOKUP($E6,StockCode[],COLUMN(StockCodes!$C$3),0))=TRUE,\"-\",VLOOKUP($E6,StockCode[],COLUMN(StockCodes!$C$3),0))","v":"M2"},2000,500,"2021-07-03T00:00:06"]
["2021-07-03","Issue","Component Usage","None","RM55",-350,"-",{"$f":"IF(ISNA(VLOOKUP($E7,StockCode[],COLUMN(StockCodes!$B$3),0))=TRUE,\"Invalid Stock Code\",VLOOKUP($E7,StockCode[],COLUMN(StockCodes!$B$3),0))","v":"2 Inch Screws"},{"$f":"IF(ISNA(VLOOKUP($E7,StockCode[],COLUMN(StockCodes!$C$3),0))=TRUE,\"-\",VLOOKUP($E7,StockCode[],COLUMN(StockCodes!$C$3),0))","v":"Bag"},1000,650,"2021-07-03T00:00:07"]
["2021-07-03","Issue","Component Usage","None","RM10",-1200,"-",{"$f":"IF(ISNA(VLOOKUP($E8,StockCode[],COLUMN(StockCodes!$B$3),0))=TRUE,\"Invalid Stock Code\",VLOOKUP($E8,StockCode[],COLUMN(StockCodes!$B$3),0))","v":"Steel Plates"},{"$f":"IF(ISNA(VLOOKUP($E8,StockCode[],COLUMN(StockCodes!$C$3),0))=TRUE,\"-\",VLOOKUP($E8,StockCode[],COLUMN(StockCodes!$C$3),0))","v":"M2"},2000,800,"2021-07-03T00:00:08"]
["2021-07-03","Issue","Component Usage","None","RM25",-107,"-",{"$f":"IF(ISNA(VLOOKUP($E9,StockCode[],COLUMN(StockCodes!$B$3),0))=TRUE,\"Invalid Stock Code\",VLOOKUP($E9,StockCode[],COLUMN(StockCodes!$B$3),0))","v":"Door Handle"},{"$f":"IF(ISNA(VLOOKUP($E9,StockCode[],COLUMN(StockCodes!$C$3),0))=TRUE,\"-\",VLOOKUP($E9,StockCode[],COLUMN(StockCodes!$C$3),0))","v":"Units"},724,617,"2021-07-03T00:00:09"]
["2021-07-03","Issue","Component Usage","None","RM50",-12,"-",{"$f":"IF(ISNA(VLOOKUP($E10,StockCode[],COLUMN(StockCodes!$B$3),0))=TRUE,\"Invalid Stock Code\",VLOOKUP($E10,StockCode[],COLUMN(StockCodes!$B$3),0))","v":"1 Inch Screws"},{"$f":"IF(ISNA(VLOOKUP($E10,StockCode[],COLUMN(StockCodes!$C$3),0))=TRUE,\"-\",VLOOKUP($E10,StockCode[],COLUMN(StockCodes!$C$3),0))","v":"Bag"},50,38,"2021-07-03T00:00:10"]
["2021-07-03","Issue","Component Usage","None","RM60",-250,"-",{"$f":"IF(ISNA(VLOOKUP($E11,StockCode[],COLUMN(StockCodes!$B$3),0))=TRUE,\"Invalid Stock Code\",VLOOKUP($E11,StockCode[],COLUMN(StockCodes!$B$3),0))","v":"Glass"},{"$f":"IF(ISNA(VLOOKUP($E11,StockCode[],COLUMN(StockCodes!$C$3),0))=TRUE,\"-\",VLOOKUP($E11,StockCode[],COLUMN(StockCodes!$C$3),0))","v":"M2"},1200,950,"2021-07-03T00:00:11"]
["2021-07-03","Issue","Component Usage","None","RM70",-120,"-",{"$f":"IF(ISNA(VLOOKUP($E12,StockCode[],COLUMN(StockCodes!$B$3),0))=TRUE,\"Invalid Stock Code\",VLOOKUP($E12,StockCode[],COLUMN(StockCodes!$B$3),0))","v":"Filler"},{"$f":"IF(ISNA(VLOOKUP($E12,StockCode[],COLUMN(StockCodes!$C$3),0))=TRUE,\"-\",VLOOKUP($E12,StockCode[],COLUMN(StockCodes!$C$3),0))","v":"Bag"},810,690,"2021-07-03T00:00:12"]
["2021-07-03","Issue","Component Usage","None","RM75",-200,"-",{"$f":"IF(ISNA(VLOOKUP($E13,StockCode[],COLUMN(StockCodes!$B$3),0))=TRUE,\"Invalid Stock Code\",VLOOKUP($E13,StockCode[],COLUMN(StockCodes!$B$3),0))","v":"Swivel"},{"$f":"IF(ISNA(VLOOKUP($E13,StockCode[],COLUMN(StockCodes!$C$3),0))=TRUE,\"-\",VLOOKUP($E13,StockCode[],COLUMN(StockCodes!$C$3),0))","v":"Units"},963,763,"2021-07-03T00:00:13"]
["2021-07-03","Sale","J Stewart","IN0009","1212GHG",-750,"-",{"$f":"IF(ISNA(VLOOKUP($E14,StockCode[],COLUMN(StockCodes!$B$3),0))=TRUE,\"Invalid Stock Code\",VLOOKUP($E14,StockCode[],COLUMN(StockCodes!$B$3),0))","v":"Garden Shed"},{"$f":"IF(ISNA(VLOOKUP($E14,StockCode[],COLUMN(StockCodes!$C$3),0))=TRUE,\"-\",VLOOKUP($E14,StockCode[],COLUMN(StockCodes!$C$3),0))","v":"Units"},1125,375,"2021-07-03T00:00:14"]
["2021-07-25","Sale","G Smith","IN0010","1212PHP",-100,"-",{"$f":"IF(ISNA(VLOOKUP($E15,StockCode[],COLUMN(StockCodes!$B$3),0))=TRUE,\"Invalid Stock Code\",VLOOKUP($E15,StockCode[],COLUMN(StockCodes!$B$3),0))","v":"Painted Garden Shed"},{"$f":"IF(ISNA(VLOOKUP($E15,StockCode[],COLUMN(StockCodes!$C$3),0))=TRUE,\"-\",VLOOKUP($E15,StockCode[],COLUMN(StockCodes!$C$3),0))","v":"Units"},930,830,"2021-07-25T00:00:15"]
["2021-07-25","Purchase","ABC Supplies","I99823","RM30",10000,"-",{"$f":"IF(ISNA(VLOOKUP($E16,StockCode[],COLUMN(StockCodes!$B$3),0))=TRUE,\"Invalid Stock Code\",VLOOKUP($E16,StockCode[],COLUMN(StockCodes!$B$3),0))","v":"Wood"},{"$f":"IF(ISNA(VLOOKUP($E16,StockCode[],COLUMN(StockCodes!$C$3),0))=TRUE,\"-\",VLOOKUP($E16,StockCode[],COLUMN(StockCodes!$C$3),0))","v":"M2"},500,10500,"2021-07-25T00:00:16"]
["2021-07-25","Purchase","ABC Supplies","I99823","RM10",8000,"-",{"$f":"IF(ISNA(VLOOKUP($E17,StockCode[],COLUMN(StockCodes!$B$3),0))=TRUE,\"Invalid Stock Code\",VLOOKUP($E17,StockCode[],COLUMN(StockCodes!$B$3),0))","v":"Steel Plates"},{"$f":"IF(ISNA(VLOOKUP($E17,StockCode[],COLUMN(StockCodes!$C$3),0))=TRUE,\"-\",VLOOKUP($E17,StockCode[],COLUMN(StockCodes!$C$3),0))","v":"M2"},800,8800,"2021-07-25T00:00:17"]
["2021-07-25","Receipt","Manufactured","None","1212PHP",52,"-",{"$f":"IF(ISNA(VLOOKUP($E18,StockCode[],COLUMN(StockCodes!$B$3),0))=TRUE,\"Invalid Stock Code\",VLOOKUP($E18,StockCode[],COLUMN(StockCodes!$B$3),0))","v":"Painted Garden Shed"},{"$f":"IF(ISNA(VLOOKUP($E18,StockCode[],COLUMN(StockCodes!$C$3),0))=TRUE,\"-\",VLOOKUP($E18,StockCode[],COLUMN(StockCodes!$C$3),0))","v":"Units"},830,882,"2021-07-25T00:00:18"]
["2021-07-25","Issue","Component Usage","None","RM30",-750,"-",{"$f":"IF(ISNA(VLOOKUP($E19,StockCode[],COLUMN(StockCodes!$B$3),0))=TRUE,\"Invalid Stock Code\",VLOOKUP($E19,StockCode[],COLUMN(StockCodes!$B$3),0))","v":"Wood"},{"$f":"IF(ISNA(VLOOKUP($E19,StockCode[],COLUMN(StockCodes!$C$3),0))=TRUE,\"-\",VLOOKUP($E19,StockCode[],COLUMN(StockCodes!$C$3),0))","v":"M2"},10500,9750,"2021-07-25T00:00:19"]
["2021-07-25","Issue","Component Usage","None","RM55",-170,"-",{"$f":"IF(ISNA(VLOOKUP($E20,StockCode[],COLUMN(StockCodes!$B$3),0))=TRUE,\"Invalid Stock Code\",VLOOKUP($E20,StockCode[],COLUMN(StockCodes!$B$3),0))","v":"2 Inch Screws"},{"$f":"IF(ISNA(VLOOKUP($E20,StockCode[],COLUMN(StockCodes!$C$3),0))=TRUE,\"-\",VLOOKUP($E20,StockCode[],COLUMN(StockCodes!$C$3),0))","v":"Bag"},650,480,"2021-07-25T00:00:20"]
["2021-07-25","Issue","Component Usage","None","RM80",-110,"-",{"$f":"IF(ISNA(VLOOKUP($E21,StockCode[],COLUMN(StockCodes!$B$3),0))=TRUE,\"Invalid Stock Code\",VLOOKUP($E21,StockCode[],COLUMN(StockCodes!$B$3),0))","v":"Paint - White"},{"$f":"IF(ISNA(VLOOKUP($E21,StockCode[],COLUMN(StockCodes!$C$3),0))=TRUE,\"-\",VLOOKUP($E21,StockCode[],COLUMN(StockCodes!$C$3),0))","v":"Drum"},240,130,"2021-07-25T00:00:21"]
["2021-07-25","Issue","Component Usage","None","RM85",-60,"-",{"$f":"IF(ISNA(VLOOKUP($E22,StockCode[],COLUMN(StockCodes!$B$3),0))=TRUE,\"Invalid Stock Code\",VLOOKUP($E22,StockCode[],COLUMN(StockCodes!$B$3),0))","v":"Paint - Green"},{"$f":"IF(ISNA(VLOOKUP($E22,StockCode[],COLUMN(StockCodes!$C$3),0))=TRUE,\"-\",VLOOKUP($E22,StockCode[],COLUMN(StockCodes!$C$3),0))","v":"Drum"},80,20,"2021-07-25T00:00:22"]
["2021-07-25","Issue","Component Usage","None","RM10",-580,"-",{"$f":"IF(ISNA(VLOOKUP($E23,StockCode[],COLUMN(StockCodes!$B$3),0))=TRUE,\"Invalid Stock Code\",VLOOKUP($E23,StockCode[],COLUMN(StockCodes!$B$3),0))","v":"Steel Plates"},{"$f":"IF(ISNA(VLOOKUP($E23,StockCode[],COLUMN(StockCodes!$C$3),0))=TRUE,\"-\",VLOOKUP($E23,StockCode[],COLUMN(StockCodes!$C$3),0))","v":"M2"},8800,8220,"2021-07-25T00:00:23"]
["2021-07-25","Issue","Component Usage","None","RM25",-48,"-",{"$f":"IF(ISNA(VLOOKUP($E24,StockCode[],COLUMN(StockCodes!$B$3),0))=TRUE,\"Invalid Stock Code\",VLOOKUP($E24,StockCode[],COLUMN(StockCodes!$B$3),0))","v":"Door Handle"},{"$f":"IF(ISNA(VLOOKUP($E24,StockCode[],COLUMN(StockCodes!$C$3),0))=TRUE,\"-\",VLOOKUP($E24,StockCode[],COLUMN(StockCodes!$C$3),0))","v":"Units"},617,569,"2021-07-25T00:00:24"]
["2021-07-25","Issue","Component Usage","None","RM50",-6,"-",{"$f":"IF(ISNA(VLOOKUP($E25,StockCode[],COLUMN(StockCodes!$B$3),0))=TRUE,\"Invalid Stock Code\",VLOOKUP($E25,StockCode[],COLUMN(StockCodes!$B$3),0))","v":"1 Inch Screws"},{"$f":"IF(ISNA(VLOOKUP($E25,StockCode[],COLUMN(StockCodes!$C$3),0))=TRUE,\"-\",VLOOKUP($E25,StockCode[],COLUMN(StockCodes!$C$3),0))","v":"Bag"},38,32,"2021-07-25T00:00:25"]
["2021-07-25","Issue","Component Usage","None","RM60",-120,"-",{"$f":"IF(ISNA(VLOOKUP($E26,StockCode[],COLUMN(StockCodes!$B$3),0))=TRUE,\"Invalid Stock Code\",VLOOKUP($E26,StockCode[],COLUMN(StockCodes!$B$3),0))","v":"Glass"},{"$f":"IF(ISNA(VLOOKUP($E26,StockCode[],COLUMN(StockCodes!$C$3),0))=TRUE,\"-\",VLOOKUP($E26,StockCode[],COLUMN(StockCodes!$C$3),0))","v":"M2"},950,830,"2021-07-25T00:00:26"]
["2021-07-25","Issue","Component Usage","None","RM70",-60,"-",{"$f":"IF(ISNA(VLOOKUP($E27,StockCode[],COLUMN(StockCodes!$B$3),0))=TRUE,\"Invalid Stock Code\",VLOOKUP($E27,StockCode[],COLUMN(StockCodes!$B$3),0))","v":"Filler"},{"$f":"IF(ISNA(VLOOKUP($E27,StockCode[],COLUMN(StockCodes!$C$3),0))=TRUE,\"-\",VLOOKUP($E27,StockCode[],COLUMN(StockCodes!$C$3),0))","v":"Bag"},690,630,"2021-07-25T00:00:27"]
["2021-07-25","Issue","Component Usage","None","RM75",-100,"-",{"$f":"IF(ISNA(VLOOKUP($E28,StockCode[],COLUMN(StockCodes!$B$3),0))=TRUE,\"Invalid Stock Code\",VLOOKUP($E28,StockCode[],COLUMN(StockCodes!$B$3),0))","v":"Swivel"},{"$f":"IF(ISNA(VLOOKUP($E28,StockCode[],COLUMN(StockCodes!$C$3),0))=TRUE,\"-\",VLOOKUP($E28,StockCode[],COLUMN(StockCodes!$C$3),0))","v":"Units"},763,663,"2021-07-25T00:00:28"]
["2021-08-02","Purchase","ZX Parts","ZF66257","RM50",300,"-",{"$f":"IF(ISNA(VLOOKUP($E29,StockCode[],COLUMN(StockCodes!$B$3),0))=TRUE,\"Invalid Stock Code\",VLOOKUP($E29,StockCode[],COLUMN(StockCodes!$B$3),0))","v":"1 Inch Screws"},{"$f":"IF(ISNA(VLOOKUP($E29,StockCode[],COLUMN(StockCodes!$C$3),0))=TRUE,\"-\",VLOOKUP($E29,StockCode[],COLUMN(StockCodes!$C$3),0))","v":"Bag"},32,332,"2021-08-02T00:00:29"]
["2021-08-02","Purchase","ZX Parts","ZF66257","RM55",3000,"-",{"$f":"IF(ISNA(VLOOKUP($E30,StockCode[],COLUMN(StockCodes!$B$3),0))=TRUE,\"Invalid Stock Code\",VLOOKUP($E30,StockCode[],COLUMN(StockCodes!$B$3),0))","v":"2 Inch Screws"},{"$f":"IF(ISNA(VLOOKUP($E30,StockCode[],COLUMN(StockCodes!$C$3),0))=TRUE,\"-\",VLOOKUP($E30,StockCode[],COLUMN(StockCodes!$C$3),0))","v":"Bag"},480,3480,"2021-08-02T00:00:30"]
["2021-08-02","Purchase","ZX Parts","ZF66257","RM75",1520,"-",{"$f":"IF(ISNA(VLOOKUP($E31,StockCode[],COLUMN(StockCodes!$B$3),0))=TRUE,\"Invalid Stock Code\",VLOOKUP($E31,StockCode[],COLUMN(StockCodes!$B$3),0))","v":"Swivel"},{"$f":"IF(ISNA(VLOOKUP($E31,StockCode[],COLUMN(StockCodes!$C$3),0))=TRUE,\"-\",VLOOKUP($E31,StockCode[],COLUMN(StockCodes!$C$3),0))","v":"Units"},663,2183,"2021-08-02T00:00:31"]
["2021-08-02","Receipt","Manufactured","None","1212THT",75,"-",{"$f":"IF(ISNA(VLOOKUP($E32,StockCode[],COLUMN(StockCodes!$B$3),0))=TRUE,\"Invalid Stock Code\",VLOOKUP($E32,StockCode[],COLUMN(StockCodes!$B$3),0))","v":"Tools Shed"},{"$f":"IF(ISNA(VLOOKUP($E32,StockCode[],COLUMN(StockCodes!$C$3),0))=TRUE,\"-\",VLOOKUP($E32,StockCode[],COLUMN(StockCodes!$C$3),0))","v":"Units"},240,315,"2021-08-02T00:00:32"]
["2021-08-02","Issue","Component Usage","None","RM30",-850,"-",{"$f":"IF(ISNA(VLOOKUP($E33,StockCode[],COLUMN(StockCodes!$B$3),0))=TRUE,\"Invalid Stock Code\",VLOOKUP($E33,StockCode[],COLUMN(StockCodes!$B$3),0))","v":"Wood"},{"$f":"IF(ISNA(VLOOKUP($E33,StockCode[],COLUMN(StockCodes!$C$3),0))=TRUE,\"-\",VLOOKUP($E33,StockCode[],COLUMN(StockCodes!$C$3),0))","v":"M2"},9750,8900,"2021-08-02T00:00:33"]
["2021-08-02","Issue","Component Usage","None","RM55",-240,"-",{"$f":"IF(ISNA(VLOOKUP($E34,StockCode[],COLUMN(StockCodes!$B$3),0))=TRUE,\"Invalid Stock Code\",VLOOKUP($E34,StockCode[],COLUMN(StockCodes!$B$3),0))","v":"2 Inch Screws"},{"$f":"IF(ISNA(VLOOKUP($E34,StockCode[],COLUMN(StockCodes!$C$3),0))=TRUE,\"-\",VLOOKUP($E34,StockCode[],COLUMN(StockCodes!$C$3),0))","v":"Bag"},3480,3240,"2021-08-02T00:00:34"]
["2021-08-02","Issue","Component Usage","None","RM10",-800,"-",{"$f":"IF(ISNA(VLOOKUP($E35,StockCode[],COLUMN(StockCodes!$B$3),0))=TRUE,\"Invalid Stock Code\",VLOOKUP($E35,StockCode[],COLUMN(StockCodes!$B$3),0))","v":"Steel Plates"},{"$f":"IF(ISNA(VLOOKUP($E35,StockCode[],COLUMN(StockCodes!$C$3),0))=TRUE,\"-\",VLOOKUP($E35,StockCode[],COLUMN(StockCodes!$C$3),0))","v":"M2"},8220,7420,"2021-08-02T00:00:35"]
["2021-08-02","Issue","Component Usage","None","RM25",-74,"-",{"$f":"IF(ISNA(VLOOKUP($E36,StockCode[],COLUMN(StockCodes!$B$3),0))=TRUE,\"Invalid Stock Code\",VLOOKUP($E36,StockCode[],COLUMN(StockCodes!$B$3),0))","v":"Door Handle"},{"$f":"IF(ISNA(VLOOKUP($E36,StockCode[],COLUMN(StockCodes!$C$3),0))=TRUE,\"-\",VLOOKUP($E36,StockCode[],COLUMN(StockCodes!$C$3),0))","v":"Units"},569,495,"2021-08-02T00:00:36"]
["2021-08-02","Issue","Component Usage","None","RM50",-9,{"$f":"IF(AND(ISBLANK(E37)=FALSE,ISNA(VLOOKUP(E37,StockCodeOnly,1,0))=TRUE),\"E2\",IF(AND(ISBLANK(B37)=FALSE,B37<>\"Purchase\",B37<>\"Issue\",B37<>\"Adjustment\",B37<>\"Receipt\",B37<>\"Sale\"),\"E3\",IF(OR(J37<0,K37<0),\"E5\",\"-\")))","v":"-"},{"$f":"IF(ISNA(VLOOKUP($E37,StockCode[],COLUMN(StockCodes!$B$3),0))=TRUE,\"Invalid Stock Code\",VLOOKUP($E37,StockCode[],COLUMN(StockCodes!$B$3),0))","v":"1 Inch Screws"},{"$f":"IF(ISNA(VLOOKUP($E37,StockCode[],COLUMN(StockCodes!$C$3),0))=TRUE,\"-\",VLOOKUP($E37,StockCode[],COLUMN(StockCodes!$C$3),0))","v":"Bag"},{"$f":"SUMIFS(StockOpenQty,StockCodeOnly,$E37)+SUMIFS(MoveQty,MoveDate,\"<\"&$L37,MoveCode,$E37)","v":332},{"$f":"J37+F37","v":323},{"$f":"IF(ISBLANK($A37)=TRUE,TODAY()+((ROW($A37)-(86400*ROUNDDOWN(ROW($A37)/86400,0)))/86400),$A37+((ROW($A37)-(86400*ROUNDDOWN(ROW($A37)/86400,0)))/86400))","v":"2021-08-02T00:00:37"}]
["2021-08-02","Issue","Component Usage","None","RM75",-150,"-",{"$f":"IF(ISNA(VLOOKUP($E38,StockCode[],COLUMN(StockCodes!$B$3),0))=TRUE,\"Invalid Stock Code\",VLOOKUP($E38,StockCode[],COLUMN(StockCodes!$B$3),0))","v":"Swivel"},{"$f":"IF(ISNA(VLOOKUP($E38,StockCode[],COLUMN(StockCodes!$C$3),0))=TRUE,\"-\",VLOOKUP($E38,StockCode[],COLUMN(StockCodes!$C$3),0))","v":"Units"},2183,2033,"2021-08-02T00:00:38"]
["2021-08-02","Sale","B Foster","IN0011","1212THT",-240,"-",{"$f":"IF(ISNA(VLOOKUP($E39,StockCode[],COLUMN(StockCodes!$B$3),0))=TRUE,\"Invalid Stock Code\",VLOOKUP($E39,StockCode[],COLUMN(StockCodes!$B$3),0))","v":"Tools Shed"},{"$f":"IF(ISNA(VLOOKUP($E39,StockCode[],COLUMN(StockCodes!$C$3),0))=TRUE,\"-\",VLOOKUP($E39,StockCode[],COLUMN(StockCodes!$C$3),0))","v":"Units"},315,75,"2021-08-02T00:00:39"]
["2021-08-03","Sale","Q Lewis","IN0012","1212PHP",-410,"-",{"$f":"IF(ISNA(VLOOKUP($E40,StockCode[],COLUMN(StockCodes!$B$3),0))=TRUE,\"Invalid Stock Code\",VLOOKUP($E40,StockCode[],COLUMN(StockCodes!$B$3),0))","v":"Painted Garden Shed"},{"$f":"IF(ISNA(VLOOKUP($E40,StockCode[],COLUMN(StockCodes!$C$3),0))=TRUE,\"-\",VLOOKUP($E40,StockCode[],COLUMN(StockCodes!$C$3),0))","v":"Units"},882,472,"2021-08-03T00:00:40"]
["2021-08-10","Purchase","PG Glass","PG17783","RM60",2000,"-",{"$f":"IF(ISNA(VLOOKUP($E41,StockCode[],COLUMN(StockCodes!$B$3),0))=TRUE,\"Invalid Stock Code\",VLOOKUP($E41,StockCode[],COLUMN(StockCodes!$B$3),0))","v":"Glass"},{"$f":"IF(ISNA(VLOOKUP($E41,StockCode[],COLUMN(StockCodes!$C$3),0))=TRUE,\"-\",VLOOKUP($E41,StockCode[],COLUMN(StockCodes!$C$3),0))","v":"M2"},830,2830,"2021-08-10T00:00:41"]
["2021-08-10","Receipt","Manufactured","None","1212GHG",100,"-",{"$f":"IF(ISNA(VLOOKUP($E42,StockCode[],COLUMN(StockCodes!$B$3),0))=TRUE,\"Invalid Stock Code\",VLOOKUP($E42,StockCode[],COLUMN(StockCodes!$B$3),0))","v":"Garden Shed"},{"$f":"IF(ISNA(VLOOKUP($E42,StockCode[],COLUMN(StockCodes!$C$3),0))=TRUE,\"-\",VLOOKUP($E42,StockCode[],COLUMN(StockCodes!$C$3),0))","v":"Units"},375,475,"2021-08-10T00:00:42"]
["2021-08-10","Issue","Component Usage","None","RM30",-1400,"-",{"$f":"IF(ISNA(VLOOKUP($E43,StockCode[],COLUMN(StockCodes!$B$3),0))=TRUE,\"Invalid Stock Code\",VLOOKUP($E43,StockCode[],COLUMN(StockCodes!$B$3),0))","v":"Wood"},{"$f":"IF(ISNA(VLOOKUP($E43,StockCode[],COLUMN(StockCodes!$C$3),0))=TRUE,\"-\",VLOOKUP($E43,StockCode[],COLUMN(StockCodes!$C$3),0))","v":"M2"},8900,7500,"2021-08-10T00:00:43"]
["2021-08-10","Issue","Component Usage","None","RM55",-320,"-",{"$f":"IF(ISNA(VLOOKUP($E44,StockCode[],COLUMN(StockCodes!$B$3),0))=TRUE,\"Invalid Stock Code\",VLOOKUP($E44,StockCode[],COLUMN(StockCodes!$B$3),0))","v":"2 Inch Screws"},{"$f":"IF(ISNA(VLOOKUP($E44,StockCode[],COLUMN(StockCodes!$C$3),0))=TRUE,\"-\",VLOOKUP($E44,StockCode[],COLUMN(StockCodes!$C$3),0))","v":"Bag"},3240,2920,"2021-08-10T00:00:44"]
["2021-08-10","Issue","Component Usage","None","RM10",-1000,"-",{"$f":"IF(ISNA(VLOOKUP($E45,StockCode[],COLUMN(StockCodes!$B$3),0))=TRUE,\"Invalid Stock Code\",VLOOKUP($E45,StockCode[],COLUMN(StockCodes!$B$3),0))","v":"Steel Plates"},{"$f":"IF(ISNA(VLOOKUP($E45,StockCode[],COLUMN(StockCodes!$C$3),0))=TRUE,\"-\",VLOOKUP($E45,StockCode[],COLUMN(StockCodes!$C$3),0))","v":"M2"},7420,6420,"2021-08-10T00:00:45"]
["2021-08-10","Issue","Component Usage","None","RM25",-102,"-",{"$f":"IF(ISNA(VLOOKUP($E46,StockCode[],COLUMN(StockCodes!$B$3),0))=TRUE,\"Invalid Stock Code\",VLOOKUP($E46,StockCode[],COLUMN(StockCodes!$B$3),0))","v":"Door Handle"},{"$f":"IF(ISNA(VLOOKUP($E46,StockCode[],COLUMN(StockCodes!$C$3),0))=TRUE,\"-\",VLOOKUP($E46,StockCode[],COLUMN(StockCodes!$C$3),0))","v":"Units"},495,393,"2021-08-10T00:00:46"]
["2021-08-10","Issue","Component Usage","None","RM50",-9,"-",{"$f":"IF(ISNA(VLOOKUP($E47,StockCode[],COLUMN(StockCodes!$B$3),0))=TRUE,\"Invalid Stock Code\",VLOOKUP($E47,StockCode[],COLUMN(StockCodes!$B$3),0))","v":"1 Inch Screws"},{"$f":"IF(ISNA(VLOOKUP($E47,StockCode[],COLUMN(StockCodes!$C$3),0))=TRUE,\"-\",VLOOKUP($E47,StockCode[],COLUMN(StockCodes!$C$3),0))","v":"Bag"},323,314,"2021-08-10T00:00:47"]
["2021-08-10","Issue","Component Usage","None","RM60",-250,"-",{"$f":"IF(ISNA(VLOOKUP($E48,StockCode[],COLUMN(StockCodes!$B$3),0))=TRUE,\"Invalid Stock Code\",VLOOKUP($E48,StockCode[],COLUMN(StockCodes!$B$3),0))","v":"Glass"},{"$f":"IF(ISNA(VLOOKUP($E48,StockCode[],COLUMN(StockCodes!$C$3),0))=TRUE,\"-\",VLOOKUP($E48,StockCode[],COLUMN(StockCodes!$C$3),0))","v":"M2"},2830,2580,"2021-08-10T00:00:48"]
["2021-08-10","Issue","Component Usage","None","RM70",-100,"-",{"$f":"IF(ISNA(VLOOKUP($E49,StockCode[],COLUMN(StockCodes!$B$3),0))=TRUE,\"Invalid Stock Code\",VLOOKUP($E49,StockCode[],COLUMN(StockCodes!$B$3),0))","v":"Filler"},{"$f":"IF(ISNA(VLOOKUP($E49,StockCode[],COLUMN(StockCodes!$C$3),0))=TRUE,\"-\",VLOOKUP($E49,StockCode[],COLUMN(StockCodes!$C$3),0))","v":"Bag"},630,530,"2021-08-10T00:00:49"]
["2021-08-10","Issue","Component Usage","None","RM75",-220,"-",{"$f":"IF(ISNA(VLOOKUP($E50,StockCode[],COLUMN(StockCodes!$B$3),0))=TRUE,\"Invalid Stock Code\",VLOOKUP($E50,StockCode[],COLUMN(StockCodes!$B$3),0))","v":"Swivel"},{"$f":"IF(ISNA(VLOOKUP($E50,StockCode[],COLUMN(StockCodes!$C$3),0))=TRUE,\"-\",VLOOKUP($E50,StockCode[],COLUMN(StockCodes!$C$3),0))","v":"Units"},2033,1813,"2021-08-10T00:00:50"]
["2021-08-18","Receipt","Manufactured","None","1212GHG",300,"-",{"$f":"IF(ISNA(VLOOKUP($E51,StockCode[],COLUMN(StockCodes!$B$3),0))=TRUE,\"Invalid Stock Code\",VLOOKUP($E51,StockCode[],COLUMN(StockCodes!$B$3),0))","v":"Garden Shed"},{"$f":"IF(ISNA(VLOOKUP($E51,StockCode[],COLUMN(StockCodes!$C$3),0))=TRUE,\"-\",VLOOKUP($E51,StockCode[],COLUMN(StockCodes!$C$3),0))","v":"Units"},475,775,"2021-08-18T00:00:51"]
["2021-08-18","Issue","Component Usage","None","RM30",-4450,"-",{"$f":"IF(ISNA(VLOOKUP($E52,StockCode[],COLUMN(StockCodes!$B$3),0))=TRUE,\"Invalid Stock Code\",VLOOKUP($E52,StockCode[],COLUMN(StockCodes!$B$3),0))","v":"Wood"},{"$f":"IF(ISNA(VLOOKUP($E52,StockCode[],COLUMN(StockCodes!$C$3),0))=TRUE,\"-\",VLOOKUP($E52,StockCode[],COLUMN(StockCodes!$C$3),0))","v":"M2"},7500,3050,"2021-08-18T00:00:52"]
["2021-08-18","Issue","Component Usage","None","RM55",-1000,"-",{"$f":"IF(ISNA(VLOOKUP($E53,StockCode[],COLUMN(StockCodes!$B$3),0))=TRUE,\"Invalid Stock Code\",VLOOKUP($E53,StockCode[],COLUMN(StockCodes!$B$3),0))","v":"2 Inch Screws"},{"$f":"IF(ISNA(VLOOKUP($E53,StockCode[],COLUMN(StockCodes!$C$3),0))=TRUE,\"-\",VLOOKUP($E53,StockCode[],COLUMN(StockCodes!$C$3),0))","v":"Bag"},2920,1920,"2021-08-18T00:00:53"]
["2021-08-18","Issue","Component Usage","None","RM10",-3310,"-",{"$f":"IF(ISNA(VLOOKUP($E54,StockCode[],COLUMN(StockCodes!$B$3),0))=TRUE,\"Invalid Stock Code\",VLOOKUP($E54,StockCode[],COLUMN(StockCodes!$B$3),0))","v":"Steel Plates"},{"$f":"IF(ISNA(VLOOKUP($E54,StockCode[],COLUMN(StockCodes!$C$3),0))=TRUE,\"-\",VLOOKUP($E54,StockCode[],COLUMN(StockCodes!$C$3),0))","v":"M2"},6420,3110,"2021-08-18T00:00:54"]
["2021-08-18","Issue","Component Usage","None","RM25",-273,"-",{"$f":"IF(ISNA(VLOOKUP($E55,StockCode[],COLUMN(StockCodes!$B$3),0))=TRUE,\"Invalid Stock Code\",VLOOKUP($E55,StockCode[],COLUMN(StockCodes!$B$3),0))","v":"Door Handle"},{"$f":"IF(ISNA(VLOOKUP($E55,StockCode[],COLUMN(StockCodes!$C$3),0))=TRUE,\"-\",VLOOKUP($E55,StockCode[],COLUMN(StockCodes!$C$3),0))","v":"Units"},393,120,"2021-08-18T00:00:55"]
["2021-08-18","Issue","Component Usage","None","RM50",-40,"-",{"$f":"IF(ISNA(VLOOKUP($E56,StockCode[],COLUMN(StockCodes!$B$3),0))=TRUE,\"Invalid Stock Code\",VLOOKUP($E56,StockCode[],COLUMN(StockCodes!$B$3),0))","v":"1 Inch Screws"},{"$f":"IF(ISNA(VLOOKUP($E56,StockCode[],COLUMN(StockCodes!$C$3),0))=TRUE,\"-\",VLOOKUP($E56,StockCode[],COLUMN(StockCodes!$C$3),0))","v":"Bag"},314,274,"2021-08-18T00:00:56"]
["2021-08-18","Issue","Component Usage","None","RM60",-800,"-",{"$f":"IF(ISNA(VLOOKUP($E57,StockCode[],COLUMN(StockCodes!$B$3),0))=TRUE,\"Invalid Stock Code\",VLOOKUP($E57,StockCode[],COLUMN(StockCodes!$B$3),0))","v":"Glass"},{"$f":"IF(ISNA(VLOOKUP($E57,StockCode[],COLUMN(StockCodes!$C$3),0))=TRUE,\"-\",VLOOKUP($E57,StockCode[],COLUMN(StockCodes!$C$3),0))","v":"M2"},2580,1780,"2021-08-18T00:00:57"]
["2021-08-18","Issue","Component Usage","None","RM70",-340,"-",{"$f":"IF(ISNA(VLOOKUP($E58,StockCode[],COLUMN(StockCodes!$B$3),0))=TRUE,\"Invalid Stock Code\",VLOOKUP($E58,StockCode[],COLUMN(StockCodes!$B$3),0))","v":"Filler"},{"$f":"IF(ISNA(VLOOKUP($E58,StockCode[],COLUMN(StockCodes!$C$3),0))=TRUE,\"-\",VLOOKUP($E58,StockCode[],COLUMN(StockCodes!$C$3),0))","v":"Bag"},530,190,"2021-08-18T00:00:58"]
["2021-08-18","Issue","Component Usage","None","RM75",-610,"-",{"$f":"IF(ISNA(VLOOKUP($E59,StockCode[],COLUMN(StockCodes!$B$3),0))=TRUE,\"Invalid Stock Code\",VLOOKUP($E59,StockCode[],COLUMN(StockCodes!$B$3),0))","v":"Swivel"},{"$f":"IF(ISNA(VLOOKUP($E59,StockCode[],COLUMN(StockCodes!$C$3),0))=TRUE,\"-\",VLOOKUP($E59,StockCode[],COLUMN(StockCodes!$C$3),0))","v":"Units"},1813,1203,"2021-08-18T00:00:59"]
["2021-08-21","Receipt","Manufactured","None","1212THT",50,"-",{"$f":"IF(ISNA(VLOOKUP($E60,StockCode[],COLUMN(StockCodes!$B$3),0))=TRUE,\"Invalid Stock Code\",VLOOKUP($E60,StockCode[],COLUMN(StockCodes!$B$3),0))","v":"Tools Shed"},{"$f":"IF(ISNA(VLOOKUP($E60,StockCode[],COLUMN(StockCodes!$C$3),0))=TRUE,\"-\",VLOOKUP($E60,StockCode[],COLUMN(StockCodes!$C$3),0))","v":"Units"},75,125,"2021-08-21T00:01:00"]
["2021-08-21","Issue","Component Usage","None","RM30",-700,"-",{"$f":"IF(ISNA(VLOOKUP($E61,StockCode[],COLUMN(StockCodes!$B$3),0))=TRUE,\"Invalid Stock Code\",VLOOKUP($E61,StockCode[],COLUMN(StockCodes!$B$3),0))","v":"Wood"},{"$f":"IF(ISNA(VLOOKUP($E61,StockCode[],COLUMN(StockCodes!$C$3),0))=TRUE,\"-\",VLOOKUP($E61,StockCode[],COLUMN(StockCodes!$C$3),0))","v":"M2"},3050,2350,"2021-08-21T00:01:01"]
["2021-08-21","Issue","Component Usage","None","RM55",-150,"-",{"$f":"IF(ISNA(VLOOKUP($E62,StockCode[],COLUMN(StockCodes!$B$3),0))=TRUE,\"Invalid Stock Code\",VLOOKUP($E62,StockCode[],COLUMN(StockCodes!$B$3),0))","v":"2 Inch Screws"},{"$f":"IF(ISNA(VLOOKUP($E62,StockCode[],COLUMN(StockCodes!$C$3),0))=TRUE,\"-\",VLOOKUP($E62,StockCode[],COLUMN(StockCodes!$C$3),0))","v":"Bag"},1920,1770,"2021-08-21T00:01:02"]
["2021-08-21","Issue","Component Usage","None","RM10",-560,"-",{"$f":"IF(ISNA(VLOOKUP($E63,StockCode[],COLUMN(StockCodes!$B$3),0))=TRUE,\"Invalid Stock Code\",VLOOKUP($E63,StockCode[],COLUMN(StockCodes!$B$3),0))","v":"Steel Plates"},{"$f":"IF(ISNA(VLOOKUP($E63,StockCode[],COLUMN(StockCodes!$C$3),0))=TRUE,\"-\",VLOOKUP($E63,StockCode[],COLUMN(StockCodes!$C$3),0))","v":"M2"},3110,2550,"2021-08-21T00:01:03"]
["2021-08-21","Issue","Component Usage","None","RM25",-53,"-",{"$f":"IF(ISNA(VLOOKUP($E64,StockCode[],COLUMN(StockCodes!$B$3),0))=TRUE,\"Invalid Stock Code\",VLOOKUP($E64,StockCode[],COLUMN(StockCodes!$B$3),0))","v":"Door Handle"},{"$f":"IF(ISNA(VLOOKUP($E64,StockCode[],COLUMN(StockCodes!$C$3),0))=TRUE,\"-\",VLOOKUP($E64,StockCode[],COLUMN(StockCodes!$C$3),0))","v":"Units"},120,67,"2021-08-21T00:01:04"]
["2021-08-21","Issue","Component Usage","None","RM50",-6,"-",{"$f":"IF(ISNA(VLOOKUP($E65,StockCode[],COLUMN(StockCodes!$B$3),0))=TRUE,\"Invalid Stock Code\",VLOOKUP($E65,StockCode[],COLUMN(StockCodes!$B$3),0))","v":"1 Inch Screws"},{"$f":"IF(ISNA(VLOOKUP($E65,StockCode[],COLUMN(StockCodes!$C$3),0))=TRUE,\"-\",VLOOKUP($E65,StockCode[],COLUMN(StockCodes!$C$3),0))","v":"Bag"},274,268,"2021-08-21T00:01:05"]
["2021-08-21","Issue","Component Usage","None","RM75",-90,"-",{"$f":"IF(ISNA(VLOOKUP($E66,StockCode[],COLUMN(StockCodes!$B$3),0))=TRUE,\"Invalid Stock Code\",VLOOKUP($E66,StockCode[],COLUMN(StockCodes!$B$3),0))","v":"Swivel"},{"$f":"IF(ISNA(VLOOKUP($E66,StockCode[],COLUMN(StockCodes!$C$3),0))=TRUE,\"-\",VLOOKUP($E66,StockCode[],COLUMN(StockCodes!$C$3),0))","v":"Units"},1203,1113,"2021-08-21T00:01:06"]
["2021-08-21","Sale","Woolworths","IN0013","1212GHG",-300,"-",{"$f":"IF(ISNA(VLOOKUP($E67,StockCode[],COLUMN(StockCodes!$B$3),0))=TRUE,\"Invalid Stock Code\",VLOOKUP($E67,StockCode[],COLUMN(StockCodes!$B$3),0))","v":"Garden Shed"},{"$f":"IF(ISNA(VLOOKUP($E67,StockCode[],COLUMN(StockCodes!$C$3),0))=TRUE,\"-\",VLOOKUP($E67,StockCode[],COLUMN(StockCodes!$C$3),0))","v":"Units"},775,475,"2021-08-21T00:01:07"]
["2021-08-30","Purchase","RT General Dealer","RE98982","RM70",1000,"-",{"$f":"IF(ISNA(VLOOKUP($E68,StockCode[],COLUMN(StockCodes!$B$3),0))=TRUE,\"Invalid Stock Code\",VLOOKUP($E68,StockCode[],COLUMN(StockCodes!$B$3),0))","v":"Filler"},{"$f":"IF(ISNA(VLOOKUP($E68,StockCode[],COLUMN(StockCodes!$C$3),0))=TRUE,\"-\",VLOOKUP($E68,StockCode[],COLUMN(StockCodes!$C$3),0))","v":"Bag"},190,1190,"2021-08-30T00:01:08"]
["2021-08-30","Purchase","RT General Dealer","RE98982","RM25",740,{"$f":"IF(AND(ISBLANK(E69)=FALSE,ISNA(VLOOKUP(E69,StockCodeOnly,1,0))=TRUE),\"E2\",IF(AND(ISBLANK(B69)=FALSE,B69<>\"Purchase\",B69<>\"Issue\",B69<>\"Adjustment\",B69<>\"Receipt\",B69<>\"Sale\"),\"E3\",IF(OR(J69<0,K69<0),\"E5\",\"-\")))","v":"-"},{"$f":"IF(ISNA(VLOOKUP($E69,StockCode[],COLUMN(StockCodes!$B$3),0))=TRUE,\"Invalid Stock Code\",VLOOKUP($E69,StockCode[],COLUMN(StockCodes!$B$3),0))","v":"Door Handle"},{"$f":"IF(ISNA(VLOOKUP($E69,StockCode[],COLUMN(StockCodes!$C$3),0))=TRUE,\"-\",VLOOKUP($E69,StockCode[],COLUMN(StockCodes!$C$3),0))","v":"Units"},{"$f":"SUMIFS(StockOpenQty,StockCodeOnly,$E69)+SUMIFS(MoveQty,MoveDate,\"<\"&$L69,MoveCode,$E69)","v":67},{"$f":"J69+F69","v":807},{"$f":"IF(ISBLANK($A69)=TRUE,TODAY()+((ROW($A69)-(86400*ROUNDDOWN(ROW($A69)/86400,0)))/86400),$A69+((ROW($A69)-(86400*ROUNDDOWN(ROW($A69)/86400,0)))/86400))","v":"2021-08-30T00:01:09"}]
["2021-08-30","Purchase","ABC Supplies","I99928","RM30",12000,"-",{"$f":"IF(ISNA(VLOOKUP($E70,StockCode[],COLUMN(StockCodes!$B$3),0))=TRUE,\"Invalid Stock Code\",VLOOKUP($E70,StockCode[],COLUMN(StockCodes!$B$3),0))","v":"Wood"},{"$f":"IF(ISNA(VLOOKUP($E70,StockCode[],COLUMN(StockCodes!$C$3),0))=TRUE,\"-\",VLOOKUP($E70,StockCode[],COLUMN(StockCodes!$C$3),0))","v":"M2"},2350,14350,"2021-08-30T00:01:10"]
["2021-08-30","Purchase","ABC Supplies","I99928","RM10",9000,"-",{"$f":"IF(ISNA(VLOOKUP($E71,StockCode[],COLUMN(StockCodes!$B$3),0))=TRUE,\"Invalid Stock Code\",VLOOKUP($E71,StockCode[],COLUMN(StockCodes!$B$3),0))","v":"Steel Plates"},{"$f":"IF(ISNA(VLOOKUP($E71,StockCode[],COLUMN(StockCodes!$C$3),0))=TRUE,\"-\",VLOOKUP($E71,StockCode[],COLUMN(StockCodes!$C$3),0))","v":"M2"},2550,11550,"2021-08-30T00:01:11"]
["2021-08-30","Sale","Builders Warehouse","IN0014","1212GHG",-300,"-",{"$f":"IF(ISNA(VLOOKUP($E72,StockCode[],COLUMN(StockCodes!$B$3),0))=TRUE,\"Invalid Stock Code\",VLOOKUP($E72,StockCode[],COLUMN(StockCodes!$B$3),0))","v":"Garden Shed"},{"$f":"IF(ISNA(VLOOKUP($E72,StockCode[],COLUMN(StockCodes!$C$3),0))=TRUE,\"-\",VLOOKUP($E72,StockCode[],COLUMN(StockCodes!$C$3),0))","v":"Units"},475,175,"2021-08-30T00:01:12"]
["2021-08-30","Sale","Builders Warehouse","IN0014","1212PHP",-100,"-",{"$f":"IF(ISNA(VLOOKUP($E73,StockCode[],COLUMN(StockCodes!$B$3),0))=TRUE,\"Invalid Stock Code\",VLOOKUP($E73,StockCode[],COLUMN(StockCodes!$B$3),0))","v":"Painted Garden Shed"},{"$f":"IF(ISNA(VLOOKUP($E73,StockCode[],COLUMN(StockCodes!$C$3),0))=TRUE,\"-\",VLOOKUP($E73,StockCode[],COLUMN(StockCodes!$C$3),0))","v":"Units"},472,372,"2021-08-30T00:01:13"]
["2021-08-30","Adjustment","Stock Count","None","1212PHP",-2,"-",{"$f":"IF(ISNA(VLOOKUP($E74,StockCode[],COLUMN(StockCodes!$B$3),0))=TRUE,\"Invalid Stock Code\",VLOOKUP($E74,StockCode[],COLUMN(StockCodes!$B$3),0))","v":"Painted Garden Shed"},{"$f":"IF(ISNA(VLOOKUP($E74,StockCode[],COLUMN(StockCodes!$C$3),0))=TRUE,\"-\",VLOOKUP($E74,StockCode[],COLUMN(StockCodes!$C$3),0))","v":"Units"},372,370,"2021-08-30T00:01:14"]
["2021-08-30","Adjustment","Stock Count","None","RM25",-7,"-",{"$f":"IF(ISNA(VLOOKUP($E75,StockCode[],COLUMN(StockCodes!$B$3),0))=TRUE,\"Invalid Stock Code\",VLOOKUP($E75,StockCode[],COLUMN(StockCodes!$B$3),0))","v":"Door Handle"},{"$f":"IF(ISNA(VLOOKUP($E75,StockCode[],COLUMN(StockCodes!$C$3),0))=TRUE,\"-\",VLOOKUP($E75,StockCode[],COLUMN(StockCodes!$C$3),0))","v":"Units"},807,800,"2021-08-30T00:01:15"]
["2021-08-30","Adjustment","Stock Count","None","RM30",-100,"-",{"$f":"IF(ISNA(VLOOKUP($E76,StockCode[],COLUMN(StockCodes!$B$3),0))=TRUE,\"Invalid Stock Code\",VLOOKUP($E76,StockCode[],COLUMN(StockCodes!$B$3),0))","v":"Wood"},{"$f":"IF(ISNA(VLOOKUP($E76,StockCode[],COLUMN(StockCodes!$C$3),0))=TRUE,\"-\",VLOOKUP($E76,StockCode[],COLUMN(StockCodes!$C$3),0))","v":"M2"},14350,14250,"2021-08-30T00:01:16"]
["2021-08-30","Adjustment","Stock Count","None","RM50",-18,"-",{"$f":"IF(ISNA(VLOOKUP($E77,StockCode[],COLUMN(StockCodes!$B$3),0))=TRUE,\"Invalid Stock Code\",VLOOKUP($E77,StockCode[],COLUMN(StockCodes!$B$3),0))","v":"1 Inch Screws"},{"$f":"IF(ISNA(VLOOKUP($E77,StockCode[],COLUMN(StockCodes!$C$3),0))=TRUE,\"-\",VLOOKUP($E77,StockCode[],COLUMN(StockCodes!$C$3),0))","v":"Bag"},268,250,"2021-08-30T00:01:17"]
["2021-08-30","Adjustment","Stock Count","None","RM55",5,"-",{"$f":"IF(ISNA(VLOOKUP($E78,StockCode[],COLUMN(StockCodes!$B$3),0))=TRUE,\"Invalid Stock Code\",VLOOKUP($E78,StockCode[],COLUMN(StockCodes!$B$3),0))","v":"2 Inch Screws"},{"$f":"IF(ISNA(VLOOKUP($E78,StockCode[],COLUMN(StockCodes!$C$3),0))=TRUE,\"-\",VLOOKUP($E78,StockCode[],COLUMN(StockCodes!$C$3),0))","v":"Bag"},1770,1775,"2021-08-30T00:01:18"]
["2021-08-30","Adjustment","Stock Count","None","RM60",20,"-",{"$f":"IF(ISNA(VLOOKUP($E79,StockCode[],COLUMN(StockCodes!$B$3),0))=TRUE,\"Invalid Stock Code\",VLOOKUP($E79,StockCode[],COLUMN(StockCodes!$B$3),0))","v":"Glass"},{"$f":"IF(ISNA(VLOOKUP($E79,StockCode[],COLUMN(StockCodes!$C$3),0))=TRUE,\"-\",VLOOKUP($E79,StockCode[],COLUMN(StockCodes!$C$3),0))","v":"M2"},1780,1800,"2021-08-30T00:01:19"]
["2021-08-30","Adjustment","Stock Count","None","RM70",10,"-",{"$f":"IF(ISNA(VLOOKUP($E80,StockCode[],COLUMN(StockCodes!$B$3),0))=TRUE,\"Invalid Stock Code\",VLOOKUP($E80,StockCode[],COLUMN(StockCodes!$B$3),0))","v":"Filler"},{"$f":"IF(ISNA(VLOOKUP($E80,StockCode[],COLUMN(StockCodes!$C$3),0))=TRUE,\"-\",VLOOKUP($E80,StockCode[],COLUMN(StockCodes!$C$3),0))","v":"Bag"},1190,1200,"2021-08-30T00:01:20"]
["2021-08-30","Adjustment","Stock Count","None","RM75",-13,"-",{"$f":"IF(ISNA(VLOOKUP($E81,StockCode[],COLUMN(StockCodes!$B$3),0))=TRUE,\"Invalid Stock Code\",VLOOKUP($E81,StockCode[],COLUMN(StockCodes!$B$3),0))","v":"Swivel"},{"$f":"IF(ISNA(VLOOKUP($E81,StockCode[],COLUMN(StockCodes!$C$3),0))=TRUE,\"-\",VLOOKUP($E81,StockCode[],COLUMN(StockCodes!$C$3),0))","v":"Units"},1113,1100,"2021-08-30T00:01:21"]
["2021-08-30","Adjustment","Stock Count","None","RM80",-5,"-",{"$f":"IF(ISNA(VLOOKUP($E82,StockCode[],COLUMN(StockCodes!$B$3),0))=TRUE,\"Invalid Stock Code\",VLOOKUP($E82,StockCode[],COLUMN(StockCodes!$B$3),0))","v":"Paint - White"},{"$f":"IF(ISNA(VLOOKUP($E82,StockCode[],COLUMN(StockCodes!$C$3),0))=TRUE,\"-\",VLOOKUP($E82,StockCode[],COLUMN(StockCodes!$C$3),0))","v":"Drum"},130,125,"2021-08-30T00:01:22"]
["2021-09-09","Receipt","Manufactured","None","1212GHG",505,"-",{"$f":"IF(ISNA(VLOOKUP($E83,StockCode[],COLUMN(StockCodes!$B$3),0))=TRUE,\"Invalid Stock Code\",VLOOKUP($E83,StockCode[],COLUMN(StockCodes!$B$3),0))","v":"Garden Shed"},{"$f":"IF(ISNA(VLOOKUP($E83,StockCode[],COLUMN(StockCodes!$C$3),0))=TRUE,\"-\",VLOOKUP($E83,StockCode[],COLUMN(StockCodes!$C$3),0))","v":"Units"},175,680,"2021-09-09T00:01:23"]
["2021-09-09","Issue","Component Usage","None","RM10",-5611.1111111111104,"-",{"$f":"IF(ISNA(VLOOKUP($E84,StockCode[],COLUMN(StockCodes!$B$3),0))=TRUE,\"Invalid Stock Code\",VLOOKUP($E84,StockCode[],COLUMN(StockCodes!$B$3),0))","v":"Steel Plates"},{"$f":"IF(ISNA(VLOOKUP($E84,StockCode[],COLUMN(StockCodes!$C$3),0))=TRUE,\"-\",VLOOKUP($E84,StockCode[],COLUMN(StockCodes!$C$3),0))","v":"M2"},11550,5938.8888888888896,"2021-09-09T00:01:24"]
["2021-09-09","Issue","Component Usage","None","RM25",-505,"-",{"$f":"IF(ISNA(VLOOKUP($E85,StockCode[],COLUMN(StockCodes!$B$3),0))=TRUE,\"Invalid Stock Code\",VLOOKUP($E85,StockCode[],COLUMN(StockCodes!$B$3),0))","v":"Door Handle"},{"$f":"IF(ISNA(VLOOKUP($E85,StockCode[],COLUMN(StockCodes!$C$3),0))=TRUE,\"-\",VLOOKUP($E85,StockCode[],COLUMN(StockCodes!$C$3),0))","v":"Units"},800,295,"2021-09-09T00:01:25"]
["2021-09-09","Issue","Component Usage","None","RM30",-7501.1695906432697,"-",{"$f":"IF(ISNA(VLOOKUP($E86,StockCode[],COLUMN(StockCodes!$B$3),0))=TRUE,\"Invalid Stock Code\",VLOOKUP($E86,StockCode[],COLUMN(StockCodes!$B$3),0))","v":"Wood"},{"$f":"IF(ISNA(VLOOKUP($E86,StockCode[],COLUMN(StockCodes!$C$3),0))=TRUE,\"-\",VLOOKUP($E86,StockCode[],COLUMN(StockCodes!$C$3),0))","v":"M2"},14250,6748.8304093567303,"2021-09-09T00:01:26"]
["2021-09-09","Issue","Component Usage","None","RM50",-56.1111111111111,"-",{"$f":"IF(ISNA(VLOOKUP($E87,StockCode[],COLUMN(StockCodes!$B$3),0))=TRUE,\"Invalid Stock Code\",VLOOKUP($E87,StockCode[],COLUMN(StockCodes!$B$3),0))","v":"1 Inch Screws"},{"$f":"IF(ISNA(VLOOKUP($E87,StockCode[],COLUMN(StockCodes!$C$3),0))=TRUE,\"-\",VLOOKUP($E87,StockCode[],COLUMN(StockCodes!$C$3),0))","v":"Bag"},250,193.88888888888891,"2021-09-09T00:01:27"]
["2021-09-09","Issue","Component Usage","None","RM55",-1749.34640522876,"-",{"$f":"IF(ISNA(VLOOKUP($E88,StockCode[],COLUMN(StockCodes!$B$3),0))=TRUE,\"Invalid Stock Code\",VLOOKUP($E88,StockCode[],COLUMN(StockCodes!$B$3),0))","v":"2 Inch Screws"},{"$f":"IF(ISNA(VLOOKUP($E88,StockCode[],COLUMN(StockCodes!$C$3),0))=TRUE,\"-\",VLOOKUP($E88,StockCode[],COLUMN(StockCodes!$C$3),0))","v":"Bag"},1775,25.653594771240023,"2021-09-09T00:01:28"]
["2021-09-09","Issue","Component Usage","None","RM60",-1250.7739938080499,"-",{"$f":"IF(ISNA(VLOOKUP($E89,StockCode[],COLUMN(StockCodes!$B$3),0))=TRUE,\"Invalid Stock Code\",VLOOKUP($E89,StockCode[],COLUMN(StockCodes!$B$3),0))","v":"Glass"},{"$f":"IF(ISNA(VLOOKUP($E89,StockCode[],COLUMN(StockCodes!$C$3),0))=TRUE,\"-\",VLOOKUP($E89,StockCode[],COLUMN(StockCodes!$C$3),0))","v":"M2"},1800,549.22600619195009,"2021-09-09T00:01:29"]
["2021-09-09","Issue","Component Usage","None","RM70",-590.64327485380102,"-",{"$f":"IF(ISNA(VLOOKUP($E90,StockCode[],COLUMN(StockCodes!$B$3),0))=TRUE,\"Invalid Stock Code\",VLOOKUP($E90,StockCode[],COLUMN(StockCodes!$B$3),0))","v":"Filler"},{"$f":"IF(ISNA(VLOOKUP($E90,StockCode[],COLUMN(StockCodes!$C$3),0))=TRUE,\"-\",VLOOKUP($E90,StockCode[],COLUMN(StockCodes!$C$3),0))","v":"Bag"},1200,609.35672514619898,"2021-09-09T00:01:30"]
["2021-09-09","Issue","Component Usage","None","RM75",-1010,"-",{"$f":"IF(ISNA(VLOOKUP($E91,StockCode[],COLUMN(StockCodes!$B$3),0))=TRUE,\"Invalid Stock Code\",VLOOKUP($E91,StockCode[],COLUMN(StockCodes!$B$3),0))","v":"Swivel"},{"$f":"IF(ISNA(VLOOKUP($E91,StockCode[],COLUMN(StockCodes!$C$3),0))=TRUE,\"-\",VLOOKUP($E91,StockCode[],COLUMN(StockCodes!$C$3),0))","v":"Units"},1100,90,"2021-09-09T00:01:31"]

{"sheet":"StockCount","index":5,"n_rows":17,"n_cols":7,"rows_kept":17,"cut":false,"hidden":true,"merged":[]}
["Stock Count Variance Report",null,null,null,null,"Count Date","2021-07-12"]
["Calculate Stock Count Variances"]
["© www.excel-skills.com"]
["Stock Code","Description","UOM","Error Code","Quantity Counted","Theoretical Stock Qty","Quantity Variance"]
["1212GHG",{"$f":"IF(ISNA(VLOOKUP($A5,StockMaster,COLUMN(StockCodes!$B$5),0))=TRUE,\"Invalid Stock Code\",VLOOKUP($A5,StockMaster,COLUMN(StockCodes!$B$5),0))","v":"Garden Shed"},{"$f":"IF(ISNA(VLOOKUP($A5,StockMaster,COLUMN(StockCodes!$C$5),0))=TRUE,\"error\",VLOOKUP($A5,StockMaster,COLUMN(StockCodes!$C$5),0))","v":"Units"},{"$f":"IF(AND(ISBLANK(A5)=FALSE,COUNTIF(CountCode,A5)>1)=TRUE,\"E1\",IF(AND(ISBLANK(A5)=FALSE,ISNA(VLOOKUP(A5,StockCodeOnly,1,0))=TRUE),\"E2\",\"-\"))","v":"-"},175,{"$f":"SUMIFS(StockOpenQty,StockCodeOnly,$A5)+SUMIFS(MoveQty,MoveDate,\"<\"&$G$1+1,MoveCode,$A5)","v":375},{"$f":"E5-F5","v":-200}]
["1212PHP",{"$f":"IF(ISNA(VLOOKUP($A6,StockMaster,COLUMN(StockCodes!$B$5),0))=TRUE,\"Invalid Stock Code\",VLOOKUP($A6,StockMaster,COLUMN(StockCodes!$B$5),0))","v":"Painted Garden Shed"},{"$f":"IF(ISNA(VLOOKUP($A6,StockMaster,COLUMN(StockCodes!$C$5),0))=TRUE,\"error\",VLOOKUP($A6,StockMaster,COLUMN(StockCodes!$C$5),0))","v":"Units"},"-",370,930,-560]
["1212THT",{"$f":"IF(ISNA(VLOOKUP($A7,StockMaster,COLUMN(StockCodes!$B$5),0))=TRUE,\"Invalid Stock Code\",VLOOKUP($A7,StockMaster,COLUMN(StockCodes!$B$5),0))","v":"Tools Shed"},{"$f":"IF(ISNA(VLOOKUP($A7,StockMaster,COLUMN(StockCodes!$C$5),0))=TRUE,\"error\",VLOOKUP($A7,StockMaster,COLUMN(StockCodes!$C$5),0))","v":"Units"},"-",125,240,-115]
["RM10",{"$f":"IF(ISNA(VLOOKUP($A8,StockMaster,COLUMN(StockCodes!$B$5),0))=TRUE,\"Invalid Stock Code\",VLOOKUP($A8,StockMaster,COLUMN(StockCodes!$B$5),0))","v":"Steel Plates"},{"$f":"IF(ISNA(VLOOKUP($A8,StockMaster,COLUMN(StockCodes!$C$5),0))=TRUE,\"error\",VLOOKUP($A8,StockMaster,COLUMN(StockCodes!$C$5),0))","v":"M2"},"-",11550,800,10750]
["RM25",{"$f":"IF(ISNA(VLOOKUP($A9,StockMaster,COLUMN(StockCodes!$B$5),0))=TRUE,\"Invalid Stock Code\",VLOOKUP($A9,StockMaster,COLUMN(StockCodes!$B$5),0))","v":"Door Handle"},{"$f":"IF(ISNA(VLOOKUP($A9,StockMaster,COLUMN(StockCodes!$C$5),0))=TRUE,\"error\",VLOOKUP($A9,StockMaster,COLUMN(StockCodes!$C$5),0))","v":"Units"},"-",800,617,183]
["RM30",{"$f":"IF(ISNA(VLOOKUP($A10,StockMaster,COLUMN(StockCodes!$B$5),0))=TRUE,\"Invalid Stock Code\",VLOOKUP($A10,StockMaster,COLUMN(StockCodes!$B$5),0))","v":"Wood"},{"$f":"IF(ISNA(VLOOKUP($A10,StockMaster,COLUMN(StockCodes!$C$5),0))=TRUE,\"error\",VLOOKUP($A10,StockMaster,COLUMN(StockCodes!$C$5),0))","v":"M2"},"-",14250,500,13750]
["RM50",{"$f":"IF(ISNA(VLOOKUP($A11,StockMaster,COLUMN(StockCodes!$B$5),0))=TRUE,\"Invalid Stock Code\",VLOOKUP($A11,StockMaster,COLUMN(StockCodes!$B$5),0))","v":"1 Inch Screws"},{"$f":"IF(ISNA(VLOOKUP($A11,StockMaster,COLUMN(StockCodes!$C$5),0))=TRUE,\"error\",VLOOKUP($A11,StockMaster,COLUMN(StockCodes!$C$5),0))","v":"Bag"},"-",250,38,212]
["RM55",{"$f":"IF(ISNA(VLOOKUP($A12,StockMaster,COLUMN(StockCodes!$B$5),0))=TRUE,\"Invalid Stock Code\",VLOOKUP($A12,StockMaster,COLUMN(StockCodes!$B$5),0))","v":"2 Inch Screws"},{"$f":"IF(ISNA(VLOOKUP($A12,StockMaster,COLUMN(StockCodes!$C$5),0))=TRUE,\"error\",VLOOKUP($A12,StockMaster,COLUMN(StockCodes!$C$5),0))","v":"Bag"},"-",1775,650,1125]
["RM60",{"$f":"IF(ISNA(VLOOKUP($A13,StockMaster,COLUMN(StockCodes!$B$5),0))=TRUE,\"Invalid Stock Code\",VLOOKUP($A13,StockMaster,COLUMN(StockCodes!$B$5),0))","v":"Glass"},{"$f":"IF(ISNA(VLOOKUP($A13,StockMaster,COLUMN(StockCodes!$C$5),0))=TRUE,\"error\",VLOOKUP($A13,StockMaster,COLUMN(StockCodes!$C$5),0))","v":"M2"},{"$f":"IF(AND(ISBLANK(A13)=FALSE,COUNTIF(CountCode,A13)>1)=TRUE,\"E1\",IF(AND(ISBLANK(A13)=FALSE,ISNA(VLOOKUP(A13,StockCodeOnly,1,0))=TRUE),\"E2\",\"-\"))","v":"-"},1800,950,{"$f":"E13-F13","v":850}]
["RM70",{"$f":"IF(ISNA(VLOOKUP($A14,StockMaster,COLUMN(StockCodes!$B$5),0))=TRUE,\"Invalid Stock Code\",VLOOKUP($A14,StockMaster,COLUMN(StockCodes!$B$5),0))","v":"Filler"},{"$f":"IF(ISNA(VLOOKUP($A14,StockMaster,COLUMN(StockCodes!$C$5),0))=TRUE,\"error\",VLOOKUP($A14,StockMaster,COLUMN(StockCodes!$C$5),0))","v":"Bag"},{"$f":"IF(AND(ISBLANK(A14)=FALSE,COUNTIF(CountCode,A14)>1)=TRUE,\"E1\",IF(AND(ISBLANK(A14)=FALSE,ISNA(VLOOKUP(A14,StockCodeOnly,1,0))=TRUE),\"E2\",\"-\"))","v":"-"},1200,690,510]
["RM75",{"$f":"IF(ISNA(VLOOKUP($A15,StockMaster,COLUMN(StockCodes!$B$5),0))=TRUE,\"Invalid Stock Code\",VLOOKUP($A15,StockMaster,COLUMN(StockCodes!$B$5),0))","v":"Swivel"},{"$f":"IF(ISNA(VLOOKUP($A15,StockMaster,COLUMN(StockCodes!$C$5),0))=TRUE,\"error\",VLOOKUP($A15,StockMaster,COLUMN(StockCodes!$C$5),0))","v":"Units"},{"$f":"IF(AND(ISBLANK(A15)=FALSE,COUNTIF(CountCode,A15)>1)=TRUE,\"E1\",IF(AND(ISBLANK(A15)=FALSE,ISNA(VLOOKUP(A15,StockCodeOnly,1,0))=TRUE),\"E2\",\"-\"))","v":"-"},1100,763,337]
["RM80",{"$f":"IF(ISNA(VLOOKUP($A16,StockMaster,COLUMN(StockCodes!$B$5),0))=TRUE,\"Invalid Stock Code\",VLOOKUP($A16,StockMaster,COLUMN(StockCodes!$B$5),0))","v":"Paint - White"},{"$f":"IF(ISNA(VLOOKUP($A16,StockMaster,COLUMN(StockCodes!$C$5),0))=TRUE,\"error\",VLOOKUP($A16,StockMaster,COLUMN(StockCodes!$C$5),0))","v":"Drum"},{"$f":"IF(AND(ISBLANK(A16)=FALSE,COUNTIF(CountCode,A16)>1)=TRUE,\"E1\",IF(AND(ISBLANK(A16)=FALSE,ISNA(VLOOKUP(A16,StockCodeOnly,1,0))=TRUE),\"E2\",\"-\"))","v":"-"},125,240,-115]
["RM85",{"$f":"IF(ISNA(VLOOKUP($A17,StockMaster,COLUMN(StockCodes!$B$5),0))=TRUE,\"Invalid Stock Code\",VLOOKUP($A17,StockMaster,COLUMN(StockCodes!$B$5),0))","v":"Paint - Green"},{"$f":"IF(ISNA(VLOOKUP($A17,StockMaster,COLUMN(StockCodes!$C$5),0))=TRUE,\"error\",VLOOKUP($A17,StockMaster,COLUMN(StockCodes!$C$5),0))","v":"Drum"},{"$f":"IF(AND(ISBLANK(A17)=FALSE,COUNTIF(CountCode,A17)>1)=TRUE,\"E1\",IF(AND(ISBLANK(A17)=FALSE,ISNA(VLOOKUP(A17,StockCodeOnly,1,0))=TRUE),\"E2\",\"-\"))","v":"-"},20,80,-60]

{"sheet":"Dashboard","index":6,"n_rows":216,"n_cols":10,"rows_kept":216,"cut":false,"hidden":true,"merged":[[25,1,33,4],[25,5,33,9],[34,1,35,2],[34,5,35,7],[42,1,43,2],[42,5,43,7],[15,1,24,9],[5,1,12,1],[5,2,12,3],[5,4,12,5],[5,6,5,9],[6,6,6,7],[7,6,7,7],[8,6,8,7],[9,6,9,7],[10,6,10,7],[11,6,11,7],[12,6,12,7],[13,1,13,5],[14,1,14,5],[1,1,4,1],[1,2,2,5],[1,6,1,9],[2,6,2,9],[3,2,3,3],[3,6,3,9],[4,2,4,3],[4,6,4,9]]}
[]
[null,"INVENTORY\nDASHBOARD","Dashboard Filters",null,null,null,"SELECTED STOCK CODE:"]
[null,null,null,null,null,null,{"$f":"IF(ISBLANK($C$5),\"ALL\",C56&\" \"&C57)","v":"ALL"}]
[null,null,"STOCK CODE",null,"FROM DATE","TO DATE","UNIT OF MEASURE:"]
[null,null,null,null,null,"2021-09-30",{"$f":"C58","v":""}]
[null,null,null,null,null,null,"Stock Movement"]
[null,null,null,null,null,null,null,null,null,"Qty"]
[null,null,null,null,null,null,"Opening Balance",null,null,{"$f":"C66","v":11257}]
[null,null,null,null,null,null,"Purchases / Receipts",null,null,{"$f":"C67","v":48747}]
[null,null,null,null,null,null,"Sales / Issues",null,null,{"$f":"C68","v":-44123.155486756099}]
[null,null,null,null,null,null,"Adjustments",null,null,{"$f":"C69","v":-110}]
[null,null,null,null,null,null,"Closing Balance",null,null,{"$f":"C70","v":15770.844513243899}]
[]
[null,"Interactive Inventory Reports",null,null,null,null,null,null,"BASIS","TYPE"]
[null,{"$f":"$F$71","v":"All Transactions By Quantity"},null,null,null,null,null,null,"Movement","All"]
[]
[]
[]
[]
[]
[]
[]
[]
[]
[]
[]
[]
[]
[]
[]
[]
[]
[]
[]
[null,"Top Products By Sales",null,null,null,"Top Products By Issues"]
[null,null,null,null,"Qty",null,null,null,null,"Qty"]
[null,{"$f":"IF(ISNA(MATCH(ROW(1:1),$F$194:$F$198,0)),\"\",OFFSET($B$193,MATCH(ROW(1:1),$F$194:$F$198,0),1,1,1))","v":"1212GHG Garden Shed"},null,null,{"$f":"IF(ISNA(MATCH(ROW(1:1),$F$194:$F$198,0)),\"\",OFFSET($B$193,MATCH(ROW(1:1),$F$194:$F$198,0),2,1,1))","v":1350},{"$f":"IF(ISNA(MATCH(ROW(1:1),$F$200:$F$204,0)),\"\",OFFSET($B$199,MATCH(ROW(1:1),$F$200:$F$204,0),1,1,1))","v":"RM30 Wood"},null,null,null,{"$f":"IF(ISNA(MATCH(ROW(1:1),$F$200:$F$204,0)),\"\",OFFSET($B$199,MATCH(ROW(1:1),$F$200:$F$204,0),2,1,1))","v":17151.169590643269}]
[null,{"$f":"IF(ISNA(MATCH(ROW(2:2),$F$194:$F$198,0)),\"\",OFFSET($B$193,MATCH(ROW(2:2),$F$194:$F$198,0),1,1,1))","v":"1212PHP Painted Garden Shed"},null,null,{"$f":"IF(ISNA(MATCH(ROW(2:2),$F$194:$F$198,0)),\"\",OFFSET($B$193,MATCH(ROW(2:2),$F$194:$F$198,0),2,1,1))","v":610},{"$f":"IF(ISNA(MATCH(ROW(2:2),$F$200:$F$204,0)),\"\",OFFSET($B$199,MATCH(ROW(2:2),$F$200:$F$204,0),1,1,1))","v":"RM10 Steel Plates"},null,null,null,{"$f":"IF(ISNA(MATCH(ROW(2:2),$F$200:$F$204,0)),\"\",OFFSET($B$199,MATCH(ROW(2:2),$F$200:$F$204,0),2,1,1))","v":13061.111111111109}]
[null,{"$f":"IF(ISNA(MATCH(ROW(3:3),$F$194:$F$198,0)),\"\",OFFSET($B$193,MATCH(ROW(3:3),$F$194:$F$198,0),1,1,1))","v":"1212THT Tools Shed"},null,null,{"$f":"IF(ISNA(MATCH(ROW(3:3),$F$194:$F$198,0)),\"\",OFFSET($B$193,MATCH(ROW(3:3),$F$194:$F$198,0),2,1,1))","v":240},{"$f":"IF(ISNA(MATCH(ROW(3:3),$F$200:$F$204,0)),\"\",OFFSET($B$199,MATCH(ROW(3:3),$F$200:$F$204,0),1,1,1))","v":"RM55 2 Inch Screws"},null,null,null,{"$f":"IF(ISNA(MATCH(ROW(3:3),$F$200:$F$204,0)),\"\",OFFSET($B$199,MATCH(ROW(3:3),$F$200:$F$204,0),2,1,1))","v":3979.34640522876}]
[null,{"$f":"IF(ISNA(MATCH(ROW(4:4),$F$194:$F$198,0)),\"\",OFFSET($B$193,MATCH(ROW(4:4),$F$194:$F$198,0),1,1,1))","v":"RM10 Steel Plates"},null,null,{"$f":"IF(ISNA(MATCH(ROW(4:4),$F$194:$F$198,0)),\"\",OFFSET($B$193,MATCH(ROW(4:4),$F$194:$F$198,0),2,1,1))","v":0},{"$f":"IF(ISNA(MATCH(ROW(4:4),$F$200:$F$204,0)),\"\",OFFSET($B$199,MATCH(ROW(4:4),$F$200:$F$204,0),1,1,1))","v":"RM60 Glass"},null,null,null,{"$f":"IF(ISNA(MATCH(ROW(4:4),$F$200:$F$204,0)),\"\",OFFSET($B$199,MATCH(ROW(4:4),$F$200:$F$204,0),2,1,1))","v":2670.7739938080499}]
[null,{"$f":"IF(ISNA(MATCH(ROW(5:5),$F$194:$F$198,0)),\"\",OFFSET($B$193,MATCH(ROW(5:5),$F$194:$F$198,0),1,1,1))","v":"RM25 Door Handle"},null,null,{"$f":"IF(ISNA(MATCH(ROW(5:5),$F$194:$F$198,0)),\"\",OFFSET($B$193,MATCH(ROW(5:5),$F$194:$F$198,0),2,1,1))","v":0},{"$f":"IF(ISNA(MATCH(ROW(5:5),$F$200:$F$204,0)),\"\",OFFSET($B$199,MATCH(ROW(5:5),$F$200:$F$204,0),1,1,1))","v":"RM75 Swivel"},null,null,null,{"$f":"IF(ISNA(MATCH(ROW(5:5),$F$200:$F$204,0)),\"\",OFFSET($B$199,MATCH(ROW(5:5),$F$200:$F$204,0),2,1,1))","v":2380}]
[]
[null,"Top Products Purchases",null,null,null,"Top Products By Receipts"]
[null,null,null,null,"Qty",null,null,null,null,"Qty"]
[null,{"$f":"IF(ISNA(MATCH(ROW(1:1),$F$206:$F$210,0)),\"\",OFFSET($B$205,MATCH(ROW(1:1),$F$206:$F$210,0),1,1,1))","v":"RM30 Wood"},null,null,{"$f":"IF(ISNA(MATCH(ROW(1:1),$F$206:$F$210,0)),\"\",OFFSET($B$205,MATCH(ROW(1:1),$F$206:$F$210,0),2,1,1))","v":22000},{"$f":"IF(ISNA(MATCH(ROW(1:1),$F$212:$F$216,0)),\"\",OFFSET($B$211,MATCH(ROW(1:1),$F$212:$F$216,0),1,1,1))","v":"1212GHG Garden Shed"},null,null,null,{"$f":"IF(ISNA(MATCH(ROW(1:1),$F$212:$F$216,0)),\"\",OFFSET($B$211,MATCH(ROW(1:1),$F$212:$F$216,0),2,1,1))","v":1010}]
[null,{"$f":"IF(ISNA(MATCH(ROW(2:2),$F$206:$F$210,0)),\"\",OFFSET($B$205,MATCH(ROW(2:2),$F$206:$F$210,0),1,1,1))","v":"RM10 Steel Plates"},null,null,{"$f":"IF(ISNA(MATCH(ROW(2:2),$F$206:$F$210,0)),\"\",OFFSET($B$205,MATCH(ROW(2:2),$F$206:$F$210,0),2,1,1))","v":17000},{"$f":"IF(ISNA(MATCH(ROW(2:2),$F$212:$F$216,0)),\"\",OFFSET($B$211,MATCH(ROW(2:2),$F$212:$F$216,0),1,1,1))","v":"1212THT Tools Shed"},null,null,null,{"$f":"IF(ISNA(MATCH(ROW(2:2),$F$212:$F$216,0)),\"\",OFFSET($B$211,MATCH(ROW(2:2),$F$212:$F$216,0),2,1,1))","v":125}]
[null,{"$f":"IF(ISNA(MATCH(ROW(3:3),$F$206:$F$210,0)),\"\",OFFSET($B$205,MATCH(ROW(3:3),$F$206:$F$210,0),1,1,1))","v":"RM55 2 Inch Screws"},null,null,{"$f":"IF(ISNA(MATCH(ROW(3:3),$F$206:$F$210,0)),\"\",OFFSET($B$205,MATCH(ROW(3:3),$F$206:$F$210,0),2,1,1))","v":3000},{"$f":"IF(ISNA(MATCH(ROW(3:3),$F$212:$F$216,0)),\"\",OFFSET($B$211,MATCH(ROW(3:3),$F$212:$F$216,0),1,1,1))","v":"1212PHP Painted Garden Shed"},null,null,null,{"$f":"IF(ISNA(MATCH(ROW(3:3),$F$212:$F$216,0)),\"\",OFFSET($B$211,MATCH(ROW(3:3),$F$212:$F$216,0),2,1,1))","v":52}]
[null,{"$f":"IF(ISNA(MATCH(ROW(4:4),$F$206:$F$210,0)),\"\",OFFSET($B$205,MATCH(ROW(4:4),$F$206:$F$210,0),1,1,1))","v":"RM60 Glass"},null,null,{"$f":"IF(ISNA(MATCH(ROW(4:4),$F$206:$F$210,0)),\"\",OFFSET($B$205,MATCH(ROW(4:4),$F$206:$F$210,0),2,1,1))","v":2000},{"$f":"IF(ISNA(MATCH(ROW(4:4),$F$212:$F$216,0)),\"\",OFFSET($B$211,MATCH(ROW(4:4),$F$212:$F$216,0),1,1,1))","v":"RM10 Steel Plates"},null,null,null,{"$f":"IF(ISNA(MATCH(ROW(4:4),$F$212:$F$216,0)),\"\",OFFSET($B$211,MATCH(ROW(4:4),$F$212:$F$216,0),2,1,1))","v":0}]
[null,{"$f":"IF(ISNA(MATCH(ROW(5:5),$F$206:$F$210,0)),\"\",OFFSET($B$205,MATCH(ROW(5:5),$F$206:$F$210,0),1,1,1))","v":"RM75 Swivel"},null,null,{"$f":"IF(ISNA(MATCH(ROW(5:5),$F$206:$F$210,0)),\"\",OFFSET($B$205,MATCH(ROW(5:5),$F$206:$F$210,0),2,1,1))","v":1520},{"$f":"IF(ISNA(MATCH(ROW(5:5),$F$212:$F$216,0)),\"\",OFFSET($B$211,MATCH(ROW(5:5),$F$212:$F$216,0),1,1,1))","v":"RM25 Door Handle"},null,null,null,{"$f":"IF(ISNA(MATCH(ROW(5:5),$F$212:$F$216,0)),\"\",OFFSET($B$211,MATCH(ROW(5:5),$F$212:$F$216,0),2,1,1))","v":0}]
[]
[]
[]
["Dashboard Data (not printed)"]
["Arrows",null,"\u0097","\u0096","\u0098"]
["Date Selection",null,{"$f":"IF(ISBLANK($E$5)=TRUE,IF(MIN(MoveDate)=0,DATE(YEAR($E$5),MONTH($E$5),1),DATE(YEAR(MIN(MoveDate)),MONTH(MIN(MoveDate)),1)),$E$5)","v":"2021-07-01"},{"$f":"IF(ISBLANK($F$5)=TRUE,DATE(YEAR(TODAY()),MONTH(TODAY())+1,0),$F$5)","v":"2021-09-30"}]
["Stock Selection",null,{"$f":"IF(ISBLANK($C$5),\"*\",$C$5)","v":"*"}]
["Stock Description",null,{"$f":"IF($C$56=\"*\",\"ALL STOCK\",IF(ISNA(VLOOKUP($C$56,StockMaster,COLUMN(StockCodes!$B$5),0)),\"NONE\",VLOOKUP($C$56,StockMaster,COLUMN(StockCodes!$B$5),0)))","v":"ALL STOCK"}]
["Unit of Measure",null,{"$f":"IF($C$56=\"*\",\"\",IF(ISNA(VLOOKUP($C$56,StockMaster,COLUMN(StockCodes!$C$5),0)),\"\",VLOOKUP($C$56,StockMaster,COLUMN(StockCodes!$C$5),0)))","v":""}]
[{"$f":"\"Chart 1 : \"&CHAR(10)&A60","v":"Chart 1 : \nQuantity On Hand \n30 Sep 2021"},null,"F","Value","Rest","Gap"]
[{"$f":"\"Quantity On Hand \"&CHAR(10)&TEXT($D$55,\"dd mmm yyyy\")","v":"Quantity On Hand \n30 Sep 2021"},null,{"$f":"SUMIFS(StockCode[Opening Quantity],StockCode[Stock Code],$C$56)+SUMIFS(MoveQty,MoveDate,\"<\"&$D$55+1,MoveCode,$C$56)","v":15770.844513243899},{"$f":"IF(MAX($C$60,$C$62,$C$64)=0,130,130*(C60/MAX($C$60,$C$62,$C$64)))","v":61.127304314898836},{"$f":"(100+F60)-D60","v":68.872695685101164},30]
[{"$f":"\"Chart 2 : \"&A62","v":"Chart 2 : Quantity On Hand \n31 Aug 2021"},null,"F","Value","Rest","Gap"]
[{"$f":"\"Quantity On Hand \"&CHAR(10)&TEXT(DATE(YEAR($D$55),MONTH($D$55),0),\"dd mmm yyyy\")","v":"Quantity On Hand \n31 Aug 2021"},null,{"$f":"SUMIFS(StockCode[Opening Quantity],StockCode[Stock Code],$C$56)+SUMIFS(MoveQty,MoveDate,\"<\"&DATE(YEAR($D$55),MONTH($D$55),1),MoveCode,$C$56)","v":33540},{"$f":"IF(MAX($C$60,$C$62,$C$64)=0,130,130*(C62/MAX($C$60,$C$62,$C$64)))","v":130},{"$f":"(100+F62)-D62","v":0},30]
[{"$f":"\"Chart 3 : \"&A64","v":"Chart 3 : Quantity On Hand \n31 Jul 2021"},null,"F","Value","Rest","Gap"]
[{"$f":"\"Quantity On Hand \"&CHAR(10)&TEXT(DATE(YEAR($D$55),MONTH($D$55)-1,0),\"dd mmm yyyy\")","v":"Quantity On Hand \n31 Jul 2021"},null,{"$f":"SUMIFS(StockCode[Opening Quantity],StockCode[Stock Code],$C$56)+SUMIFS(MoveQty,MoveDate,\"<\"&DATE(YEAR($D$55),MONTH($D$55)-1,1),MoveCode,$C$56)","v":22821},{"$f":"IF(MAX($C$60,$C$62,$C$64)=0,130,130*(C64/MAX($C$60,$C$62,$C$64)))","v":88.45348837209302},{"$f":"(100+F64)-D64","v":41.54651162790698},30]
["Movements Section:",null,"Qty"]
["Opening Balance",null,{"$f":"SUMIFS(StockCode[Opening Quantity],StockCode[Stock Code],$C$56)+SUMIFS(MoveQty,MoveDate,\"<\"&$C$55,MoveCode,$C$56)","v":11257}]
["Purchases / Receipts",null,{"$f":"SUMIFS(MoveQty,MoveDate,\">\"&$C$55,MoveDate,\"<\"&$D$55+1,MoveCode,$C$56,MoveType,\"Purchase\")+SUMIFS(MoveQty,MoveDate,\">\"&$C$55,MoveDate,\"<\"&$D$55+1,MoveCode,$C$56,MoveType,\"Receipt\")","v":48747}]
["Sales / Issues",null,{"$f":"SUMIFS(MoveQty,MoveDate,\">\"&$C$55,MoveDate,\"<\"&$D$55+1,MoveCode,$C$56,MoveType,\"Sale\")+SUMIFS(MoveQty,MoveDate,\">\"&$C$55,MoveDate,\"<\"&$D$55+1,MoveCode,$C$56,MoveType,\"Issue\")","v":-44123.155486756099}]
["Adjustments",null,{"$f":"SUMIFS(MoveQty,MoveDate,\">\"&$C$55,MoveDate,\"<\"&$D$55+1,MoveCode,$C$56,MoveType,\"Adjustment\")","v":-110}]
["Closing Balance",null,{"$f":"SUMIFS(StockCode[Opening Quantity],StockCode[Stock Code],$C$56)+SUMIFS(MoveQty,MoveDate,\"<\"&$D$55+1,MoveCode,$C$56)","v":15770.844513243899}]
["Interactive Charts:",null,{"$f":"\"Quantity\"","v":"Quantity"},{"$f":"IF(ISBLANK($J$15),\"*\",IF($J$15=\"All\",\"*\",$J$15))","v":"*"},{"$f":"IF(ISBLANK($I$15),\"Movement\",$I$15)","v":"Movement"},{"$f":"IF($D$71=\"*\",\"All\",$D$71)&\" Transactions By \"&$C$71","v":"All Transactions By Quantity"}]
["Number of Days",null,90,{"$f":"$C$72&\"-Day \"&$E$71&\" Report\"","v":"90-Day Movement Report"}]
[null,"Date","Value","Movement","Balance"]
[null,{"$f":"IF($D$55-$C$72+ROW($C74)-ROW($C$73)>$D$55,\"\",$D$55-$C$72+ROW($C74)-ROW($C$73))","v":"2021-07-03"},{"$f":"IF(ISNUMBER(B74),IF($E$71=\"Movement\",D74,E74),\"\")","v":-4384},{"$f":"SUMIFS(MoveQty,MoveDate,\">\"&$B74,MoveDate,\"<\"&$B74+1,MoveCode,$C$56,MoveType,$D$71)","v":-4384},{"$f":"SUMIFS(StockCode[Opening Quantity],StockCode[Stock Code],$C$56)+SUMIFS(MoveQty,MoveDate,\"<\"&$B74+1,MoveCode,$C$56,MoveType,$D$71)","v":6873}]
[null,{"$f":"IF($D$55-$C$72+ROW($C75)-ROW($C$73)>$D$55,\"\",$D$55-$C$72+ROW($C75)-ROW($C$73))","v":"2021-07-04"},{"$f":"IF(ISNUMBER(B75),IF($E$71=\"Movement\",D75,E75),\"\")","v":0},{"$f":"SUMIFS(MoveQty,MoveDate,\">\"&$B75,MoveDate,\"<\"&$B75+1,MoveCode,$C$56,MoveType,$D$71)","v":0},{"$f":"SUMIFS(StockCode[Opening Quantity],StockCode[Stock Code],$C$56)+SUMIFS(MoveQty,MoveDate,\"<\"&$B75+1,MoveCode,$C$56,MoveType,$D$71)","v":6873}]
[null,"2021-07-05",0,{"$f":"SUMIFS(MoveQty,MoveDate,\">\"&$B76,MoveDate,\"<\"&$B76+1,MoveCode,$C$56,MoveType,$D$71)","v":0},{"$f":"SUMIFS(StockCode[Opening Quantity],StockCode[Stock Code],$C$56)+SUMIFS(MoveQty,MoveDate,\"<\"&$B76+1,MoveCode,$C$56,MoveType,$D$71)","v":6873}]
[null,"2021-07-06",0,{"$f":"SUMIFS(MoveQty,MoveDate,\">\"&$B77,MoveDate,\"<\"&$B77+1,MoveCode,$C$56,MoveType,$D$71)","v":0},{"$f":"SUMIFS(StockCode[Opening Quantity],StockCode[Stock Code],$C$56)+SUMIFS(MoveQty,MoveDate,\"<\"&$B77+1,MoveCode,$C$56,MoveType,$D$71)","v":6873}]
[null,"2021-07-07",0,{"$f":"SUMIFS(MoveQty,MoveDate,\">\"&$B78,MoveDate,\"<\"&$B78+1,MoveCode,$C$56,MoveType,$D$71)","v":0},{"$f":"SUMIFS(StockCode[Opening Quantity],StockCode[Stock Code],$C$56)+SUMIFS(MoveQty,MoveDate,\"<\"&$B78+1,MoveCode,$C$56,MoveType,$D$71)","v":6873}]
[null,"2021-07-08",0,{"$f":"SUMIFS(MoveQty,MoveDate,\">\"&$B79,MoveDate,\"<\"&$B79+1,MoveCode,$C$56,MoveType,$D$71)","v":0},{"$f":"SUMIFS(StockCode[Opening Quantity],StockCode[Stock Code],$C$56)+SUMIFS(MoveQty,MoveDate,\"<\"&$B79+1,MoveCode,$C$56,MoveType,$D$71)","v":6873}]
[null,"2021-07-09",0,{"$f":"SUMIFS(MoveQty,MoveDate,\">\"&$B80,MoveDate,\"<\"&$B80+1,MoveCode,$C$56,MoveType,$D$71)","v":0},{"$f":"SUMIFS(StockCode[Opening Quantity],StockCode[Stock Code],$C$56)+SUMIFS(MoveQty,MoveDate,\"<\"&$B80+1,MoveCode,$C$56,MoveType,$D$71)","v":6873}]
[null,"2021-07-10",0,{"$f":"SUMIFS(MoveQty,MoveDate,\">\"&$B81,MoveDate,\"<\"&$B81+1,MoveCode,$C$56,MoveType,$D$71)","v":0},{"$f":"SUMIFS(StockCode[Opening Quantity],StockCode[Stock Code],$C$56)+SUMIFS(MoveQty,MoveDate,\"<\"&$B81+1,MoveCode,$C$56,MoveType,$D$71)","v":6873}]
[null,"2021-07-11",0,{"$f":"SUMIFS(MoveQty,MoveDate,\">\"&$B82,MoveDate,\"<\"&$B82+1,MoveCode,$C$56,MoveType,$D$71)","v":0},{"$f":"SUMIFS(StockCode[Opening Quantity],StockCode[Stock Code],$C$56)+SUMIFS(MoveQty,MoveDate,\"<\"&$B82+1,MoveCode,$C$56,MoveType,$D$71)","v":6873}]
[null,"2021-07-12",0,{"$f":"SUMIFS(MoveQty,MoveDate,\">\"&$B83,MoveDate,\"<\"&$B83+1,MoveCode,$C$56,MoveType,$D$71)","v":0},{"$f":"SUMIFS(StockCode[Opening Quantity],StockCode[Stock Code],$C$56)+SUMIFS(MoveQty,MoveDate,\"<\"&$B83+1,MoveCode,$C$56,MoveType,$D$71)","v":6873}]
[null,"2021-07-13",0,{"$f":"SUMIFS(MoveQty,MoveDate,\">\"&$B84,MoveDate,\"<\"&$B84+1,MoveCode,$C$56,MoveType,$D$71)","v":0},{"$f":"SUMIFS(StockCode[Opening Quantity],StockCode[Stock Code],$C$56)+SUMIFS(MoveQty,MoveDate,\"<\"&$B84+1,MoveCode,$C$56,MoveType,$D$71)","v":6873}]
[null,"2021-07-14",0,{"$f":"SUMIFS(MoveQty,MoveDate,\">\"&$B85,MoveDate,\"<\"&$B85+1,MoveCode,$C$56,MoveType,$D$71)","v":0},{"$f":"SUMIFS(StockCode[Opening Quantity],StockCode[Stock Code],$C$56)+SUMIFS(MoveQty,MoveDate,\"<\"&$B85+1,MoveCode,$C$56,MoveType,$D$71)","v":6873}]
[null,"2021-07-15",0,{"$f":"SUMIFS(MoveQty,MoveDate,\">\"&$B86,MoveDate,\"<\"&$B86+1,MoveCode,$C$56,MoveType,$D$71)","v":0},{"$f":"SUMIFS(StockCode[Opening Quantity],StockCode[Stock Code],$C$56)+SUMIFS(MoveQty,MoveDate,\"<\"&$B86+1,MoveCode,$C$56,MoveType,$D$71)","v":6873}]
[null,"2021-07-16",0,{"$f":"SUMIFS(MoveQty,MoveDate,\">\"&$B87,MoveDate,\"<\"&$B87+1,MoveCode,$C$56,MoveType,$D$71)","v":0},{"$f":"SUMIFS(StockCode[Opening Quantity],StockCode[Stock Code],$C$56)+SUMIFS(MoveQty,MoveDate,\"<\"&$B87+1,MoveCode,$C$56,MoveType,$D$71)","v":6873}]
[null,"2021-07-17",0,{"$f":"SUMIFS(MoveQty,MoveDate,\">\"&$B88,MoveDate,\"<\"&$B88+1,MoveCode,$C$56,MoveType,$D$71)","v":0},{"$f":"SUMIFS(StockCode[Opening Quantity],StockCode[Stock Code],$C$56)+SUMIFS(MoveQty,MoveDate,\"<\"&$B88+1,MoveCode,$C$56,MoveType,$D$71)","v":6873}]
[null,"2021-07-18",0,{"$f":"SUMIFS(MoveQty,MoveDate,\">\"&$B89,MoveDate,\"<\"&$B89+1,MoveCode,$C$56,MoveType,$D$71)","v":0},{"$f":"SUMIFS(StockCode[Opening Quantity],StockCode[Stock Code],$C$56)+SUMIFS(MoveQty,MoveDate,\"<\"&$B89+1,MoveCode,$C$56,MoveType,$D$71)","v":6873}]
[null,"2021-07-19",0,{"$f":"SUMIFS(MoveQty,MoveDate,\">\"&$B90,MoveDate,\"<\"&$B90+1,MoveCode,$C$56,MoveType,$D$71)","v":0},{"$f":"SUMIFS(StockCode[Opening Quantity],StockCode[Stock Code],$C$56)+SUMIFS(MoveQty,MoveDate,\"<\"&$B90+1,MoveCode,$C$56,MoveType,$D$71)","v":6873}]
[null,"2021-07-20",0,{"$f":"SUMIFS(MoveQty,MoveDate,\">\"&$B91,MoveDate,\"<\"&$B91+1,MoveCode,$C$56,MoveType,$D$71)","v":0},{"$f":"SUMIFS(StockCode[Opening Quantity],StockCode[Stock Code],$C$56)+SUMIFS(MoveQty,MoveDate,\"<\"&$B91+1,MoveCode,$C$56,MoveType,$D$71)","v":6873}]
[null,"2021-07-21",0,{"$f":"SUMIFS(MoveQty,MoveDate,\">\"&$B92,MoveDate,\"<\"&$B92+1,MoveCode,$C$56,MoveType,$D$71)","v":0},{"$f":"SUMIFS(StockCode[Opening Quantity],StockCode[Stock Code],$C$56)+SUMIFS(MoveQty,MoveDate,\"<\"&$B92+1,MoveCode,$C$56,MoveType,$D$71)","v":6873}]
[null,"2021-07-22",0,{"$f":"SUMIFS(MoveQty,MoveDate,\">\"&$B93,MoveDate,\"<\"&$B93+1,MoveCode,$C$56,MoveType,$D$71)","v":0},{"$f":"SUMIFS(StockCode[Opening Quantity],StockCode[Stock Code],$C$56)+SUMIFS(MoveQty,MoveDate,\"<\"&$B93+1,MoveCode,$C$56,MoveType,$D$71)","v":6873}]
[null,"2021-07-23",0,{"$f":"SUMIFS(MoveQty,MoveDate,\">\"&$B94,MoveDate,\"<\"&$B94+1,MoveCode,$C$56,MoveType,$D$71)","v":0},{"$f":"SUMIFS(StockCode[Opening Quantity],StockCode[Stock Code],$C$56)+SUMIFS(MoveQty,MoveDate,\"<\"&$B94+1,MoveCode,$C$56,MoveType,$D$71)","v":6873}]
[null,"2021-07-24",0,{"$f":"SUMIFS(MoveQty,MoveDate,\">\"&$B95,MoveDate,\"<\"&$B95+1,MoveCode,$C$56,MoveType,$D$71)","v":0},{"$f":"SUMIFS(StockCode[Opening Quantity],StockCode[Stock Code],$C$56)+SUMIFS(MoveQty,MoveDate,\"<\"&$B95+1,MoveCode,$C$56,MoveType,$D$71)","v":6873}]
[null,"2021-07-25",15948,{"$f":"SUMIFS(MoveQty,MoveDate,\">\"&$B96,MoveDate,\"<\"&$B96+1,MoveCode,$C$56,MoveType,$D$71)","v":15948},{"$f":"SUMIFS(StockCode[Opening Quantity],StockCode[Stock Code],$C$56)+SUMIFS(MoveQty,MoveDate,\"<\"&$B96+1,MoveCode,$C$56,MoveType,$D$71)","v":22821}]
[null,"2021-07-26",0,{"$f":"SUMIFS(MoveQty,MoveDate,\">\"&$B97,MoveDate,\"<\"&$B97+1,MoveCode,$C$56,MoveType,$D$71)","v":0},{"$f":"SUMIFS(StockCode[Opening Quantity],StockCode[Stock Code],$C$56)+SUMIFS(MoveQty,MoveDate,\"<\"&$B97+1,MoveCode,$C$56,MoveType,$D$71)","v":22821}]
[null,"2021-07-27",0,{"$f":"SUMIFS(MoveQty,MoveDate,\">\"&$B98,MoveDate,\"<\"&$B98+1,MoveCode,$C$56,MoveType,$D$71)","v":0},{"$f":"SUMIFS(StockCode[Opening Quantity],StockCode[Stock Code],$C$56)+SUMIFS(MoveQty,MoveDate,\"<\"&$B98+1,MoveCode,$C$56,MoveType,$D$71)","v":22821}]
[null,"2021-07-28",0,{"$f":"SUMIFS(MoveQty,MoveDate,\">\"&$B99,MoveDate,\"<\"&$B99+1,MoveCode,$C$56,MoveType,$D$71)","v":0},{"$f":"SUMIFS(StockCode[Opening Quantity],StockCode[Stock Code],$C$56)+SUMIFS(MoveQty,MoveDate,\"<\"&$B99+1,MoveCode,$C$56,MoveType,$D$71)","v":22821}]
[null,"2021-07-29",0,{"$f":"SUMIFS(MoveQty,MoveDate,\">\"&$B100,MoveDate,\"<\"&$B100+1,MoveCode,$C$56,MoveType,$D$71)","v":0},{"$f":"SUMIFS(StockCode[Opening Quantity],StockCode[Stock Code],$C$56)+SUMIFS(MoveQty,MoveDate,\"<\"&$B100+1,MoveCode,$C$56,MoveType,$D$71)","v":22821}]
[null,"2021-07-30",0,{"$f":"SUMIFS(MoveQty,MoveDate,\">\"&$B101,MoveDate,\"<\"&$B101+1,MoveCode,$C$56,MoveType,$D$71)","v":0},{"$f":"SUMIFS(StockCode[Opening Quantity],StockCode[Stock Code],$C$56)+SUMIFS(MoveQty,MoveDate,\"<\"&$B101+1,MoveCode,$C$56,MoveType,$D$71)","v":22821}]
[null,"2021-07-31",0,{"$f":"SUMIFS(MoveQty,MoveDate,\">\"&$B102,MoveDate,\"<\"&$B102+1,MoveCode,$C$56,MoveType,$D$71)","v":0},{"$f":"SUMIFS(StockCode[Opening Quantity],StockCode[Stock Code],$C$56)+SUMIFS(MoveQty,MoveDate,\"<\"&$B102+1,MoveCode,$C$56,MoveType,$D$71)","v":22821}]
[null,"2021-08-01",0,{"$f":"SUMIFS(MoveQty,MoveDate,\">\"&$B103,MoveDate,\"<\"&$B103+1,MoveCode,$C$56,MoveType,$D$71)","v":0},{"$f":"SUMIFS(StockCode[Opening Quantity],StockCode[Stock Code],$C$56)+SUMIFS(MoveQty,MoveDate,\"<\"&$B103+1,MoveCode,$C$56,MoveType,$D$71)","v":22821}]
[null,"2021-08-02",2532,{"$f":"SUMIFS(MoveQty,MoveDate,\">\"&$B104,MoveDate,\"<\"&$B104+1,MoveCode,$C$56,MoveType,$D$71)","v":2532},{"$f":"SUMIFS(StockCode[Opening Quantity],StockCode[Stock Code],$C$56)+SUMIFS(MoveQty,MoveDate,\"<\"&$B104+1,MoveCode,$C$56,MoveType,$D$71)","v":25353}]
[null,"2021-08-03",-410,{"$f":"SUMIFS(MoveQty,MoveDate,\">\"&$B105,MoveDate,\"<\"&$B105+1,MoveCode,$C$56,MoveType,$D$71)","v":-410},{"$f":"SUMIFS(StockCode[Opening Quantity],StockCode[Stock Code],$C$56)+SUMIFS(MoveQty,MoveDate,\"<\"&$B105+1,MoveCode,$C$56,MoveType,$D$71)","v":24943}]
[null,"2021-08-04",0,{"$f":"SUMIFS(MoveQty,MoveDate,\">\"&$B106,MoveDate,\"<\"&$B106+1,MoveCode,$C$56,MoveType,$D$71)","v":0},{"$f":"SUMIFS(StockCode[Opening Quantity],StockCode[Stock Code],$C$56)+SUMIFS(MoveQty,MoveDate,\"<\"&$B106+1,MoveCode,$C$56,MoveType,$D$71)","v":24943}]
[null,"2021-08-05",0,{"$f":"SUMIFS(MoveQty,MoveDate,\">\"&$B107,MoveDate,\"<\"&$B107+1,MoveCode,$C$56,MoveType,$D$71)","v":0},{"$f":"SUMIFS(StockCode[Opening Quantity],StockCode[Stock Code],$C$56)+SUMIFS(MoveQty,MoveDate,\"<\"&$B107+1,MoveCode,$C$56,MoveType,$D$71)","v":24943}]
[null,"2021-08-06",0,{"$f":"SUMIFS(MoveQty,MoveDate,\">\"&$B108,MoveDate,\"<\"&$B108+1,MoveCode,$C$56,MoveType,$D$71)","v":0},{"$f":"SUMIFS(StockCode[Opening Quantity],StockCode[Stock Code],$C$56)+SUMIFS(MoveQty,MoveDate,\"<\"&$B108+1,MoveCode,$C$56,MoveType,$D$71)","v":24943}]
[null,"2021-08-07",0,{"$f":"SUMIFS(MoveQty,MoveDate,\">\"&$B109,MoveDate,\"<\"&$B109+1,MoveCode,$C$56,MoveType,$D$71)","v":0},{"$f":"SUMIFS(StockCode[Opening Quantity],StockCode[Stock Code],$C$56)+SUMIFS(MoveQty,MoveDate,\"<\"&$B109+1,MoveCode,$C$56,MoveType,$D$71)","v":24943}]
[null,"2021-08-08",0,{"$f":"SUMIFS(MoveQty,MoveDate,\">\"&$B110,MoveDate,\"<\"&$B110+1,MoveCode,$C$56,MoveType,$D$71)","v":0},{"$f":"SUMIFS(StockCode[Opening Quantity],StockCode[Stock Code],$C$56)+SUMIFS(MoveQty,MoveDate,\"<\"&$B110+1,MoveCode,$C$56,MoveType,$D$71)","v":24943}]
[null,"2021-08-09",0,{"$f":"SUMIFS(MoveQty,MoveDate,\">\"&$B111,MoveDate,\"<\"&$B111+1,MoveCode,$C$56,MoveType,$D$71)","v":0},{"$f":"SUMIFS(StockCode[Opening Quantity],StockCode[Stock Code],$C$56)+SUMIFS(MoveQty,MoveDate,\"<\"&$B111+1,MoveCode,$C$56,MoveType,$D$71)","v":24943}]
[null,"2021-08-10",-1301,{"$f":"SUMIFS(MoveQty,MoveDate,\">\"&$B112,MoveDate,\"<\"&$B112+1,MoveCode,$C$56,MoveType,$D$71)","v":-1301},{"$f":"SUMIFS(StockCode[Opening Quantity],StockCode[Stock Code],$C$56)+SUMIFS(MoveQty,MoveDate,\"<\"&$B112+1,MoveCode,$C$56,MoveType,$D$71)","v":23642}]
[null,"2021-08-11",0,{"$f":"SUMIFS(MoveQty,MoveDate,\">\"&$B113,MoveDate,\"<\"&$B113+1,MoveCode,$C$56,MoveType,$D$71)","v":0},{"$f":"SUMIFS(StockCode[Opening Quantity],StockCode[Stock Code],$C$56)+SUMIFS(MoveQty,MoveDate,\"<\"&$B113+1,MoveCode,$C$56,MoveType,$D$71)","v":23642}]
[null,"2021-08-12",0,{"$f":"SUMIFS(MoveQty,MoveDate,\">\"&$B114,MoveDate,\"<\"&$B114+1,MoveCode,$C$56,MoveType,$D$71)","v":0},{"$f":"SUMIFS(StockCode[Opening Quantity],StockCode[Stock Code],$C$56)+SUMIFS(MoveQty,MoveDate,\"<\"&$B114+1,MoveCode,$C$56,MoveType,$D$71)","v":23642}]
[null,"2021-08-13",0,{"$f":"SUMIFS(MoveQty,MoveDate,\">\"&$B115,MoveDate,\"<\"&$B115+1,MoveCode,$C$56,MoveType,$D$71)","v":0},{"$f":"SUMIFS(StockCode[Opening Quantity],StockCode[Stock Code],$C$56)+SUMIFS(MoveQty,MoveDate,\"<\"&$B115+1,MoveCode,$C$56,MoveType,$D$71)","v":23642}]
[null,"2021-08-14",0,{"$f":"SUMIFS(MoveQty,MoveDate,\">\"&$B116,MoveDate,\"<\"&$B116+1,MoveCode,$C$56,MoveType,$D$71)","v":0},{"$f":"SUMIFS(StockCode[Opening Quantity],StockCode[Stock Code],$C$56)+SUMIFS(MoveQty,MoveDate,\"<\"&$B116+1,MoveCode,$C$56,MoveType,$D$71)","v":23642}]
[null,"2021-08-15",0,{"$f":"SUMIFS(MoveQty,MoveDate,\">\"&$B117,MoveDate,\"<\"&$B117+1,MoveCode,$C$56,MoveType,$D$71)","v":0},{"$f":"SUMIFS(StockCode[Opening Quantity],StockCode[Stock Code],$C$56)+SUMIFS(MoveQty,MoveDate,\"<\"&$B117+1,MoveCode,$C$56,MoveType,$D$71)","v":23642}]
[null,"2021-08-16",0,{"$f":"SUMIFS(MoveQty,MoveDate,\">\"&$B118,MoveDate,\"<\"&$B118+1,MoveCode,$C$56,MoveType,$D$71)","v":0},{"$f":"SUMIFS(StockCode[Opening Quantity],StockCode[Stock Code],$C$56)+SUMIFS(MoveQty,MoveDate,\"<\"&$B118+1,MoveCode,$C$56,MoveType,$D$71)","v":23642}]
[null,"2021-08-17",0,{"$f":"SUMIFS(MoveQty,MoveDate,\">\"&$B119,MoveDate,\"<\"&$B119+1,MoveCode,$C$56,MoveType,$D$71)","v":0},{"$f":"SUMIFS(StockCode[Opening Quantity],StockCode[Stock Code],$C$56)+SUMIFS(MoveQty,MoveDate,\"<\"&$B119+1,MoveCode,$C$56,MoveType,$D$71)","v":23642}]
[null,"2021-08-18",-10523,{"$f":"SUMIFS(MoveQty,MoveDate,\">\"&$B120,MoveDate,\"<\"&$B120+1,MoveCode,$C$56,MoveType,$D$71)","v":-10523},{"$f":"SUMIFS(StockCode[Opening Quantity],StockCode[Stock Code],$C$56)+SUMIFS(MoveQty,MoveDate,\"<\"&$B120+1,MoveCode,$C$56,MoveType,$D$71)","v":13119}]
[null,"2021-08-19",0,{"$f":"SUMIFS(MoveQty,MoveDate,\">\"&$B121,MoveDate,\"<\"&$B121+1,MoveCode,$C$56,MoveType,$D$71)","v":0},{"$f":"SUMIFS(StockCode[Opening Quantity],StockCode[Stock Code],$C$56)+SUMIFS(MoveQty,MoveDate,\"<\"&$B121+1,MoveCode,$C$56,MoveType,$D$71)","v":13119}]
[null,"2021-08-20",0,{"$f":"SUMIFS(MoveQty,MoveDate,\">\"&$B122,MoveDate,\"<\"&$B122+1,MoveCode,$C$56,MoveType,$D$71)","v":0},{"$f":"SUMIFS(StockCode[Opening Quantity],StockCode[Stock Code],$C$56)+SUMIFS(MoveQty,MoveDate,\"<\"&$B122+1,MoveCode,$C$56,MoveType,$D$71)","v":13119}]
[null,"2021-08-21",-1809,{"$f":"SUMIFS(MoveQty,MoveDate,\">\"&$B123,MoveDate,\"<\"&$B123+1,MoveCode,$C$56,MoveType,$D$71)","v":-1809},{"$f":"SUMIFS(StockCode[Opening Quantity],StockCode[Stock Code],$C$56)+SUMIFS(MoveQty,MoveDate,\"<\"&$B123+1,MoveCode,$C$56,MoveType,$D$71)","v":11310}]
[null,"2021-08-22",0,{"$f":"SUMIFS(MoveQty,MoveDate,\">\"&$B124,MoveDate,\"<\"&$B124+1,MoveCode,$C$56,MoveType,$D$71)","v":0},{"$f":"SUMIFS(StockCode[Opening Quantity],StockCode[Stock Code],$C$56)+SUMIFS(MoveQty,MoveDate,\"<\"&$B124+1,MoveCode,$C$56,MoveType,$D$71)","v":11310}]
[null,"2021-08-23",0,{"$f":"SUMIFS(MoveQty,MoveDate,\">\"&$B125,MoveDate,\"<\"&$B125+1,MoveCode,$C$56,MoveType,$D$71)","v":0},{"$f":"SUMIFS(StockCode[Opening Quantity],StockCode[Stock Code],$C$56)+SUMIFS(MoveQty,MoveDate,\"<\"&$B125+1,MoveCode,$C$56,MoveType,$D$71)","v":11310}]
[null,"2021-08-24",0,{"$f":"SUMIFS(MoveQty,MoveDate,\">\"&$B126,MoveDate,\"<\"&$B126+1,MoveCode,$C$56,MoveType,$D$71)","v":0},{"$f":"SUMIFS(StockCode[Opening Quantity],StockCode[Stock Code],$C$56)+SUMIFS(MoveQty,MoveDate,\"<\"&$B126+1,MoveCode,$C$56,MoveType,$D$71)","v":11310}]
[null,"2021-08-25",0,{"$f":"SUMIFS(MoveQty,MoveDate,\">\"&$B127,MoveDate,\"<\"&$B127+1,MoveCode,$C$56,MoveType,$D$71)","v":0},{"$f":"SUMIFS(StockCode[Opening Quantity],StockCode[Stock Code],$C$56)+SUMIFS(MoveQty,MoveDate,\"<\"&$B127+1,MoveCode,$C$56,MoveType,$D$71)","v":11310}]
[null,"2021-08-26",0,{"$f":"SUMIFS(MoveQty,MoveDate,\">\"&$B128,MoveDate,\"<\"&$B128+1,MoveCode,$C$56,MoveType,$D$71)","v":0},{"$f":"SUMIFS(StockCode[Opening Quantity],StockCode[Stock Code],$C$56)+SUMIFS(MoveQty,MoveDate,\"<\"&$B128+1,MoveCode,$C$56,MoveType,$D$71)","v":11310}]
[null,"2021-08-27",0,{"$f":"SUMIFS(MoveQty,MoveDate,\">\"&$B129,MoveDate,\"<\"&$B129+1,MoveCode,$C$56,MoveType,$D$71)","v":0},{"$f":"SUMIFS(StockCode[Opening Quantity],StockCode[Stock Code],$C$56)+SUMIFS(MoveQty,MoveDate,\"<\"&$B129+1,MoveCode,$C$56,MoveType,$D$71)","v":11310}]
[null,"2021-08-28",0,{"$f":"SUMIFS(MoveQty,MoveDate,\">\"&$B130,MoveDate,\"<\"&$B130+1,MoveCode,$C$56,MoveType,$D$71)","v":0},{"$f":"SUMIFS(StockCode[Opening Quantity],StockCode[Stock Code],$C$56)+SUMIFS(MoveQty,MoveDate,\"<\"&$B130+1,MoveCode,$C$56,MoveType,$D$71)","v":11310}]
[null,"2021-08-29",0,{"$f":"SUMIFS(MoveQty,MoveDate,\">\"&$B131,MoveDate,\"<\"&$B131+1,MoveCode,$C$56,MoveType,$D$71)","v":0},{"$f":"SUMIFS(StockCode[Opening Quantity],StockCode[Stock Code],$C$56)+SUMIFS(MoveQty,MoveDate,\"<\"&$B131+1,MoveCode,$C$56,MoveType,$D$71)","v":11310}]
[null,"2021-08-30",22230,{"$f":"SUMIFS(MoveQty,MoveDate,\">\"&$B132,MoveDate,\"<\"&$B132+1,MoveCode,$C$56,MoveType,$D$71)","v":22230},{"$f":"SUMIFS(StockCode[Opening Quantity],StockCode[Stock Code],$C$56)+SUMIFS(MoveQty,MoveDate,\"<\"&$B132+1,MoveCode,$C$56,MoveType,$D$71)","v":33540}]
[null,"2021-08-31",0,{"$f":"SUMIFS(MoveQty,MoveDate,\">\"&$B133,MoveDate,\"<\"&$B133+1,MoveCode,$C$56,MoveType,$D$71)","v":0},{"$f":"SUMIFS(StockCode[Opening Quantity],StockCode[Stock Code],$C$56)+SUMIFS(MoveQty,MoveDate,\"<\"&$B133+1,MoveCode,$C$56,MoveType,$D$71)","v":33540}]
[null,"2021-09-01",0,{"$f":"SUMIFS(MoveQty,MoveDate,\">\"&$B134,MoveDate,\"<\"&$B134+1,MoveCode,$C$56,MoveType,$D$71)","v":0},{"$f":"SUMIFS(StockCode[Opening Quantity],StockCode[Stock Code],$C$56)+SUMIFS(MoveQty,MoveDate,\"<\"&$B134+1,MoveCode,$C$56,MoveType,$D$71)","v":33540}]
[null,"2021-09-02",0,{"$f":"SUMIFS(MoveQty,MoveDate,\">\"&$B135,MoveDate,\"<\"&$B135+1,MoveCode,$C$56,MoveType,$D$71)","v":0},{"$f":"SUMIFS(StockCode[Opening Quantity],StockCode[Stock Code],$C$56)+SUMIFS(MoveQty,MoveDate,\"<\"&$B135+1,MoveCode,$C$56,MoveType,$D$71)","v":33540}]
[null,"2021-09-03",0,{"$f":"SUMIFS(MoveQty,MoveDate,\">\"&$B136,MoveDate,\"<\"&$B136+1,MoveCode,$C$56,MoveType,$D$71)","v":0},{"$f":"SUMIFS(StockCode[Opening Quantity],StockCode[Stock Code],$C$56)+SUMIFS(MoveQty,MoveDate,\"<\"&$B136+1,MoveCode,$C$56,MoveType,$D$71)","v":33540}]
[null,"2021-09-04",0,{"$f":"SUMIFS(MoveQty,MoveDate,\">\"&$B137,MoveDate,\"<\"&$B137+1,MoveCode,$C$56,MoveType,$D$71)","v":0},{"$f":"SUMIFS(StockCode[Opening Quantity],StockCode[Stock Code],$C$56)+SUMIFS(MoveQty,MoveDate,\"<\"&$B137+1,MoveCode,$C$56,MoveType,$D$71)","v":33540}]
[null,"2021-09-05",0,{"$f":"SUMIFS(MoveQty,MoveDate,\">\"&$B138,MoveDate,\"<\"&$B138+1,MoveCode,$C$56,MoveType,$D$71)","v":0},{"$f":"SUMIFS(StockCode[Opening Quantity],StockCode[Stock Code],$C$56)+SUMIFS(MoveQty,MoveDate,\"<\"&$B138+1,MoveCode,$C$56,MoveType,$D$71)","v":33540}]
[null,{"$f":"IF($D$55-$C$72+ROW($C139)-ROW($C$73)>$D$55,\"\",$D$55-$C$72+ROW($C139)-ROW($C$73))","v":"2021-09-06"},{"$f":"IF(ISNUMBER(B139),IF($E$71=\"Movement\",D139,E139),\"\")","v":0},{"$f":"SUMIFS(MoveQty,MoveDate,\">\"&$B139,MoveDate,\"<\"&$B139+1,MoveCode,$C$56,MoveType,$D$71)","v":0},{"$f":"SUMIFS(StockCode[Opening Quantity],StockCode[Stock Code],$C$56)+SUMIFS(MoveQty,MoveDate,\"<\"&$B139+1,MoveCode,$C$56,MoveType,$D$71)","v":33540}]
[null,"2021-09-07",0,{"$f":"SUMIFS(MoveQty,MoveDate,\">\"&$B140,MoveDate,\"<\"&$B140+1,MoveCode,$C$56,MoveType,$D$71)","v":0},{"$f":"SUMIFS(StockCode[Opening Quantity],StockCode[Stock Code],$C$56)+SUMIFS(MoveQty,MoveDate,\"<\"&$B140+1,MoveCode,$C$56,MoveType,$D$71)","v":33540}]
[null,"2021-09-08",0,{"$f":"SUMIFS(MoveQty,MoveDate,\">\"&$B141,MoveDate,\"<\"&$B141+1,MoveCode,$C$56,MoveType,$D$71)","v":0},{"$f":"SUMIFS(StockCode[Opening Quantity],StockCode[Stock Code],$C$56)+SUMIFS(MoveQty,MoveDate,\"<\"&$B141+1,MoveCode,$C$56,MoveType,$D$71)","v":33540}]
[null,"2021-09-09",-17769.155486756103,{"$f":"SUMIFS(MoveQty,MoveDate,\">\"&$B142,MoveDate,\"<\"&$B142+1,MoveCode,$C$56,MoveType,$D$71)","v":-17769.155486756103},{"$f":"SUMIFS(StockCode[Opening Quantity],StockCode[Stock Code],$C$56)+SUMIFS(MoveQty,MoveDate,\"<\"&$B142+1,MoveCode,$C$56,MoveType,$D$71)","v":15770.844513243899}]
[null,"2021-09-10",0,{"$f":"SUMIFS(MoveQty,MoveDate,\">\"&$B143,MoveDate,\"<\"&$B143+1,MoveCode,$C$56,MoveType,$D$71)","v":0},{"$f":"SUMIFS(StockCode[Opening Quantity],StockCode[Stock Code],$C$56)+SUMIFS(MoveQty,MoveDate,\"<\"&$B143+1,MoveCode,$C$56,MoveType,$D$71)","v":15770.844513243899}]
[null,"2021-09-11",0,{"$f":"SUMIFS(MoveQty,MoveDate,\">\"&$B144,MoveDate,\"<\"&$B144+1,MoveCode,$C$56,MoveType,$D$71)","v":0},{"$f":"SUMIFS(StockCode[Opening Quantity],StockCode[Stock Code],$C$56)+SUMIFS(MoveQty,MoveDate,\"<\"&$B144+1,MoveCode,$C$56,MoveType,$D$71)","v":15770.844513243899}]
[null,"2021-09-12",0,{"$f":"SUMIFS(MoveQty,MoveDate,\">\"&$B145,MoveDate,\"<\"&$B145+1,MoveCode,$C$56,MoveType,$D$71)","v":0},{"$f":"SUMIFS(StockCode[Opening Quantity],StockCode[Stock Code],$C$56)+SUMIFS(MoveQty,MoveDate,\"<\"&$B145+1,MoveCode,$C$56,MoveType,$D$71)","v":15770.844513243899}]
[null,"2021-09-13",0,{"$f":"SUMIFS(MoveQty,MoveDate,\">\"&$B146,MoveDate,\"<\"&$B146+1,MoveCode,$C$56,MoveType,$D$71)","v":0},{"$f":"SUMIFS(StockCode[Opening Quantity],StockCode[Stock Code],$C$56)+SUMIFS(MoveQty,MoveDate,\"<\"&$B146+1,MoveCode,$C$56,MoveType,$D$71)","v":15770.844513243899}]
[null,"2021-09-14",0,{"$f":"SUMIFS(MoveQty,MoveDate,\">\"&$B147,MoveDate,\"<\"&$B147+1,MoveCode,$C$56,MoveType,$D$71)","v":0},{"$f":"SUMIFS(StockCode[Opening Quantity],StockCode[Stock Code],$C$56)+SUMIFS(MoveQty,MoveDate,\"<\"&$B147+1,MoveCode,$C$56,MoveType,$D$71)","v":15770.844513243899}]
[null,"2021-09-15",0,{"$f":"SUMIFS(MoveQty,MoveDate,\">\"&$B148,MoveDate,\"<\"&$B148+1,MoveCode,$C$56,MoveType,$D$71)","v":0},{"$f":"SUMIFS(StockCode[Opening Quantity],StockCode[Stock Code],$C$56)+SUMIFS(MoveQty,MoveDate,\"<\"&$B148+1,MoveCode,$C$56,MoveType,$D$71)","v":15770.844513243899}]
[null,"2021-09-16",0,{"$f":"SUMIFS(MoveQty,MoveDate,\">\"&$B149,MoveDate,\"<\"&$B149+1,MoveCode,$C$56,MoveType,$D$71)","v":0},{"$f":"SUMIFS(StockCode[Opening Quantity],StockCode[Stock Code],$C$56)+SUMIFS(MoveQty,MoveDate,\"<\"&$B149+1,MoveCode,$C$56,MoveType,$D$71)","v":15770.844513243899}]
[null,"2021-09-17",0,{"$f":"SUMIFS(MoveQty,MoveDate,\">\"&$B150,MoveDate,\"<\"&$B150+1,MoveCode,$C$56,MoveType,$D$71)","v":0},{"$f":"SUMIFS(StockCode[Opening Quantity],StockCode[Stock Code],$C$56)+SUMIFS(MoveQty,MoveDate,\"<\"&$B150+1,MoveCode,$C$56,MoveType,$D$71)","v":15770.844513243899}]
[null,"2021-09-18",0,{"$f":"SUMIFS(MoveQty,MoveDate,\">\"&$B151,MoveDate,\"<\"&$B151+1,MoveCode,$C$56,MoveType,$D$71)","v":0},{"$f":"SUMIFS(StockCode[Opening Quantity],StockCode[Stock Code],$C$56)+SUMIFS(MoveQty,MoveDate,\"<\"&$B151+1,MoveCode,$C$56,MoveType,$D$71)","v":15770.844513243899}]
[null,"2021-09-19",0,{"$f":"SUMIFS(MoveQty,MoveDate,\">\"&$B152,MoveDate,\"<\"&$B152+1,MoveCode,$C$56,MoveType,$D$71)","v":0},{"$f":"SUMIFS(StockCode[Opening Quantity],StockCode[Stock Code],$C$56)+SUMIFS(MoveQty,MoveDate,\"<\"&$B152+1,MoveCode,$C$56,MoveType,$D$71)","v":15770.844513243899}]
[null,"2021-09-20",0,{"$f":"SUMIFS(MoveQty,MoveDate,\">\"&$B153,MoveDate,\"<\"&$B153+1,MoveCode,$C$56,MoveType,$D$71)","v":0},{"$f":"SUMIFS(StockCode[Opening Quantity],StockCode[Stock Code],$C$56)+SUMIFS(MoveQty,MoveDate,\"<\"&$B153+1,MoveCode,$C$56,MoveType,$D$71)","v":15770.844513243899}]
[null,"2021-09-21",0,{"$f":"SUMIFS(MoveQty,MoveDate,\">\"&$B154,MoveDate,\"<\"&$B154+1,MoveCode,$C$56,MoveType,$D$71)","v":0},{"$f":"SUMIFS(StockCode[Opening Quantity],StockCode[Stock Code],$C$56)+SUMIFS(MoveQty,MoveDate,\"<\"&$B154+1,MoveCode,$C$56,MoveType,$D$71)","v":15770.844513243899}]
[null,"2021-09-22",0,{"$f":"SUMIFS(MoveQty,MoveDate,\">\"&$B155,MoveDate,\"<\"&$B155+1,MoveCode,$C$56,MoveType,$D$71)","v":0},{"$f":"SUMIFS(StockCode[Opening Quantity],StockCode[Stock Code],$C$56)+SUMIFS(MoveQty,MoveDate,\"<\"&$B155+1,MoveCode,$C$56,MoveType,$D$71)","v":15770.844513243899}]
[null,"2021-09-23",0,{"$f":"SUMIFS(MoveQty,MoveDate,\">\"&$B156,MoveDate,\"<\"&$B156+1,MoveCode,$C$56,MoveType,$D$71)","v":0},{"$f":"SUMIFS(StockCode[Opening Quantity],StockCode[Stock Code],$C$56)+SUMIFS(MoveQty,MoveDate,\"<\"&$B156+1,MoveCode,$C$56,MoveType,$D$71)","v":15770.844513243899}]
[null,"2021-09-24",0,{"$f":"SUMIFS(MoveQty,MoveDate,\">\"&$B157,MoveDate,\"<\"&$B157+1,MoveCode,$C$56,MoveType,$D$71)","v":0},{"$f":"SUMIFS(StockCode[Opening Quantity],StockCode[Stock Code],$C$56)+SUMIFS(MoveQty,MoveDate,\"<\"&$B157+1,MoveCode,$C$56,MoveType,$D$71)","v":15770.844513243899}]
[null,"2021-09-25",0,{"$f":"SUMIFS(MoveQty,MoveDate,\">\"&$B158,MoveDate,\"<\"&$B158+1,MoveCode,$C$56,MoveType,$D$71)","v":0},{"$f":"SUMIFS(StockCode[Opening Quantity],StockCode[Stock Code],$C$56)+SUMIFS(MoveQty,MoveDate,\"<\"&$B158+1,MoveCode,$C$56,MoveType,$D$71)","v":15770.844513243899}]
[null,"2021-09-26",0,{"$f":"SUMIFS(MoveQty,MoveDate,\">\"&$B159,MoveDate,\"<\"&$B159+1,MoveCode,$C$56,MoveType,$D$71)","v":0},{"$f":"SUMIFS(StockCode[Opening Quantity],StockCode[Stock Code],$C$56)+SUMIFS(MoveQty,MoveDate,\"<\"&$B159+1,MoveCode,$C$56,MoveType,$D$71)","v":15770.844513243899}]
[null,"2021-09-27",0,{"$f":"SUMIFS(MoveQty,MoveDate,\">\"&$B160,MoveDate,\"<\"&$B160+1,MoveCode,$C$56,MoveType,$D$71)","v":0},{"$f":"SUMIFS(StockCode[Opening Quantity],StockCode[Stock Code],$C$56)+SUMIFS(MoveQty,MoveDate,\"<\"&$B160+1,MoveCode,$C$56,MoveType,$D$71)","v":15770.844513243899}]
[null,"2021-09-28",0,{"$f":"SUMIFS(MoveQty,MoveDate,\">\"&$B161,MoveDate,\"<\"&$B161+1,MoveCode,$C$56,MoveType,$D$71)","v":0},{"$f":"SUMIFS(StockCode[Opening Quantity],StockCode[Stock Code],$C$56)+SUMIFS(MoveQty,MoveDate,\"<\"&$B161+1,MoveCode,$C$56,MoveType,$D$71)","v":15770.844513243899}]
[null,"2021-09-29",0,{"$f":"SUMIFS(MoveQty,MoveDate,\">\"&$B162,MoveDate,\"<\"&$B162+1,MoveCode,$C$56,MoveType,$D$71)","v":0},{"$f":"SUMIFS(StockCode[Opening Quantity],StockCode[Stock Code],$C$56)+SUMIFS(MoveQty,MoveDate,\"<\"&$B162+1,MoveCode,$C$56,MoveType,$D$71)","v":15770.844513243899}]
[null,"2021-09-30",0,{"$f":"SUMIFS(MoveQty,MoveDate,\">\"&$B163,MoveDate,\"<\"&$B163+1,MoveCode,$C$56,MoveType,$D$71)","v":0},{"$f":"SUMIFS(StockCode[Opening Quantity],StockCode[Stock Code],$C$56)+SUMIFS(MoveQty,MoveDate,\"<\"&$B163+1,MoveCode,$C$56,MoveType,$D$71)","v":15770.844513243899}]
["Number of Weeks",null,13,{"$f":"$C164&\"-Week \"&$E$71&\" Report\"","v":"13-Week Movement Report"}]
[null,"Date","Value","Movement","Balance"]
[null,{"$f":"$D$55+IF(WEEKDAY($D$55,2)<>7,7-WEEKDAY($D$55,2),0)-(7*$C$164)+((ROW($C166)-ROW($C$165))*7)","v":"2021-07-11"},{"$f":"IF(ISNUMBER(B166),IF($E$71=\"Movement\",D166,E166),\"\")","v":0},{"$f":"SUMIFS(MoveQty,MoveDate,\">\"&B166-6,MoveDate,\"<\"&$B166+1,MoveCode,$C$56,MoveType,$D$71)","v":0},{"$f":"SUMIFS(StockCode[Opening Quantity],StockCode[Stock Code],$C$56)+SUMIFS(MoveQty,MoveDate,\"<\"&$B166+1,MoveCode,$C$56,MoveType,$D$71)","v":6873}]
[null,{"$f":"$D$55+IF(WEEKDAY($D$55,2)<>7,7-WEEKDAY($D$55,2),0)-(7*$C$164)+((ROW($C167)-ROW($C$165))*7)","v":"2021-07-18"},{"$f":"IF(ISNUMBER(B167),IF($E$71=\"Movement\",D167,E167),\"\")","v":0},{"$f":"SUMIFS(MoveQty,MoveDate,\">\"&B167-6,MoveDate,\"<\"&$B167+1,MoveCode,$C$56,MoveType,$D$71)","v":0},{"$f":"SUMIFS(StockCode[Opening Quantity],StockCode[Stock Code],$C$56)+SUMIFS(MoveQty,MoveDate,\"<\"&$B167+1,MoveCode,$C$56,MoveType,$D$71)","v":6873}]
[null,"2021-07-25",15948,{"$f":"SUMIFS(MoveQty,MoveDate,\">\"&B168-6,MoveDate,\"<\"&$B168+1,MoveCode,$C$56,MoveType,$D$71)","v":15948},{"$f":"SUMIFS(StockCode[Opening Quantity],StockCode[Stock Code],$C$56)+SUMIFS(MoveQty,MoveDate,\"<\"&$B168+1,MoveCode,$C$56,MoveType,$D$71)","v":22821}]
[null,"2021-08-01",0,{"$f":"SUMIFS(MoveQty,MoveDate,\">\"&B169-6,MoveDate,\"<\"&$B169+1,MoveCode,$C$56,MoveType,$D$71)","v":0},{"$f":"SUMIFS(StockCode[Opening Quantity],StockCode[Stock Code],$C$56)+SUMIFS(MoveQty,MoveDate,\"<\"&$B169+1,MoveCode,$C$56,MoveType,$D$71)","v":22821}]
[null,"2021-08-08",2122,{"$f":"SUMIFS(MoveQty,MoveDate,\">\"&B170-6,MoveDate,\"<\"&$B170+1,MoveCode,$C$56,MoveType,$D$71)","v":2122},{"$f":"SUMIFS(StockCode[Opening Quantity],StockCode[Stock Code],$C$56)+SUMIFS(MoveQty,MoveDate,\"<\"&$B170+1,MoveCode,$C$56,MoveType,$D$71)","v":24943}]
[null,"2021-08-15",-1301,{"$f":"SUMIFS(MoveQty,MoveDate,\">\"&B171-6,MoveDate,\"<\"&$B171+1,MoveCode,$C$56,MoveType,$D$71)","v":-1301},{"$f":"SUMIFS(StockCode[Opening Quantity],StockCode[Stock Code],$C$56)+SUMIFS(MoveQty,MoveDate,\"<\"&$B171+1,MoveCode,$C$56,MoveType,$D$71)","v":23642}]
[null,"2021-08-22",-12332,{"$f":"SUMIFS(MoveQty,MoveDate,\">\"&B172-6,MoveDate,\"<\"&$B172+1,MoveCode,$C$56,MoveType,$D$71)","v":-12332},{"$f":"SUMIFS(StockCode[Opening Quantity],StockCode[Stock Code],$C$56)+SUMIFS(MoveQty,MoveDate,\"<\"&$B172+1,MoveCode,$C$56,MoveType,$D$71)","v":11310}]
[null,"2021-08-29",0,{"$f":"SUMIFS(MoveQty,MoveDate,\">\"&B173-6,MoveDate,\"<\"&$B173+1,MoveCode,$C$56,MoveType,$D$71)","v":0},{"$f":"SUMIFS(StockCode[Opening Quantity],StockCode[Stock Code],$C$56)+SUMIFS(MoveQty,MoveDate,\"<\"&$B173+1,MoveCode,$C$56,MoveType,$D$71)","v":11310}]
[null,"2021-09-05",22230,{"$f":"SUMIFS(MoveQty,MoveDate,\">\"&B174-6,MoveDate,\"<\"&$B174+1,MoveCode,$C$56,MoveType,$D$71)","v":22230},{"$f":"SUMIFS(StockCode[Opening Quantity],StockCode[Stock Code],$C$56)+SUMIFS(MoveQty,MoveDate,\"<\"&$B174+1,MoveCode,$C$56,MoveType,$D$71)","v":33540}]
[null,"2021-09-12",-17769.155486756103,{"$f":"SUMIFS(MoveQty,MoveDate,\">\"&B175-6,MoveDate,\"<\"&$B175+1,MoveCode,$C$56,MoveType,$D$71)","v":-17769.155486756103},{"$f":"SUMIFS(StockCode[Opening Quantity],StockCode[Stock Code],$C$56)+SUMIFS(MoveQty,MoveDate,\"<\"&$B175+1,MoveCode,$C$56,MoveType,$D$71)","v":15770.844513243899}]
[null,"2021-09-19",0,{"$f":"SUMIFS(MoveQty,MoveDate,\">\"&B176-6,MoveDate,\"<\"&$B176+1,MoveCode,$C$56,MoveType,$D$71)","v":0},{"$f":"SUMIFS(StockCode[Opening Quantity],StockCode[Stock Code],$C$56)+SUMIFS(MoveQty,MoveDate,\"<\"&$B176+1,MoveCode,$C$56,MoveType,$D$71)","v":15770.844513243899}]
[null,"2021-09-26",0,{"$f":"SUMIFS(MoveQty,MoveDate,\">\"&B177-6,MoveDate,\"<\"&$B177+1,MoveCode,$C$56,MoveType,$D$71)","v":0},{"$f":"SUMIFS(StockCode[Opening Quantity],StockCode[Stock Code],$C$56)+SUMIFS(MoveQty,MoveDate,\"<\"&$B177+1,MoveCode,$C$56,MoveType,$D$71)","v":15770.844513243899}]
[null,"2021-10-03",0,{"$f":"SUMIFS(MoveQty,MoveDate,\">\"&B178-6,MoveDate,\"<\"&$B178+1,MoveCode,$C$56,MoveType,$D$71)","v":0},{"$f":"SUMIFS(StockCode[Opening Quantity],StockCode[Stock Code],$C$56)+SUMIFS(MoveQty,MoveDate,\"<\"&$B178+1,MoveCode,$C$56,MoveType,$D$71)","v":15770.844513243899}]
["Number of Months",null,12,{"$f":"$C$179&\"-Month \"&$E$71&\" Report\"","v":"12-Month Movement Report"}]
[null,"Date","Value","Movement","Balance"]
[null,{"$f":"DATE(YEAR($D$55),MONTH($D$55)-$C$179+1+ROW($C181)-ROW($C$180),0)","v":"2020-10-31"},{"$f":"IF(ISNUMBER(B181),IF($E$71=\"Movement\",D181,E181),\"\")","v":0},{"$f":"SUMIFS(MoveQty,MoveDate,\">\"&DATE(YEAR(B181),MONTH(B181),1),MoveDate,\"<\"&$B181+1,MoveCode,$C$56,MoveType,$D$71)","v":0},{"$f":"SUMIFS(StockCode[Opening Quantity],StockCode[Stock Code],$C$56)+SUMIFS(MoveQty,MoveDate,\"<\"&$B181+1,MoveCode,$C$56,MoveType,$D$71)","v":11257}]
[null,"2020-11-30",0,{"$f":"SUMIFS(MoveQty,MoveDate,\">\"&DATE(YEAR(B182),MONTH(B182),1),MoveDate,\"<\"&$B182+1,MoveCode,$C$56,MoveType,$D$71)","v":0},{"$f":"SUMIFS(StockCode[Opening Quantity],StockCode[Stock Code],$C$56)+SUMIFS(MoveQty,MoveDate,\"<\"&$B182+1,MoveCode,$C$56,MoveType,$D$71)","v":11257}]
[null,"2020-12-31",0,{"$f":"SUMIFS(MoveQty,MoveDate,\">\"&DATE(YEAR(B183),MONTH(B183),1),MoveDate,\"<\"&$B183+1,MoveCode,$C$56,MoveType,$D$71)","v":0},{"$f":"SUMIFS(StockCode[Opening Quantity],StockCode[Stock Code],$C$56)+SUMIFS(MoveQty,MoveDate,\"<\"&$B183+1,MoveCode,$C$56,MoveType,$D$71)","v":11257}]
[null,"2021-01-31",0,{"$f":"SUMIFS(MoveQty,MoveDate,\">\"&DATE(YEAR(B184),MONTH(B184),1),MoveDate,\"<\"&$B184+1,MoveCode,$C$56,MoveType,$D$71)","v":0},{"$f":"SUMIFS(StockCode[Opening Quantity],StockCode[Stock Code],$C$56)+SUMIFS(MoveQty,MoveDate,\"<\"&$B184+1,MoveCode,$C$56,MoveType,$D$71)","v":11257}]
[null,"2021-02-28",0,{"$f":"SUMIFS(MoveQty,MoveDate,\">\"&DATE(YEAR(B185),MONTH(B185),1),MoveDate,\"<\"&$B185+1,MoveCode,$C$56,MoveType,$D$71)","v":0},{"$f":"SUMIFS(StockCode[Opening Quantity],StockCode[Stock Code],$C$56)+SUMIFS(MoveQty,MoveDate,\"<\"&$B185+1,MoveCode,$C$56,MoveType,$D$71)","v":11257}]
[null,"2021-03-31",0,{"$f":"SUMIFS(MoveQty,MoveDate,\">\"&DATE(YEAR(B186),MONTH(B186),1),MoveDate,\"<\"&$B186+1,MoveCode,$C$56,MoveType,$D$71)","v":0},{"$f":"SUMIFS(StockCode[Opening Quantity],StockCode[Stock Code],$C$56)+SUMIFS(MoveQty,MoveDate,\"<\"&$B186+1,MoveCode,$C$56,MoveType,$D$71)","v":11257}]
[null,"2021-04-30",0,{"$f":"SUMIFS(MoveQty,MoveDate,\">\"&DATE(YEAR(B187),MONTH(B187),1),MoveDate,\"<\"&$B187+1,MoveCode,$C$56,MoveType,$D$71)","v":0},{"$f":"SUMIFS(StockCode[Opening Quantity],StockCode[Stock Code],$C$56)+SUMIFS(MoveQty,MoveDate,\"<\"&$B187+1,MoveCode,$C$56,MoveType,$D$71)","v":11257}]
[null,"2021-05-31",0,{"$f":"SUMIFS(MoveQty,MoveDate,\">\"&DATE(YEAR(B188),MONTH(B188),1),MoveDate,\"<\"&$B188+1,MoveCode,$C$56,MoveType,$D$71)","v":0},{"$f":"SUMIFS(StockCode[Opening Quantity],StockCode[Stock Code],$C$56)+SUMIFS(MoveQty,MoveDate,\"<\"&$B188+1,MoveCode,$C$56,MoveType,$D$71)","v":11257}]
[null,"2021-06-30",0,{"$f":"SUMIFS(MoveQty,MoveDate,\">\"&DATE(YEAR(B189),MONTH(B189),1),MoveDate,\"<\"&$B189+1,MoveCode,$C$56,MoveType,$D$71)","v":0},{"$f":"SUMIFS(StockCode[Opening Quantity],StockCode[Stock Code],$C$56)+SUMIFS(MoveQty,MoveDate,\"<\"&$B189+1,MoveCode,$C$56,MoveType,$D$71)","v":11257}]
[null,"2021-07-31",11564,{"$f":"SUMIFS(MoveQty,MoveDate,\">\"&DATE(YEAR(B190),MONTH(B190),1),MoveDate,\"<\"&$B190+1,MoveCode,$C$56,MoveType,$D$71)","v":11564},{"$f":"SUMIFS(StockCode[Opening Quantity],StockCode[Stock Code],$C$56)+SUMIFS(MoveQty,MoveDate,\"<\"&$B190+1,MoveCode,$C$56,MoveType,$D$71)","v":22821}]
[null,"2021-08-31",10719,{"$f":"SUMIFS(MoveQty,MoveDate,\">\"&DATE(YEAR(B191),MONTH(B191),1),MoveDate,\"<\"&$B191+1,MoveCode,$C$56,MoveType,$D$71)","v":10719},{"$f":"SUMIFS(StockCode[Opening Quantity],StockCode[Stock Code],$C$56)+SUMIFS(MoveQty,MoveDate,\"<\"&$B191+1,MoveCode,$C$56,MoveType,$D$71)","v":33540}]
[null,"2021-09-30",-17769.155486756103,{"$f":"SUMIFS(MoveQty,MoveDate,\">\"&DATE(YEAR(B192),MONTH(B192),1),MoveDate,\"<\"&$B192+1,MoveCode,$C$56,MoveType,$D$71)","v":-17769.155486756103},{"$f":"SUMIFS(StockCode[Opening Quantity],StockCode[Stock Code],$C$56)+SUMIFS(MoveQty,MoveDate,\"<\"&$B192+1,MoveCode,$C$56,MoveType,$D$71)","v":15770.844513243899}]
["Top 5 Sale",null,"Full","Qty","rank","sequence"]
[null,{"$f":"IF(ISERROR(INDEX(StockMaster,SMALL(IF(DBSaleQty>=LARGE(DBSaleQty,MIN(5,CodeCount)),ROW(DBSaleQty)-ROW(StockCodes!$A$5)),ROW(1:1)),COLUMN(StockCodes!$A$5))),\"\",INDEX(StockMaster,SMALL(IF(DBSaleQty>=LARGE(DBSaleQty,MIN(5,CodeCount)),ROW(DBSaleQty)-ROW(StockCodes!$A$5)),ROW(1:1)),COLUMN(StockCodes!$A$5)))","v":"1212GHG"},{"$f":"B194&\" \"&IF(ISNA(VLOOKUP($B194,StockMaster,COLUMN(StockCodes!$B$5),0)),\"\",VLOOKUP($B194,StockMaster,COLUMN(StockCodes!$B$5),0))","v":"1212GHG Garden Shed"},{"$f":"IF(ISNA(VLOOKUP($B194,StockMaster,COLUMN(StockCodes!$O$5),0)),\"\",VLOOKUP($B194,StockMaster,COLUMN(StockCodes!$O$5),0))","v":1350},{"$f":"IF(ISNUMBER(D194)=FALSE,\"\",RANK(D194,$D$194:$D$198,0))","v":1},{"$f":"IF(ISNUMBER(E194)=FALSE,\"\",E194+COUNTIF($E$194:$E194,$E194)-1)","v":1}]
[null,{"$f":"IF(ISERROR(INDEX(StockMaster,SMALL(IF(DBSaleQty>=LARGE(DBSaleQty,MIN(5,CodeCount)),ROW(DBSaleQty)-ROW(StockCodes!$A$5)),ROW(2:2)),COLUMN(StockCodes!$A$5))),\"\",INDEX(StockMaster,SMALL(IF(DBSaleQty>=LARGE(DBSaleQty,MIN(5,CodeCount)),ROW(DBSaleQty)-ROW(StockCodes!$A$5)),ROW(2:2)),COLUMN(StockCodes!$A$5)))","v":"1212PHP"},{"$f":"B195&\" \"&IF(ISNA(VLOOKUP($B195,StockMaster,COLUMN(StockCodes!$B$5),0)),\"\",VLOOKUP($B195,StockMaster,COLUMN(StockCodes!$B$5),0))","v":"1212PHP Painted Garden Shed"},{"$f":"IF(ISNA(VLOOKUP($B195,StockMaster,COLUMN(StockCodes!$O$5),0)),\"\",VLOOKUP($B195,StockMaster,COLUMN(StockCodes!$O$5),0))","v":610},{"$f":"IF(ISNUMBER(D195)=FALSE,\"\",RANK(D195,$D$194:$D$198,0))","v":2},{"$f":"IF(ISNUMBER(E195)=FALSE,\"\",E195+COUNTIF($E$194:$E195,$E195)-1)","v":2}]
[null,{"$f":"IF(ISERROR(INDEX(StockMaster,SMALL(IF(DBSaleQty>=LARGE(DBSaleQty,MIN(5,CodeCount)),ROW(DBSaleQty)-ROW(StockCodes!$A$5)),ROW(3:3)),COLUMN(StockCodes!$A$5))),\"\",INDEX(StockMaster,SMALL(IF(DBSaleQty>=LARGE(DBSaleQty,MIN(5,CodeCount)),ROW(DBSaleQty)-ROW(StockCodes!$A$5)),ROW(3:3)),COLUMN(StockCodes!$A$5)))","v":"1212THT"},{"$f":"B196&\" \"&IF(ISNA(VLOOKUP($B196,StockMaster,COLUMN(StockCodes!$B$5),0)),\"\",VLOOKUP($B196,StockMaster,COLUMN(StockCodes!$B$5),0))","v":"1212THT Tools Shed"},{"$f":"IF(ISNA(VLOOKUP($B196,StockMaster,COLUMN(StockCodes!$O$5),0)),\"\",VLOOKUP($B196,StockMaster,COLUMN(StockCodes!$O$5),0))","v":240},3,{"$f":"IF(ISNUMBER(E196)=FALSE,\"\",E196+COUNTIF($E$194:$E196,$E196)-1)","v":3}]
[null,{"$f":"IF(ISERROR(INDEX(StockMaster,SMALL(IF(DBSaleQty>=LARGE(DBSaleQty,MIN(5,CodeCount)),ROW(DBSaleQty)-ROW(StockCodes!$A$5)),ROW(4:4)),COLUMN(StockCodes!$A$5))),\"\",INDEX(StockMaster,SMALL(IF(DBSaleQty>=LARGE(DBSaleQty,MIN(5,CodeCount)),ROW(DBSaleQty)-ROW(StockCodes!$A$5)),ROW(4:4)),COLUMN(StockCodes!$A$5)))","v":"RM10"},{"$f":"B197&\" \"&IF(ISNA(VLOOKUP($B197,StockMaster,COLUMN(StockCodes!$B$5),0)),\"\",VLOOKUP($B197,StockMaster,COLUMN(StockCodes!$B$5),0))","v":"RM10 Steel Plates"},{"$f":"IF(ISNA(VLOOKUP($B197,StockMaster,COLUMN(StockCodes!$O$5),0)),\"\",VLOOKUP($B197,StockMaster,COLUMN(StockCodes!$O$5),0))","v":0},4,{"$f":"IF(ISNUMBER(E197)=FALSE,\"\",E197+COUNTIF($E$194:$E197,$E197)-1)","v":4}]
[null,{"$f":"IF(ISERROR(INDEX(StockMaster,SMALL(IF(DBSaleQty>=LARGE(DBSaleQty,MIN(5,CodeCount)),ROW(DBSaleQty)-ROW(StockCodes!$A$5)),ROW(5:5)),COLUMN(StockCodes!$A$5))),\"\",INDEX(StockMaster,SMALL(IF(DBSaleQty>=LARGE(DBSaleQty,MIN(5,CodeCount)),ROW(DBSaleQty)-ROW(StockCodes!$A$5)),ROW(5:5)),COLUMN(StockCodes!$A$5)))","v":"RM25"},{"$f":"B198&\" \"&IF(ISNA(VLOOKUP($B198,StockMaster,COLUMN(StockCodes!$B$5),0)),\"\",VLOOKUP($B198,StockMaster,COLUMN(StockCodes!$B$5),0))","v":"RM25 Door Handle"},{"$f":"IF(ISNA(VLOOKUP($B198,StockMaster,COLUMN(StockCodes!$O$5),0)),\"\",VLOOKUP($B198,StockMaster,COLUMN(StockCodes!$O$5),0))","v":0},4,{"$f":"IF(ISNUMBER(E198)=FALSE,\"\",E198+COUNTIF($E$194:$E198,$E198)-1)","v":5}]
["Top 5 Issues",null,"Full","Qty","rank","sequence"]
[null,{"$f":"IF(ISERROR(INDEX(StockMaster,SMALL(IF(DBIssueQty>=LARGE(DBIssueQty,MIN(5,CodeCount)),ROW(DBIssueQty)-ROW(StockCodes!$A$5)),ROW(1:1)),COLUMN(StockCodes!$A$5))),\"\",INDEX(StockMaster,SMALL(IF(DBIssueQty>=LARGE(DBIssueQty,MIN(5,CodeCount)),ROW(DBIssueQty)-ROW(StockCodes!$A$5)),ROW(1:1)),COLUMN(StockCodes!$A$5)))","v":"RM10"},{"$f":"B200&\" \"&IF(ISNA(VLOOKUP($B200,StockMaster,COLUMN(StockCodes!$B$5),0)),\"\",VLOOKUP($B200,StockMaster,COLUMN(StockCodes!$B$5),0))","v":"RM10 Steel Plates"},{"$f":"IF(ISNA(VLOOKUP($B200,StockMaster,COLUMN(StockCodes!$P$5),0)),\"\",VLOOKUP($B200,StockMaster,COLUMN(StockCodes!$P$5),0))","v":13061.111111111109},{"$f":"IF(ISNUMBER(D200)=FALSE,\"\",RANK(D200,$D$200:$D$204,0))","v":2},{"$f":"IF(ISNUMBER(E200)=FALSE,\"\",E200+COUNTIF($E$200:$E200,$E200)-1)","v":2}]
[null,{"$f":"IF(ISERROR(INDEX(StockMaster,SMALL(IF(DBIssueQty>=LARGE(DBIssueQty,MIN(5,CodeCount)),ROW(DBIssueQty)-ROW(StockCodes!$A$5)),ROW(2:2)),COLUMN(StockCodes!$A$5))),\"\",INDEX(StockMaster,SMALL(IF(DBIssueQty>=LARGE(DBIssueQty,MIN(5,CodeCount)),ROW(DBIssueQty)-ROW(StockCodes!$A$5)),ROW(2:2)),COLUMN(StockCodes!$A$5)))","v":"RM30"},{"$f":"B201&\" \"&IF(ISNA(VLOOKUP($B201,StockMaster,COLUMN(StockCodes!$B$5),0)),\"\",VLOOKUP($B201,StockMaster,COLUMN(StockCodes!$B$5),0))","v":"RM30 Wood"},{"$f":"IF(ISNA(VLOOKUP($B201,StockMaster,COLUMN(StockCodes!$P$5),0)),\"\",VLOOKUP($B201,StockMaster,COLUMN(StockCodes!$P$5),0))","v":17151.169590643269},{"$f":"IF(ISNUMBER(D201)=FALSE,\"\",RANK(D201,$D$200:$D$204,0))","v":1},{"$f":"IF(ISNUMBER(E201)=FALSE,\"\",E201+COUNTIF($E$200:$E201,$E201)-1)","v":1}]
[null,{"$f":"IF(ISERROR(INDEX(StockMaster,SMALL(IF(DBIssueQty>=LARGE(DBIssueQty,MIN(5,CodeCount)),ROW(DBIssueQty)-ROW(StockCodes!$A$5)),ROW(3:3)),COLUMN(StockCodes!$A$5))),\"\",INDEX(StockMaster,SMALL(IF(DBIssueQty>=LARGE(DBIssueQty,MIN(5,CodeCount)),ROW(DBIssueQty)-ROW(StockCodes!$A$5)),ROW(3:3)),COLUMN(StockCodes!$A$5)))","v":"RM55"},{"$f":"B202&\" \"&IF(ISNA(VLOOKUP($B202,StockMaster,COLUMN(StockCodes!$B$5),0)),\"\",VLOOKUP($B202,StockMaster,COLUMN(StockCodes!$B$5),0))","v":"RM55 2 Inch Screws"},{"$f":"IF(ISNA(VLOOKUP($B202,StockMaster,COLUMN(StockCodes!$P$5),0)),\"\",VLOOKUP($B202,StockMaster,COLUMN(StockCodes!$P$5),0))","v":3979.34640522876},3,{"$f":"IF(ISNUMBER(E202)=FALSE,\"\",E202+COUNTIF($E$200:$E202,$E202)-1)","v":3}]
[null,{"$f":"IF(ISERROR(INDEX(StockMaster,SMALL(IF(DBIssueQty>=LARGE(DBIssueQty,MIN(5,CodeCount)),ROW(DBIssueQty)-ROW(StockCodes!$A$5)),ROW(4:4)),COLUMN(StockCodes!$A$5))),\"\",INDEX(StockMaster,SMALL(IF(DBIssueQty>=LARGE(DBIssueQty,MIN(5,CodeCount)),ROW(DBIssueQty)-ROW(StockCodes!$A$5)),ROW(4:4)),COLUMN(StockCodes!$A$5)))","v":"RM60"},{"$f":"B203&\" \"&IF(ISNA(VLOOKUP($B203,StockMaster,COLUMN(StockCodes!$B$5),0)),\"\",VLOOKUP($B203,StockMaster,COLUMN(StockCodes!$B$5),0))","v":"RM60 Glass"},{"$f":"IF(ISNA(VLOOKUP($B203,StockMaster,COLUMN(StockCodes!$P$5),0)),\"\",VLOOKUP($B203,StockMaster,COLUMN(StockCodes!$P$5),0))","v":2670.7739938080499},4,{"$f":"IF(ISNUMBER(E203)=FALSE,\"\",E203+COUNTIF($E$200:$E203,$E203)-1)","v":4}]
[null,{"$f":"IF(ISERROR(INDEX(StockMaster,SMALL(IF(DBIssueQty>=LARGE(DBIssueQty,MIN(5,CodeCount)),ROW(DBIssueQty)-ROW(StockCodes!$A$5)),ROW(5:5)),COLUMN(StockCodes!$A$5))),\"\",INDEX(StockMaster,SMALL(IF(DBIssueQty>=LARGE(DBIssueQty,MIN(5,CodeCount)),ROW(DBIssueQty)-ROW(StockCodes!$A$5)),ROW(5:5)),COLUMN(StockCodes!$A$5)))","v":"RM75"},{"$f":"B204&\" \"&IF(ISNA(VLOOKUP($B204,StockMaster,COLUMN(StockCodes!$B$5),0)),\"\",VLOOKUP($B204,StockMaster,COLUMN(StockCodes!$B$5),0))","v":"RM75 Swivel"},{"$f":"IF(ISNA(VLOOKUP($B204,StockMaster,COLUMN(StockCodes!$P$5),0)),\"\",VLOOKUP($B204,StockMaster,COLUMN(StockCodes!$P$5),0))","v":2380},5,{"$f":"IF(ISNUMBER(E204)=FALSE,\"\",E204+COUNTIF($E$200:$E204,$E204)-1)","v":5}]
["Top 5 Purchases",null,"Full","Qty","rank","sequence"]
[null,{"$f":"IF(ISERROR(INDEX(StockMaster,SMALL(IF(DBPurchQty>=LARGE(DBPurchQty,MIN(5,CodeCount)),ROW(DBPurchQty)-ROW(StockCodes!$A$5)),ROW(1:1)),COLUMN(StockCodes!$A$5))),\"\",INDEX(StockMaster,SMALL(IF(DBPurchQty>=LARGE(DBPurchQty,MIN(5,CodeCount)),ROW(DBPurchQty)-ROW(StockCodes!$A$5)),ROW(1:1)),COLUMN(StockCodes!$A$5)))","v":"RM10"},{"$f":"B206&\" \"&IF(ISNA(VLOOKUP($B206,StockMaster,COLUMN(StockCodes!$B$5),0)),\"\",VLOOKUP($B206,StockMaster,COLUMN(StockCodes!$B$5),0))","v":"RM10 Steel Plates"},{"$f":"IF(ISNA(VLOOKUP($B206,StockMaster,COLUMN(StockCodes!$M$5),0)),\"\",VLOOKUP($B206,StockMaster,COLUMN(StockCodes!$M$5),0))","v":17000},{"$f":"IF(ISNUMBER(D206)=FALSE,\"\",RANK(D206,$D$206:$D$210,0))","v":2},{"$f":"IF(ISNUMBER(E206)=FALSE,\"\",E206+COUNTIF($E$206:$E206,$E206)-1)","v":2}]
[null,{"$f":"IF(ISERROR(INDEX(StockMaster,SMALL(IF(DBPurchQty>=LARGE(DBPurchQty,MIN(5,CodeCount)),ROW(DBPurchQty)-ROW(StockCodes!$A$5)),ROW(2:2)),COLUMN(StockCodes!$A$5))),\"\",INDEX(StockMaster,SMALL(IF(DBPurchQty>=LARGE(DBPurchQty,MIN(5,CodeCount)),ROW(DBPurchQty)-ROW(StockCodes!$A$5)),ROW(2:2)),COLUMN(StockCodes!$A$5)))","v":"RM30"},{"$f":"B207&\" \"&IF(ISNA(VLOOKUP($B207,StockMaster,COLUMN(StockCodes!$B$5),0)),\"\",VLOOKUP($B207,StockMaster,COLUMN(StockCodes!$B$5),0))","v":"RM30 Wood"},{"$f":"IF(ISNA(VLOOKUP($B207,StockMaster,COLUMN(StockCodes!$M$5),0)),\"\",VLOOKUP($B207,StockMaster,COLUMN(StockCodes!$M$5),0))","v":22000},{"$f":"IF(ISNUMBER(D207)=FALSE,\"\",RANK(D207,$D$206:$D$210,0))","v":1},{"$f":"IF(ISNUMBER(E207)=FALSE,\"\",E207+COUNTIF($E$206:$E207,$E207)-1)","v":1}]
[null,{"$f":"IF(ISERROR(INDEX(StockMaster,SMALL(IF(DBPurchQty>=LARGE(DBPurchQty,MIN(5,CodeCount)),ROW(DBPurchQty)-ROW(StockCodes!$A$5)),ROW(3:3)),COLUMN(StockCodes!$A$5))),\"\",INDEX(StockMaster,SMALL(IF(DBPurchQty>=LARGE(DBPurchQty,MIN(5,CodeCount)),ROW(DBPurchQty)-ROW(StockCodes!$A$5)),ROW(3:3)),COLUMN(StockCodes!$A$5)))","v":"RM55"},{"$f":"B208&\" \"&IF(ISNA(VLOOKUP($B208,StockMaster,COLUMN(StockCodes!$B$5),0)),\"\",VLOOKUP($B208,StockMaster,COLUMN(StockCodes!$B$5),0))","v":"RM55 2 Inch Screws"},{"$f":"IF(ISNA(VLOOKUP($B208,StockMaster,COLUMN(StockCodes!$M$5),0)),\"\",VLOOKUP($B208,StockMaster,COLUMN(StockCodes!$M$5),0))","v":3000},3,{"$f":"IF(ISNUMBER(E208)=FALSE,\"\",E208+COUNTIF($E$206:$E208,$E208)-1)","v":3}]
[null,{"$f":"IF(ISERROR(INDEX(StockMaster,SMALL(IF(DBPurchQty>=LARGE(DBPurchQty,MIN(5,CodeCount)),ROW(DBPurchQty)-ROW(StockCodes!$A$5)),ROW(4:4)),COLUMN(StockCodes!$A$5))),\"\",INDEX(StockMaster,SMALL(IF(DBPurchQty>=LARGE(DBPurchQty,MIN(5,CodeCount)),ROW(DBPurchQty)-ROW(StockCodes!$A$5)),ROW(4:4)),COLUMN(StockCodes!$A$5)))","v":"RM60"},{"$f":"B209&\" \"&IF(ISNA(VLOOKUP($B209,StockMaster,COLUMN(StockCodes!$B$5),0)),\"\",VLOOKUP($B209,StockMaster,COLUMN(StockCodes!$B$5),0))","v":"RM60 Glass"},{"$f":"IF(ISNA(VLOOKUP($B209,StockMaster,COLUMN(StockCodes!$M$5),0)),\"\",VLOOKUP($B209,StockMaster,COLUMN(StockCodes!$M$5),0))","v":2000},4,{"$f":"IF(ISNUMBER(E209)=FALSE,\"\",E209+COUNTIF($E$206:$E209,$E209)-1)","v":4}]
[null,{"$f":"IF(ISERROR(INDEX(StockMaster,SMALL(IF(DBPurchQty>=LARGE(DBPurchQty,MIN(5,CodeCount)),ROW(DBPurchQty)-ROW(StockCodes!$A$5)),ROW(5:5)),COLUMN(StockCodes!$A$5))),\"\",INDEX(StockMaster,SMALL(IF(DBPurchQty>=LARGE(DBPurchQty,MIN(5,CodeCount)),ROW(DBPurchQty)-ROW(StockCodes!$A$5)),ROW(5:5)),COLUMN(StockCodes!$A$5)))","v":"RM75"},{"$f":"B210&\" \"&IF(ISNA(VLOOKUP($B210,StockMaster,COLUMN(StockCodes!$B$5),0)),\"\",VLOOKUP($B210,StockMaster,COLUMN(StockCodes!$B$5),0))","v":"RM75 Swivel"},{"$f":"IF(ISNA(VLOOKUP($B210,StockMaster,COLUMN(StockCodes!$M$5),0)),\"\",VLOOKUP($B210,StockMaster,COLUMN(StockCodes!$M$5),0))","v":1520},5,{"$f":"IF(ISNUMBER(E210)=FALSE,\"\",E210+COUNTIF($E$206:$E210,$E210)-1)","v":5}]
["Top 5 Receipts",null,"Full","Qty","rank","sequence"]
[null,{"$f":"IF(ISERROR(INDEX(StockMaster,SMALL(IF(DBReceiptQty>=LARGE(DBReceiptQty,MIN(5,CodeCount)),ROW(DBReceiptQty)-ROW(StockCodes!$A$5)),ROW(1:1)),COLUMN(StockCodes!$A$5))),\"\",INDEX(StockMaster,SMALL(IF(DBReceiptQty>=LARGE(DBReceiptQty,MIN(5,CodeCount)),ROW(DBReceiptQty)-ROW(StockCodes!$A$5)),ROW(1:1)),COLUMN(StockCodes!$A$5)))","v":"1212GHG"},{"$f":"B212&\" \"&IF(ISNA(VLOOKUP($B212,StockMaster,COLUMN(StockCodes!$B$5),0)),\"\",VLOOKUP($B212,StockMaster,COLUMN(StockCodes!$B$5),0))","v":"1212GHG Garden Shed"},{"$f":"IF(ISNA(VLOOKUP($B212,StockMaster,COLUMN(StockCodes!$N$5),0)),\"\",VLOOKUP($B212,StockMaster,COLUMN(StockCodes!$N$5),0))","v":1010},{"$f":"IF(ISNUMBER(D212)=FALSE,\"\",RANK(D212,$D$212:$D$216,0))","v":1},{"$f":"IF(ISNUMBER(E212)=FALSE,\"\",E212+COUNTIF($E$212:$E212,$E212)-1)","v":1}]
[null,{"$f":"IF(ISERROR(INDEX(StockMaster,SMALL(IF(DBReceiptQty>=LARGE(DBReceiptQty,MIN(5,CodeCount)),ROW(DBReceiptQty)-ROW(StockCodes!$A$5)),ROW(2:2)),COLUMN(StockCodes!$A$5))),\"\",INDEX(StockMaster,SMALL(IF(DBReceiptQty>=LARGE(DBReceiptQty,MIN(5,CodeCount)),ROW(DBReceiptQty)-ROW(StockCodes!$A$5)),ROW(2:2)),COLUMN(StockCodes!$A$5)))","v":"1212PHP"},{"$f":"B213&\" \"&IF(ISNA(VLOOKUP($B213,StockMaster,COLUMN(StockCodes!$B$5),0)),\"\",VLOOKUP($B213,StockMaster,COLUMN(StockCodes!$B$5),0))","v":"1212PHP Painted Garden Shed"},{"$f":"IF(ISNA(VLOOKUP($B213,StockMaster,COLUMN(StockCodes!$N$5),0)),\"\",VLOOKUP($B213,StockMaster,COLUMN(StockCodes!$N$5),0))","v":52},{"$f":"IF(ISNUMBER(D213)=FALSE,\"\",RANK(D213,$D$212:$D$216,0))","v":3},{"$f":"IF(ISNUMBER(E213)=FALSE,\"\",E213+COUNTIF($E$212:$E213,$E213)-1)","v":3}]
[null,{"$f":"IF(ISERROR(INDEX(StockMaster,SMALL(IF(DBReceiptQty>=LARGE(DBReceiptQty,MIN(5,CodeCount)),ROW(DBReceiptQty)-ROW(StockCodes!$A$5)),ROW(3:3)),COLUMN(StockCodes!$A$5))),\"\",INDEX(StockMaster,SMALL(IF(DBReceiptQty>=LARGE(DBReceiptQty,MIN(5,CodeCount)),ROW(DBReceiptQty)-ROW(StockCodes!$A$5)),ROW(3:3)),COLUMN(StockCodes!$A$5)))","v":"1212THT"},{"$f":"B214&\" \"&IF(ISNA(VLOOKUP($B214,StockMaster,COLUMN(StockCodes!$B$5),0)),\"\",VLOOKUP($B214,StockMaster,COLUMN(StockCodes!$B$5),0))","v":"1212THT Tools Shed"},{"$f":"IF(ISNA(VLOOKUP($B214,StockMaster,COLUMN(StockCodes!$N$5),0)),\"\",VLOOKUP($B214,StockMaster,COLUMN(StockCodes!$N$5),0))","v":125},2,{"$f":"IF(ISNUMBER(E214)=FALSE,\"\",E214+COUNTIF($E$212:$E214,$E214)-1)","v":2}]
[null,{"$f":"IF(ISERROR(INDEX(StockMaster,SMALL(IF(DBReceiptQty>=LARGE(DBReceiptQty,MIN(5,CodeCount)),ROW(DBReceiptQty)-ROW(StockCodes!$A$5)),ROW(4:4)),COLUMN(StockCodes!$A$5))),\"\",INDEX(StockMaster,SMALL(IF(DBReceiptQty>=LARGE(DBReceiptQty,MIN(5,CodeCount)),ROW(DBReceiptQty)-ROW(StockCodes!$A$5)),ROW(4:4)),COLUMN(StockCodes!$A$5)))","v":"RM10"},{"$f":"B215&\" \"&IF(ISNA(VLOOKUP($B215,StockMaster,COLUMN(StockCodes!$B$5),0)),\"\",VLOOKUP($B215,StockMaster,COLUMN(StockCodes!$B$5),0))","v":"RM10 Steel Plates"},{"$f":"IF(ISNA(VLOOKUP($B215,StockMaster,COLUMN(StockCodes!$N$5),0)),\"\",VLOOKUP($B215,StockMaster,COLUMN(StockCodes!$N$5),0))","v":0},4,{"$f":"IF(ISNUMBER(E215)=FALSE,\"\",E215+COUNTIF($E$212:$E215,$E215)-1)","v":4}]
[null,{"$f":"IF(ISERROR(INDEX(StockMaster,SMALL(IF(DBReceiptQty>=LARGE(DBReceiptQty,MIN(5,CodeCount)),ROW(DBReceiptQty)-ROW(StockCodes!$A$5)),ROW(5:5)),COLUMN(StockCodes!$A$5))),\"\",INDEX(StockMaster,SMALL(IF(DBReceiptQty>=LARGE(DBReceiptQty,MIN(5,CodeCount)),ROW(DBReceiptQty)-ROW(StockCodes!$A$5)),ROW(5:5)),COLUMN(StockCodes!$A$5)))","v":"RM25"},{"$f":"B216&\" \"&IF(ISNA(VLOOKUP($B216,StockMaster,COLUMN(StockCodes!$B$5),0)),\"\",VLOOKUP($B216,StockMaster,COLUMN(StockCodes!$B$5),0))","v":"RM25 Door Handle"},{"$f":"IF(ISNA(VLOOKUP($B216,StockMaster,COLUMN(StockCodes!$N$5),0)),\"\",VLOOKUP($B216,StockMaster,COLUMN(StockCodes!$N$5),0))","v":0},4,{"$f":"IF(ISNUMBER(E216)=FALSE,\"\",E216+COUNTIF($E$212:$E216,$E216)-1)","v":5}]